Workbook

Sheet Main
B10: 2023-02-23
B12: Sheet No. | C12: Template Name | D12: Summary
B13: 1 | C13: Future Intra | D13: For Intraday trading in F&O segment
B14: 2 | C14: Cash Intra | D14: For Intraday trading in cash market segment
B15: 3 | C15: Mid-cap Intra | D15: For Intraday trading in Mid-cap stocks
B16: 4 | C16: Bulk Deals | D16: Reveals Bulk Deals carried on NSE & BSE
B17: 5 | C17: Call Tracker
K27: `

Sheet Future Intra
M5: Back to Main Page
A6: FOR INTRA DAY TRADING | L6: =Main!B10 -> 2023-02-23
A9: Sr.no | B9: Sector | C9: Scrip | D9: Expiry Date | E9: CLOSE RATE | F9: Pivot Point | G9: Supports | J9: Resistances
E10: Point | F10: Point | G10: S1 | H10: S2 | I10: S3 | J10: R1 | K10: R2 | L10: R3 | M10: HIGH | N10: LOW | O10: OI | P10: % Change in OI
A11: 1 | B11: Index | C11: NIFTY | D11: 2023-02-23 | E11: 17566.90 | F11: 17631.47 | G11: 17467.98 | H11: 17369.07 | I11: 17205.58 | J11: 17730.38 | K11: 17893.87 | L11: 17992.78 | M11: 17794.95 | N11: 17532.55 | O11: 13284300 | P11: 10.84%
A12: 2 | B12: Index | C12: BANKNIFTY | D12: 2023-02-23 | E12: 40038.40 | F12: 40180.87 | G12: 39777.18 | H12: 39515.97 | I12: 39112.28 | J12: 40442.08 | K12: 40845.77 | L12: 41106.98 | M12: 40584.55 | N12: 39919.65 | O12: 3211075 | P12: -0.44%
A13: 3 | B13: Index | C13: FINNIFTY | D13: 2023-02-28 | E13: 17946.65 | F13: 18041.15 | G13: 17831.25 | H13: 17715.85 | I13: 17505.95 | J13: 18156.55 | K13: 18366.45 | L13: 18481.85 | M13: 18251.05 | N13: 17925.75 | O13: 19880 | P13: 4.85%
A14: 4 | B14: Index | C14: MIDCPNIFTY | D14: 2023-02-28 | E14: 6878.50 | F14: 2292.83 | G14: 4585.67 | H14: 2292.83 | I14: 4585.67 | J14: 4585.67 | K14: 2292.83 | L14: 4585.67 | M14: 0 | N14: 0 | O14: 0
A15: 5 | B15: Chemical | C15: AARTIIND | D15: 2023-02-23 | E15: 525.15 | F15: 524.12 | G15: 516.68 | H15: 508.22 | I15: 500.78 | J15: 532.58 | K15: 540.02 | L15: 548.48 | M15: 531.55 | N15: 515.65 | O15: 5708600 | P15: -2.48%
A16: 6 | B16: Capital_Goods | C16: ABB | D16: 2023-02-23 | E16: 3163.30 | F16: 3156.98 | G16: 3128.97 | H16: 3094.63 | I16: 3066.62 | J16: 3191.32 | K16: 3219.33 | L16: 3253.67 | M16: 3185 | N16: 3122.65 | O16: 1491750 | P16: 1.15%
A17: 7 | B17: Pharma | C17: ABBOTINDIA | D17: 2023-02-23 | E17: 20214.00 | F17: 20175.07 | G17: 20027.93 | H17: 19841.87 | I17: 19694.73 | J17: 20361.13 | K17: 20508.27 | L17: 20694.33 | M17: 20322.2 | N17: 19989 | O17: 46240 | P17: -3.83%
A18: 8 | B18: Others | C18: ABCAPITAL | D18: 2023-02-23 | E18: 139.20 | F18: 140.20 | G18: 137.50 | H18: 135.80 | I18: 133.10 | J18: 141.90 | K18: 144.60 | L18: 146.30 | M18: 142.9 | N18: 138.5 | O18: 30547800 | P18: -7.14%
A19: 9 | B19: Textile | C19: ABFRL | D19: 2023-02-23 | E19: 234.60 | F19: 238.20 | G19: 229.40 | H19: 224.20 | I19: 215.40 | J19: 243.40 | K19: 252.20 | L19: 257.40 | M19: 247 | N19: 233 | O19: 21229000 | P19: 3.24%
A20: 10 | B20: Cement | C20: ACC | D20: 2023-02-23 | E20: 1751.10 | F20: 1766.28 | G20: 1702.22 | H20: 1653.33 | I20: 1589.27 | J20: 1815.17 | K20: 1879.23 | L20: 1928.12 | M20: 1830.35 | N20: 1717.4 | O20: 4479750 | P20: 1.77%
A21: 11 | B21: Others | C21: ADANIENT | D21: 2023-02-23 | E21: 1403.35 | F21: 1447.77 | G21: 1334.38 | H21: 1265.42 | I21: 1152.03 | J21: 1516.73 | K21: 1630.12 | L21: 1699.08 | M21: 1561.15 | N21: 1378.8 | O21: 14935500 | P21: 4.34%
A22: 12 | B22: Others | C22: ADANIPORTS | D22: 2023-02-23 | E22: 546.20 | F22: 555.63 | G22: 528.57 | H22: 510.93 | I22: 483.87 | J22: 573.27 | K22: 600.33 | L22: 617.97 | M22: 582.7 | N22: 538 | O22: 51799375 | P22: -1.70%
A23: 13 | B23: Pharma | C23: ALKEM | D23: 2023-02-23 | E23: 3276.30 | F23: 3266.60 | G23: 3239.00 | H23: 3201.70 | I23: 3174.10 | J23: 3303.90 | K23: 3331.50 | L23: 3368.80 | M23: 3294.2 | N23: 3229.3 | O23: 643600 | P23: -12.91%
A24: 14 | B24: Cement | C24: AMBUJACEM | D24: 2023-02-23 | E24: 334.35 | F24: 339.48 | G24: 326.12 | H24: 317.88 | I24: 304.52 | J24: 347.72 | K24: 361.08 | L24: 369.32 | M24: 352.85 | N24: 331.25 | O24: 66960000 | P24: -1.35%
A25: 15 | B25: Others | C25: APOLLOHOSP | D25: 2023-02-23 | E25: 4455.65 | F25: 4478.23 | G25: 4425.42 | H25: 4395.18 | I25: 4342.37 | J25: 4508.47 | K25: 4561.28 | L25: 4591.52 | M25: 4531.05 | N25: 4448 | O25: 1640875 | P25: -1.66%
A26: 16 | B26: Automobile | C26: APOLLOTYRE | D26: 2023-02-23 | E26: 327.95 | F26: 327.33 | G26: 325.77 | H26: 323.58 | I26: 322.02 | J26: 329.52 | K26: 331.08 | L26: 333.27 | M26: 328.9 | N26: 325.15 | O26: 12250000 | P26: -8.76%
A27: 17 | B27: Automobile | C27: ASHOKLEY | D27: 2023-02-23 | E27: 143.25 | F27: 144.53 | G27: 141.42 | H27: 139.58 | I27: 136.47 | J27: 146.37 | K27: 149.48 | L27: 151.32 | M27: 147.65 | N27: 142.7 | O27: 71990000 | P27: -4.07%
A28: 18 | B28: FMCG | C28: ASIANPAINT | D28: 2023-02-23 | E28: 2793.00 | F28: 2795.02 | G28: 2774.73 | H28: 2756.47 | I28: 2736.18 | J28: 2813.28 | K28: 2833.57 | L28: 2851.83 | M28: 2815.3 | N28: 2776.75 | O28: 7680200 | P28: 0.03%
A29: 19 | B29: Others | C29: ASTRAL | D29: 2023-02-23 | E29: 1854.60 | F29: 1877.08 | G29: 1820.17 | H29: 1785.73 | I29: 1728.82 | J29: 1911.52 | K29: 1968.43 | L29: 2002.87 | M29: 1934 | N29: 1842.65 | O29: 1950025 | P29: 1.84%
A30: 20 | B30: Others | C30: ATUL | D30: 2023-02-23 | E30: 7144.00 | F30: 7139.67 | G30: 7091.98 | H30: 7039.97 | I30: 6992.28 | J30: 7191.68 | K30: 7239.37 | L30: 7291.38 | M30: 7187.35 | N30: 7087.65 | O30: 204150 | P30: 3.42%
A31: 21 | B31: Banking | C31: AUBANK | D31: 2023-02-23 | E31: 596.85 | F31: 597.43 | G31: 589.22 | H31: 581.58 | I31: 573.37 | J31: 605.07 | K31: 613.28 | L31: 620.92 | M31: 605.65 | N31: 589.8 | O31: 11789000 | P31: -0.40%
A32: 22 | B32: Pharma | C32: AUROPHARMA | D32: 2023-02-23 | E32: 470.60 | F32: 468.57 | G32: 462.93 | H32: 455.27 | I32: 449.63 | J32: 476.23 | K32: 481.87 | L32: 489.53 | M32: 474.2 | N32: 460.9 | O32: 17128000 | P32: 0.54%
A33: 23 | B33: Banking | C33: AXISBANK | D33: 2023-02-23 | E33: 833.60 | F33: 835.40 | G33: 828.35 | H33: 823.10 | I33: 816.05 | J33: 840.65 | K33: 847.70 | L33: 852.95 | M33: 842.45 | N33: 830.15 | O33: 51784800 | P33: 1.43%
A34: 24 | B34: Automobile | C34: BAJAJ-AUTO | D34: 2023-02-23 | E34: 3840.15 | F34: 3847.58 | G34: 3811.77 | H34: 3783.38 | I34: 3747.57 | J34: 3875.97 | K34: 3911.78 | L34: 3940.17 | M34: 3883.4 | N34: 3819.2 | O34: 1415000 | P34: -10.54%
A35: 25 | B35: Finance | C35: BAJAJFINSV | D35: 2023-02-23 | E35: 1359.05 | F35: 1367.58 | G35: 1345.17 | H35: 1331.28 | I35: 1308.87 | J35: 1381.47 | K35: 1403.88 | L35: 1417.77 | M35: 1390 | N35: 1353.7 | O35: 10303500 | P35: 3.41%
A36: 26 | B36: Finance | C36: BAJFINANCE | D36: 2023-02-23 | E36: 6192.70 | F36: 6245.25 | G36: 6130.15 | H36: 6067.60 | I36: 5952.50 | J36: 6307.80 | K36: 6422.90 | L36: 6485.45 | M36: 6360.35 | N36: 6182.7 | O36: 4748250 | P36: 2.65%
A37: 27 | B37: Automobile | C37: BALKRISIND | D37: 2023-02-23 | E37: 2057.55 | F37: 2058.15 | G37: 2040.60 | H37: 2023.65 | I37: 2006.10 | J37: 2075.10 | K37: 2092.65 | L37: 2109.60 | M37: 2075.7 | N37: 2041.2 | O37: 1933800 | P37: 4.54%
A38: 28 | B38: Others | C38: BALRAMCHIN | D38: 2023-02-23 | E38: 359.65 | F38: 363.30 | G38: 352.85 | H38: 346.05 | I38: 335.60 | J38: 370.10 | K38: 380.55 | L38: 387.35 | M38: 373.75 | N38: 356.5 | O38: 6436800 | P38: -5.41%
A39: 29 | B39: Banking | C39: BANDHANBNK | D39: 2023-02-23 | E39: 227.75 | F39: 227.53 | G39: 225.82 | H39: 223.88 | I39: 222.17 | J39: 229.47 | K39: 231.18 | L39: 233.12 | M39: 229.25 | N39: 225.6 | O39: 38953800 | P39: -1.72%
A40: 30 | B40: Banking | C40: BANKBARODA | D40: 2023-02-23 | E40: 156.80 | F40: 157.18 | G40: 154.92 | H40: 153.03 | I40: 150.77 | J40: 159.07 | K40: 161.33 | L40: 163.22 | M40: 159.45 | N40: 155.3 | O40: 119164500 | P40: 3.03%
A41: 31 | B41: FMCG | C41: BATAINDIA | D41: 2023-02-23 | E41: 1422.95 | F41: 1417.62 | G41: 1408.53 | H41: 1394.12 | I41: 1385.03 | J41: 1432.03 | K41: 1441.12 | L41: 1455.53 | M41: 1426.7 | N41: 1403.2 | O41: 2812700 | P41: -0.92%
A42: 32 | B42: Capital_Goods | C42: BEL | D42: 2023-02-23 | E42: 95.10 | F42: 95.37 | G42: 94.58 | H42: 94.07 | I42: 93.28 | J42: 95.88 | K42: 96.67 | L42: 97.18 | M42: 96.15 | N42: 94.85 | O42: 113566800 | P42: 8.76%
A43: 33 | B43: FMCG | C43: BERGEPAINT | D43: 2023-02-23 | E43: 564.65 | F43: 564.70 | G43: 559.75 | H43: 554.85 | I43: 549.90 | J43: 569.60 | K43: 574.55 | L43: 579.45 | M43: 569.65 | N43: 559.8 | O43: 7317200 | P43: -4.74%
A44: 34 | B44: Automobile | C44: BHARATFORG | D44: 2023-02-23 | E44: 841.45 | F44: 847.33 | G44: 832.67 | H44: 823.88 | I44: 809.22 | J44: 856.12 | K44: 870.78 | L44: 879.57 | M44: 862 | N44: 838.55 | O44: 7141000 | P44: -6.42%
A45: 35 | B45: Telecom | C45: BHARTIARTL | D45: 2023-02-23 | E45: 769.85 | F45: 772.12 | G45: 763.23 | H45: 756.62 | I45: 747.73 | J45: 778.73 | K45: 787.62 | L45: 794.23 | M45: 781 | N45: 765.5 | O45: 44969200 | P45: -0.28%
A46: 36 | B46: Capital_Goods | C46: BHEL | D46: 2023-02-23 | E46: 68.95 | F46: 69.42 | G46: 68.03 | H46: 67.12 | I46: 65.73 | J46: 70.33 | K46: 71.72 | L46: 72.63 | M46: 70.8 | N46: 68.5 | O46: 79852500 | P46: 0.62%
A47: 37 | B47: Pharma | C47: BIOCON | D47: 2023-02-23 | E47: 222.60 | F47: 223.93 | G47: 220.17 | H47: 217.73 | I47: 213.97 | J47: 226.37 | K47: 230.13 | L47: 232.57 | M47: 227.7 | N47: 221.5 | O47: 34808200 | P47: 0.06%
A48: 38 | B48: Automobile | C48: BOSCHLTD | D48: 2023-02-23 | E48: 18261.00 | F48: 18237.82 | G48: 18116.73 | H48: 17972.47 | I48: 17851.38 | J48: 18382.08 | K48: 18503.17 | L48: 18647.43 | M48: 18358.9 | N48: 18093.55 | O48: 148850 | P48: -2.30%
A49: 39 | B49: Oil_Gas | C49: BPCL | D49: 2023-02-23 | E49: 319.95 | F49: 319.37 | G49: 316.58 | H49: 313.22 | I49: 310.43 | J49: 322.73 | K49: 325.52 | L49: 328.88 | M49: 322.15 | N49: 316 | O49: 16012800 | P49: -0.96%
A50: 40 | B50: FMCG | C50: BRITANNIA | D50: 2023-02-23 | E50: 4479.55 | F50: 4495.18 | G50: 4459.37 | H50: 4439.18 | I50: 4403.37 | J50: 4515.37 | K50: 4551.18 | L50: 4571.37 | M50: 4531 | N50: 4475 | O50: 1489000 | P50: -4.20%
A51: 41 | B51: Technology | C51: BSOFT | D51: 2023-02-23 | E51: 282.55 | F51: 282.85 | G51: 279.75 | H51: 276.95 | I51: 273.85 | J51: 285.65 | K51: 288.75 | L51: 291.55 | M51: 285.95 | N51: 280.05 | O51: 9048000 | P51: -1.14%
A52: 42 | B52: Banking | C52: CANBK | D52: 2023-02-23 | E52: 274.15 | F52: 274.48 | G52: 270.42 | H52: 266.68 | I52: 262.62 | J52: 278.22 | K52: 282.28 | L52: 286.02 | M52: 278.55 | N52: 270.75 | O52: 44749800 | P52: -2.44%
A53: 43 | B53: Finance | C53: CANFINHOME | D53: 2023-02-23 | E53: 565.15 | F53: 567.48 | G53: 555.77 | H53: 546.38 | I53: 534.67 | J53: 576.87 | K53: 588.58 | L53: 597.97 | M53: 579.2 | N53: 558.1 | O53: 2975700 | P53: -2.55%
A54: 44 | B54: Others | C54: CHAMBLFERT | D54: 2023-02-23 | E54: 279.65 | F54: 281.45 | G54: 276.90 | H54: 274.15 | I54: 269.60 | J54: 284.20 | K54: 288.75 | L54: 291.50 | M54: 286 | N54: 278.7 | O54: 5407500 | P54: -1.72%
A55: 45 | B55: Finance | C55: CHOLAFIN | D55: 2023-02-23 | E55: 765.20 | F55: 767.77 | G55: 760.43 | H55: 755.67 | I55: 748.33 | J55: 772.53 | K55: 779.87 | L55: 784.63 | M55: 775.1 | N55: 763 | O55: 11770000 | P55: -0.87%
A56: 46 | B56: Pharma | C56: CIPLA | D56: 2023-02-23 | E56: 963.55 | F56: 961.58 | G56: 949.57 | H56: 935.58 | I56: 923.57 | J56: 975.57 | K56: 987.58 | L56: 1001.57 | M56: 973.6 | N56: 947.6 | O56: 9623900 | P56: 0.85%
A57: 47 | B57: Others | C57: COALINDIA | D57: 2023-02-23 | E57: 212.45 | F57: 213.43 | G57: 211.07 | H57: 209.68 | I57: 207.32 | J57: 214.82 | K57: 217.18 | L57: 218.57 | M57: 215.8 | N57: 212.05 | O57: 46796400 | P57: -0.03%
A58: 48 | B58: Technology | C58: COFORGE | D58: 2023-02-23 | E58: 4340.55 | F58: 4328.22 | G58: 4295.63 | H58: 4250.72 | I58: 4218.13 | J58: 4373.13 | K58: 4405.72 | L58: 4450.63 | M58: 4360.8 | N58: 4283.3 | O58: 1489350 | P58: 3.04%
A59: 49 | B59: FMCG | C59: COLPAL | D59: 2023-02-23 | E59: 1455.85 | F59: 1451.67 | G59: 1445.83 | H59: 1435.82 | I59: 1429.98 | J59: 1461.68 | K59: 1467.52 | L59: 1477.53 | M59: 1457.5 | N59: 1441.65 | O59: 2235800 | P59: -4.08%
A60: 50 | B60: Others | C60: CONCOR | D60: 2023-02-23 | E60: 587.00 | F60: 589.02 | G60: 583.03 | H60: 579.07 | I60: 573.08 | J60: 592.98 | K60: 598.97 | L60: 602.93 | M60: 595 | N60: 585.05 | O60: 11360000 | P60: 7.08%
A61: 51 | B61: Others | C61: COROMANDEL | D61: 2023-02-23 | E61: 889.95 | F61: 893.08 | G61: 884.22 | H61: 878.48 | I61: 869.62 | J61: 898.82 | K61: 907.68 | L61: 913.42 | M61: 901.95 | N61: 887.35 | O61: 1928500 | P61: -3.67%
A62: 52 | B62: Capital_Goods | C62: CROMPTON | D62: 2023-02-23 | E62: 296.20 | F62: 295.72 | G62: 293.48 | H62: 290.77 | I62: 288.53 | J62: 298.43 | K62: 300.67 | L62: 303.38 | M62: 297.95 | N62: 293 | O62: 6814500 | P62: -6.73%
A63: 53 | B63: Banking | C63: CUB | D63: 2023-02-23 | E63: 132.60 | F63: 133.42 | G63: 131.23 | H63: 129.87 | I63: 127.68 | J63: 134.78 | K63: 136.97 | L63: 138.33 | M63: 135.6 | N63: 132.05 | O63: 13715000 | P63: -6.41%
A64: 54 | B64: Capital_Goods | C64: CUMMINSIND | D64: 2023-02-23 | E64: 1581.60 | F64: 1580.08 | G64: 1568.92 | H64: 1556.23 | I64: 1545.07 | J64: 1592.77 | K64: 1603.93 | L64: 1616.62 | M64: 1591.25 | N64: 1567.4 | O64: 3103800 | P64: -7.46%
A65: 55 | B65: FMCG | C65: DABUR | D65: 2023-02-23 | E65: 532.40 | F65: 532.02 | G65: 529.88 | H65: 527.37 | I65: 525.23 | J65: 534.53 | K65: 536.67 | L65: 539.18 | M65: 534.15 | N65: 529.5 | O65: 11283750 | P65: -1.94%
A66: 56 | B66: Cement | C66: DALBHARAT | D66: 2023-02-23 | E66: 1910.70 | F66: 1895.67 | G66: 1874.33 | H66: 1837.97 | I66: 1816.63 | J66: 1932.03 | K66: 1953.37 | L66: 1989.73 | M66: 1917 | N66: 1859.3 | O66: 1809500 | P66: -3.93%
A67: 57 | B67: Chemical | C67: DEEPAKNTR | D67: 2023-02-23 | E67: 1793.20 | F67: 1791.95 | G67: 1772.25 | H67: 1751.30 | I67: 1731.60 | J67: 1812.90 | K67: 1832.60 | L67: 1853.55 | M67: 1811.65 | N67: 1771 | O67: 1642500 | P67: -0.26%
A68: 58 | B68: Others | C68: DELTACORP | D68: 2023-02-23 | E68: 188.75 | F68: 190.05 | G68: 186.25 | H68: 183.75 | I68: 179.95 | J68: 192.55 | K68: 196.35 | L68: 198.85 | M68: 193.85 | N68: 187.55 | O68: 19440400 | P68: 0.12%
A69: 59 | B69: Pharma | C69: DIVISLAB | D69: 2023-02-23 | E69: 2919.05 | F69: 2920.45 | G69: 2905.30 | H69: 2891.55 | I69: 2876.40 | J69: 2934.20 | K69: 2949.35 | L69: 2963.10 | M69: 2935.6 | N69: 2906.7 | O69: 3561900 | P69: -1.62%
A70: 60 | B70: Others | C70: DIXON | D70: 2023-02-23 | E70: 2639.75 | F70: 2660.55 | G70: 2610.55 | H70: 2581.35 | I70: 2531.35 | J70: 2689.75 | K70: 2739.75 | L70: 2768.95 | M70: 2710.55 | N70: 2631.35 | O70: 1120250 | P70: -7.22%
A71: 61 | B71: Realty | C71: DLF | D71: 2023-02-23 | E71: 348.10 | F71: 350.22 | G71: 344.38 | H71: 340.67 | I71: 334.83 | J71: 353.93 | K71: 359.77 | L71: 363.48 | M71: 356.05 | N71: 346.5 | O71: 44980650 | P71: -2.11%
A72: 62 | B72: Pharma | C72: DRREDDY | D72: 2023-02-23 | E72: 4480.30 | F72: 4487.32 | G72: 4458.63 | H72: 4436.97 | I72: 4408.28 | J72: 4508.98 | K72: 4537.67 | L72: 4559.33 | M72: 4516 | N72: 4465.65 | O72: 2186500 | P72: -0.96%
A73: 63 | B73: Automobile | C73: EICHERMOT | D73: 2023-02-23 | E73: 3243.60 | F73: 3239.70 | G73: 3213.90 | H73: 3184.20 | I73: 3158.40 | J73: 3269.40 | K73: 3295.20 | L73: 3324.90 | M73: 3265.5 | N73: 3210 | O73: 3084550 | P73: -5.32%
A74: 64 | B74: Automobile | C74: ESCORTS | D74: 2023-02-23 | E74: 2086.25 | F74: 2094.02 | G74: 2071.13 | H74: 2056.02 | I74: 2033.13 | J74: 2109.13 | K74: 2132.02 | L74: 2147.13 | M74: 2116.9 | N74: 2078.9 | O74: 1042250 | P74: -4.80%
A75: 65 | B75: Automobile | C75: EXIDEIND | D75: 2023-02-23 | E75: 173.80 | F75: 174.75 | G75: 172.30 | H75: 170.80 | I75: 168.35 | J75: 176.25 | K75: 178.70 | L75: 180.20 | M75: 177.2 | N75: 173.25 | O75: 22557600 | P75: 1.08%
A76: 66 | B76: Banking | C76: FEDERALBNK | D76: 2023-02-23 | E76: 125.30 | F76: 125.78 | G76: 124.22 | H76: 123.13 | I76: 121.57 | J76: 126.87 | K76: 128.43 | L76: 129.52 | M76: 127.35 | N76: 124.7 | O76: 80090000 | P76: -1.89%
A77: 67 | B77: Technology | C77: FSL | D77: 2023-02-23 | E77: 117.55 | F77: 117.42 | G77: 116.48 | H77: 115.42 | I77: 114.48 | J77: 118.48 | K77: 119.42 | L77: 120.48 | M77: 118.35 | N77: 116.35 | O77: 18038800 | P77: -1.98%
A78: 68 | B78: Oil_Gas | C78: GAIL | D78: 2023-02-23 | E78: 95.70 | F78: 94.93 | G78: 93.82 | H78: 91.93 | I78: 90.82 | J78: 96.82 | K78: 97.93 | L78: 99.82 | M78: 96.05 | N78: 93.05 | O78: 62311500 | P78: 5.16%
A79: 69 | B79: Pharma | C79: GLENMARK | D79: 2023-02-23 | E79: 442.60 | F79: 440.67 | G79: 436.38 | H79: 430.17 | I79: 425.88 | J79: 446.88 | K79: 451.17 | L79: 457.38 | M79: 444.95 | N79: 434.45 | O79: 5768100 | P79: 3.46%
A80: 70 | B80: Infrastructure | C80: GMRINFRA | D80: 2023-02-23 | E80: 38.35 | F80: 38.53 | G80: 37.97 | H80: 37.58 | I80: 37.02 | J80: 38.92 | K80: 39.48 | L80: 39.87 | M80: 39.1 | N80: 38.15 | O80: 136057500 | P80: -4.33%
A81: 71 | B81: Others | C81: GNFC | D81: 2023-02-23 | E81: 533.85 | F81: 537.58 | G81: 528.12 | H81: 522.38 | I81: 512.92 | J81: 543.32 | K81: 552.78 | L81: 558.52 | M81: 547.05 | N81: 531.85 | O81: 7516600 | P81: -0.93%
A82: 72 | B82: FMCG | C82: GODREJCP | D82: 2023-02-23 | E82: 931.55 | F82: 932.53 | G82: 923.07 | H82: 914.58 | I82: 905.12 | J82: 941.02 | K82: 950.48 | L82: 958.97 | M82: 942 | N82: 924.05 | O82: 5673000 | P82: -1.42%
A83: 73 | B83: Realty | C83: GODREJPROP | D83: 2023-02-23 | E83: 1104.95 | F83: 1116.85 | G83: 1085.60 | H83: 1066.25 | I83: 1035.00 | J83: 1136.20 | K83: 1167.45 | L83: 1186.80 | M83: 1148.1 | N83: 1097.5 | O83: 4743850 | P83: -0.56%
A84: 74 | B84: Pharma | C84: GRANULES | D84: 2023-02-23 | E84: 279.55 | F84: 280.97 | G84: 277.18 | H84: 274.82 | I84: 271.03 | J84: 283.33 | K84: 287.12 | L84: 289.48 | M84: 284.75 | N84: 278.6 | O84: 7952000 | P84: -0.13%
A85: 75 | B85: Cement | C85: GRASIM | D85: 2023-02-23 | E85: 1574.30 | F85: 1593.67 | G85: 1551.23 | H85: 1528.17 | I85: 1485.73 | J85: 1616.73 | K85: 1659.17 | L85: 1682.23 | M85: 1636.1 | N85: 1570.6 | O85: 9227825 | P85: 1.41%
A86: 76 | B86: Oil_Gas | C86: GUJGASLTD | D86: 2023-02-23 | E86: 503.85 | F86: 508.50 | G86: 497.35 | H86: 490.85 | I86: 479.70 | J86: 515.00 | K86: 526.15 | L86: 532.65 | M86: 519.65 | N86: 502 | O86: 3436250 | P86: -3.20%
A87: 77 | B87: Others | C87: HAL | D87: 2023-02-23 | E87: 2561.45 | F87: 2575.93 | G87: 2528.07 | H87: 2494.68 | I87: 2446.82 | J87: 2609.32 | K87: 2657.18 | L87: 2690.57 | M87: 2623.8 | N87: 2542.55 | O87: 3589800 | P87: 2.41%
A88: 78 | B88: Capital_Goods | C88: HAVELLS | D88: 2023-02-23 | E88: 1200.65 | F88: 1204.78 | G88: 1191.57 | H88: 1182.48 | I88: 1169.27 | J88: 1213.87 | K88: 1227.08 | L88: 1236.17 | M88: 1218 | N88: 1195.7 | O88: 4803000 | P88: 2.07%
A89: 79 | B89: Technology | C89: HCLTECH | D89: 2023-02-23 | E89: 1092.90 | F89: 1095.72 | G89: 1086.73 | H89: 1080.57 | I89: 1071.58 | J89: 1101.88 | K89: 1110.87 | L89: 1117.03 | M89: 1104.7 | N89: 1089.55 | O89: 12674900 | P89: 0.07%
A90: 80 | B90: Finance | C90: HDFC | D90: 2023-02-23 | E90: 2618.90 | F90: 2631.82 | G90: 2598.83 | H90: 2578.77 | I90: 2545.78 | J90: 2651.88 | K90: 2684.87 | L90: 2704.93 | M90: 2664.8 | N90: 2611.75 | O90: 23080800 | P90: 0.06%
A91: 81 | B91: Finance | C91: HDFCAMC | D91: 2023-02-23 | E91: 1815.45 | F91: 1819.70 | G91: 1800.60 | H91: 1785.75 | I91: 1766.65 | J91: 1834.55 | K91: 1853.65 | L91: 1868.50 | M91: 1838.8 | N91: 1804.85 | O91: 2220300 | P91: -1.25%
A92: 82 | B92: Banking | C92: HDFCBANK | D92: 2023-02-23 | E92: 1616.25 | F92: 1622.82 | G92: 1603.73 | H92: 1591.22 | I92: 1572.13 | J92: 1635.33 | K92: 1654.42 | L92: 1666.93 | M92: 1641.9 | N92: 1610.3 | O92: 63600900 | P92: 2.19%
A93: 83 | B93: Finance | C93: HDFCLIFE | D93: 2023-02-23 | E93: 495.10 | F93: 496.92 | G93: 491.78 | H93: 488.47 | I93: 483.33 | J93: 500.23 | K93: 505.37 | L93: 508.68 | M93: 502.05 | N93: 493.6 | O93: 23823800 | P93: 5.63%
A94: 84 | B94: Automobile | C94: HEROMOTOCO | D94: 2023-02-23 | E94: 2504.45 | F94: 2513.05 | G94: 2488.00 | H94: 2471.55 | I94: 2446.50 | J94: 2529.50 | K94: 2554.55 | L94: 2571.00 | M94: 2538.1 | N94: 2496.6 | O94: 2905500 | P94: 1.84%
A95: 85 | B95: Metals | C95: HINDALCO | D95: 2023-02-23 | E95: 429.20 | F95: 430.03 | G95: 425.17 | H95: 421.13 | I95: 416.27 | J95: 434.07 | K95: 438.93 | L95: 442.97 | M95: 434.9 | N95: 426 | O95: 25890200 | P95: -4.97%
A96: 86 | B96: Metals | C96: HINDCOPPER | D96: 2023-02-23 | E96: 100.75 | F96: 101.75 | G96: 99.35 | H96: 97.95 | I96: 95.55 | J96: 103.15 | K96: 105.55 | L96: 106.95 | M96: 104.15 | N96: 100.35 | O96: 23635200 | P96: -0.69%
A97: 87 | B97: Oil_Gas | C97: HINDPETRO | D97: 2023-02-23 | E97: 223.50 | F97: 223.03 | G97: 220.47 | H97: 217.43 | I97: 214.87 | J97: 226.07 | K97: 228.63 | L97: 231.67 | M97: 225.6 | N97: 220 | O97: 21535200 | P97: -0.46%
A98: 88 | B98: FMCG | C98: HINDUNILVR | D98: 2023-02-23 | E98: 2494.25 | F98: 2499.83 | G98: 2477.77 | H98: 2461.28 | I98: 2439.22 | J98: 2516.32 | K98: 2538.38 | L98: 2554.87 | M98: 2521.9 | N98: 2483.35 | O98: 9738900 | P98: 3.17%
A99: 89 | B99: Others | C99: HONAUT | D99: 2023-02-23 | E99: 36182.00 | F99: 35984.00 | G99: 35628.00 | H99: 35074.00 | I99: 34718.00 | J99: 36538.00 | K99: 36894.00 | L99: 37448.00 | M99: 36340 | N99: 35430 | O99: 25440 | P99: 0.30%
A100: 90 | B100: Finance | C100: IBULHSGFIN | D100: 2023-02-23 | E100: 107.25 | F100: 108.55 | G100: 105.70 | H100: 104.15 | I100: 101.30 | J100: 110.10 | K100: 112.95 | L100: 114.50 | M100: 111.4 | N100: 107 | O100: 41636000 | P100: 0.07%
A101: 91 | B101: Banking | C101: ICICIBANK | D101: 2023-02-23 | E101: 838.80 | F101: 839.17 | G101: 824.38 | H101: 809.97 | I101: 795.18 | J101: 853.58 | K101: 868.37 | L101: 882.78 | M101: 853.95 | N101: 824.75 | O101: 77395500 | P101: 2.09%
A102: 92 | B102: Finance | C102: ICICIGI | D102: 2023-02-23 | E102: 1096.55 | F102: 1096.38 | G102: 1090.27 | H102: 1083.98 | I102: 1077.87 | J102: 1102.67 | K102: 1108.78 | L102: 1115.07 | M102: 1102.5 | N102: 1090.1 | O102: 3508800 | P102: -1.42%
A103: 93 | B103: Finance | C103: ICICIPRULI | D103: 2023-02-23 | E103: 411.15 | F103: 412.83 | G103: 407.17 | H103: 403.18 | I103: 397.52 | J103: 416.82 | K103: 422.48 | L103: 426.47 | M103: 418.5 | N103: 408.85 | O103: 13519500 | P103: -2.71%
A104: 94 | B104: Telecom | C104: IDEA | D104: 2023-02-23 | E104: 7.05 | F104: 7.03 | G104: 6.92 | H104: 6.78 | I104: 6.67 | J104: 7.17 | K104: 7.28 | L104: 7.42 | M104: 7.15 | N104: 6.9 | O104: 706300000 | P104: -6.30%
A105: 95 | B105: Finance | C105: IDFC | D105: 2023-02-23 | E105: 73.55 | F105: 74.03 | G105: 72.87 | H105: 72.18 | I105: 71.02 | J105: 74.72 | K105: 75.88 | L105: 76.57 | M105: 75.2 | N105: 73.35 | O105: 175510000 | P105: -1.15%
A106: 96 | B106: Banking | C106: IDFCFIRSTB | D106: 2023-02-23 | E106: 53.45 | F106: 53.68 | G106: 53.02 | H106: 52.58 | I106: 51.92 | J106: 54.12 | K106: 54.78 | L106: 55.22 | M106: 54.35 | N106: 53.25 | O106: 202710000 | P106: -1.84%
A107: 97 | B107: Others | C107: IEX | D107: 2023-02-23 | E107: 145.20 | F107: 144.67 | G107: 143.03 | H107: 140.87 | I107: 139.23 | J107: 146.83 | K107: 148.47 | L107: 150.63 | M107: 146.3 | N107: 142.5 | O107: 42720000 | P107: -0.77%
A108: 98 | B108: Oil_Gas | C108: IGL | D108: 2023-02-23 | E108: 435.80 | F108: 436.13 | G108: 432.92 | H108: 430.03 | I108: 426.82 | J108: 439.02 | K108: 442.23 | L108: 445.12 | M108: 439.35 | N108: 433.25 | O108: 7528125 | P108: -2.13%
A109: 99 | B109: Infrastructure | C109: INDHOTEL | D109: 2023-02-23 | E109: 300.05 | F109: 302.63 | G109: 296.27 | H109: 292.48 | I109: 286.12 | J109: 306.42 | K109: 312.78 | L109: 316.57 | M109: 309 | N109: 298.85 | O109: 27814000 | P109: -1.62%
A110: 100 | B110: Cement | C110: INDIACEM | D110: 2023-02-23 | E110: 190.05 | F110: 192.63 | G110: 186.72 | H110: 183.38 | I110: 177.47 | J110: 195.97 | K110: 201.88 | L110: 205.22 | M110: 198.55 | N110: 189.3 | O110: 15268500 | P110: -5.08%
A111: 101 | B111: Others | C111: INDIAMART | D111: 2023-02-23 | E111: 4723.20 | F111: 4723.78 | G111: 4682.97 | H111: 4642.73 | I111: 4601.92 | J111: 4764.02 | K111: 4804.83 | L111: 4845.07 | M111: 4764.6 | N111: 4683.55 | O111: 325200 | P111: -4.03%
A112: 102 | B112: Others | C112: INDIGO | D112: 2023-02-23 | E112: 1835.65 | F112: 1837.73 | G112: 1818.82 | H112: 1801.98 | I112: 1783.07 | J112: 1854.57 | K112: 1873.48 | L112: 1890.32 | M112: 1856.65 | N112: 1820.9 | O112: 4532400 | P112: -5.76%
A113: 103 | B113: Banking | C113: INDUSINDBK | D113: 2023-02-23 | E113: 1090.80 | F113: 1089.05 | G113: 1080.20 | H113: 1069.60 | I113: 1060.75 | J113: 1099.65 | K113: 1108.50 | L113: 1119.10 | M113: 1097.9 | N113: 1078.45 | O113: 25898850 | P113: 1.23%
A114: 104 | B114: Telecom | C114: INDUSTOWER | D114: 2023-02-23 | E114: 163.95 | F114: 162.88 | G114: 161.37 | H114: 158.78 | I114: 157.27 | J114: 165.47 | K114: 166.98 | L114: 169.57 | M114: 164.4 | N114: 160.3 | O114: 30074800 | P114: -3.52%
A115: 105 | B115: Technology | C115: INFY | D115: 2023-02-23 | E115: 1559.70 | F115: 1562.08 | G115: 1551.22 | H115: 1542.73 | I115: 1531.87 | J115: 1570.57 | K115: 1581.43 | L115: 1589.92 | M115: 1572.95 | N115: 1553.6 | O115: 33470400 | P115: 2.00%
A116: 106 | B116: Technology | C116: INTELLECT | D116: 2023-02-23 | E116: 459.70 | F116: 459.75 | G116: 455.25 | H116: 450.80 | I116: 446.30 | J116: 464.20 | K116: 468.70 | L116: 473.15 | M116: 464.25 | N116: 455.3 | O116: 4540000 | P116: -2.76%
A117: 107 | B117: Oil_Gas | C117: IOC | D117: 2023-02-23 | E117: 77.35 | F117: 77.67 | G117: 76.68 | H117: 76.02 | I117: 75.03 | J117: 78.33 | K117: 79.32 | L117: 79.98 | M117: 78.65 | N117: 77 | O117: 74139000 | P117: -5.61%
A118: 108 | B118: Pharma | C118: IPCALAB | D118: 2023-02-23 | E118: 822.45 | F118: 820.12 | G118: 811.23 | H118: 800.02 | I118: 791.13 | J118: 831.33 | K118: 840.22 | L118: 851.43 | M118: 829 | N118: 808.9 | O118: 1954550 | P118: -8.49%
A119: 109 | B119: Others | C119: IRCTC | D119: 2023-02-23 | E119: 618.40 | F119: 624.58 | G119: 609.52 | H119: 600.63 | I119: 585.57 | J119: 633.47 | K119: 648.53 | L119: 657.42 | M119: 639.65 | N119: 615.7 | O119: 14785750 | P119: 0.45%
A120: 110 | B120: FMCG | C120: ITC | D120: 2023-02-23 | E120: 383.35 | F120: 382.73 | G120: 380.82 | H120: 378.28 | I120: 376.37 | J120: 385.27 | K120: 387.18 | L120: 389.72 | M120: 384.65 | N120: 380.2 | O120: 66681600 | P120: -2.78%
A121: 111 | B121: Metals | C121: JINDALSTEL | D121: 2023-02-23 | E121: 572.55 | F121: 576.87 | G121: 563.73 | H121: 554.92 | I121: 541.78 | J121: 585.68 | K121: 598.82 | L121: 607.63 | M121: 590 | N121: 568.05 | O121: 20745000 | P121: -3.28%
A122: 112 | B122: Cement | C122: JKCEMENT | D122: 2023-02-23 | E122: 2794.00 | F122: 2798.43 | G122: 2754.82 | H122: 2715.63 | I122: 2672.02 | J122: 2837.62 | K122: 2881.23 | L122: 2920.42 | M122: 2842.05 | N122: 2759.25 | O122: 513250 | P122: -14.64%
A123: 113 | B123: Metals | C123: JSWSTEEL | D123: 2023-02-23 | E123: 701.50 | F123: 706.33 | G123: 691.02 | H123: 680.53 | I123: 665.22 | J123: 716.82 | K123: 732.13 | L123: 742.62 | M123: 721.65 | N123: 695.85 | O123: 24673950 | P123: 1.33%
A124: 114 | B124: Others | C124: JUBLFOOD | D124: 2023-02-23 | E124: 453.60 | F124: 454.52 | G124: 449.48 | H124: 445.37 | I124: 440.33 | J124: 458.63 | K124: 463.67 | L124: 467.78 | M124: 459.55 | N124: 450.4 | O124: 14805000 | P124: 13.13%
A125: 115 | B125: Banking | C125: KOTAKBANK | D125: 2023-02-23 | E125: 1702.10 | F125: 1709.10 | G125: 1690.60 | H125: 1679.10 | I125: 1660.60 | J125: 1720.60 | K125: 1739.10 | L125: 1750.60 | M125: 1727.6 | N125: 1697.6 | O125: 43108800 | P125: 1.17%
A126: 116 | B126: Finance | C126: L&TFH | D126: 2023-02-23 | E126: 89.25 | F126: 89.25 | G126: 88.40 | H126: 87.55 | I126: 86.70 | J126: 90.10 | K126: 90.95 | L126: 91.80 | M126: 90.1 | N126: 88.4 | O126: 66564116 | P126: -3.99%
A127: 117 | B127: Others | C127: LALPATHLAB | D127: 2023-02-23 | E127: 1941.40 | F127: 1948.20 | G127: 1907.85 | H127: 1874.30 | I127: 1833.95 | J127: 1981.75 | K127: 2022.10 | L127: 2055.65 | M127: 1988.55 | N127: 1914.65 | O127: 903250 | P127: -5.44%
A128: 118 | B128: Pharma | C128: LAURUSLABS | D128: 2023-02-23 | E128: 317.25 | F128: 320.70 | G128: 313.25 | H128: 309.25 | I128: 301.80 | J128: 324.70 | K128: 332.15 | L128: 336.15 | M128: 328.15 | N128: 316.7 | O128: 9735000 | P128: 0.58%
A129: 119 | B129: Finance | C129: LICHSGFIN | D129: 2023-02-23 | E129: 353.55 | F129: 355.03 | G129: 350.82 | H129: 348.08 | I129: 343.87 | J129: 357.77 | K129: 361.98 | L129: 364.72 | M129: 359.25 | N129: 352.3 | O129: 14174000 | P129: 0.44%
A130: 120 | B130: Capital_Goods | C130: LT | D130: 2023-02-23 | E130: 2191.35 | F130: 2202.93 | G130: 2170.87 | H130: 2150.38 | I130: 2118.32 | J130: 2223.42 | K130: 2255.48 | L130: 2275.97 | M130: 2235 | N130: 2182.45 | O130: 8704500 | P130: -1.65%
A131: 121 | B131: Technology | C131: LTIM | D131: 2023-02-23 | E131: 4805.00 | F131: 4795.97 | G131: 4771.03 | H131: 4737.07 | I131: 4712.13 | J131: 4829.93 | K131: 4854.87 | L131: 4888.83 | M131: 4820.9 | N131: 4762 | O131: 1291350 | P131: -2.29%
A132: 122 | B132: Technology | C132: LTTS | D132: 2023-02-23 | E132: 3710.90 | F132: 3700.70 | G132: 3671.40 | H132: 3631.90 | I132: 3602.60 | J132: 3740.20 | K132: 3769.50 | L132: 3809.00 | M132: 3730 | N132: 3661.2 | O132: 1033000 | P132: -3.87%
A133: 123 | B133: Pharma | C133: LUPIN | D133: 2023-02-23 | E133: 664.50 | F133: 666.98 | G133: 658.12 | H133: 651.73 | I133: 642.87 | J133: 673.37 | K133: 682.23 | L133: 688.62 | M133: 675.85 | N133: 660.6 | O133: 8139600 | P133: -6.27%
A134: 124 | B134: Automobile | C134: M&M | D134: 2023-02-23 | E134: 1318.95 | F134: 1327.13 | G134: 1304.92 | H134: 1290.88 | I134: 1268.67 | J134: 1341.17 | K134: 1363.38 | L134: 1377.42 | M134: 1349.35 | N134: 1313.1 | O134: 12989900 | P134: 1.14%
A135: 125 | B135: Finance | C135: M&MFIN | D135: 2023-02-23 | E135: 255.05 | F135: 254.25 | G135: 251.90 | H135: 248.75 | I135: 246.40 | J135: 257.40 | K135: 259.75 | L135: 262.90 | M135: 256.6 | N135: 251.1 | O135: 25992000 | P135: -9.32%
A136: 126 | B136: Finance | C136: MANAPPURAM | D136: 2023-02-23 | E136: 104.30 | F136: 104.45 | G136: 103.25 | H136: 102.20 | I136: 101.00 | J136: 105.50 | K136: 106.70 | L136: 107.75 | M136: 105.65 | N136: 103.4 | O136: 45060000 | P136: 1.04%
A137: 127 | B137: FMCG | C137: MARICO | D137: 2023-02-23 | E137: 503.05 | F137: 502.40 | G137: 499.30 | H137: 495.55 | I137: 492.45 | J137: 506.15 | K137: 509.25 | L137: 513.00 | M137: 505.5 | N137: 498.65 | O137: 8352000 | P137: 2.65%
A138: 128 | B138: Automobile | C138: MARUTI | D138: 2023-02-23 | E138: 8650.30 | F138: 8656.58 | G138: 8585.07 | H138: 8519.83 | I138: 8448.32 | J138: 8721.82 | K138: 8793.33 | L138: 8858.57 | M138: 8728.1 | N138: 8591.35 | O138: 2362500 | P138: 0.17%
A139: 129 | B139: FMCG | C139: MCDOWELL-N | D139: 2023-02-23 | E139: 746.15 | F139: 746.85 | G139: 741.30 | H139: 736.45 | I139: 730.90 | J139: 751.70 | K139: 757.25 | L139: 762.10 | M139: 752.4 | N139: 742 | O139: 13760000 | P139: -1.29%
A140: 130 | B140: Others | C140: MCX | D140: 2023-02-23 | E140: 1374.90 | F140: 1371.33 | G140: 1360.67 | H140: 1346.43 | I140: 1335.77 | J140: 1385.57 | K140: 1396.23 | L140: 1410.47 | M140: 1382 | N140: 1357.1 | O140: 1273600 | P140: -12.77%
A141: 131 | B141: Pharma | C141: METROPOLIS | D141: 2023-02-23 | E141: 1337.80 | F141: 1337.97 | G141: 1326.73 | H141: 1315.67 | I141: 1304.43 | J141: 1349.03 | K141: 1360.27 | L141: 1371.33 | M141: 1349.2 | N141: 1326.9 | O141: 1115600 | P141: -5.84%
A142: 132 | B142: Finance | C142: MFSL | D142: 2023-02-23 | E142: 700.60 | F142: 703.10 | G142: 694.65 | H142: 688.70 | I142: 680.25 | J142: 709.05 | K142: 717.50 | L142: 723.45 | M142: 711.55 | N142: 697.15 | O142: 3060850 | P142: -7.39%
A143: 133 | B143: Oil_Gas | C143: MGL | D143: 2023-02-23 | E143: 883.30 | F143: 885.43 | G143: 876.87 | H143: 870.43 | I143: 861.87 | J143: 891.87 | K143: 900.43 | L143: 906.87 | M143: 894 | N143: 879 | O143: 2268000 | P143: -1.63%
A144: 134 | B144: Automobile | C144: MOTHERSON | D144: 2023-02-23 | E144: 82.05 | F144: 81.78 | G144: 81.32 | H144: 80.58 | I144: 80.12 | J144: 82.52 | K144: 82.98 | L144: 83.72 | M144: 82.25 | N144: 81.05 | O144: 73332000 | P144: 3.85%
A145: 135 | B145: Technology | C145: MPHASIS | D145: 2023-02-23 | E145: 2196.55 | F145: 2188.90 | G145: 2170.05 | H145: 2143.55 | I145: 2124.70 | J145: 2215.40 | K145: 2234.25 | L145: 2260.75 | M145: 2207.75 | N145: 2162.4 | O145: 1632675 | P145: -5.97%
A146: 136 | B146: Automobile | C146: MRF | D146: 2023-02-23 | E146: 87760.15 | F146: 88356.93 | G146: 86897.12 | H146: 86034.08 | I146: 84574.27 | J146: 89219.97 | K146: 90679.78 | L146: 91542.82 | M146: 89816.75 | N146: 87493.9 | O146: 61300 | P146: -4.02%
A147: 137 | B147: Finance | C147: MUTHOOTFIN | D147: 2023-02-23 | E147: 971.40 | F147: 974.70 | G147: 963.15 | H147: 954.90 | I147: 943.35 | J147: 982.95 | K147: 994.50 | L147: 1002.75 | M147: 986.25 | N147: 966.45 | O147: 7654900 | P147: 0.08%
A148: 138 | B148: Metals | C148: NATIONALUM | D148: 2023-02-23 | E148: 81.10 | F148: 80.95 | G148: 80.40 | H148: 79.70 | I148: 79.15 | J148: 81.65 | K148: 82.20 | L148: 82.90 | M148: 81.5 | N148: 80.25 | O148: 55500000 | P148: -3.01%
A149: 139 | B149: Others | C149: NAUKRI | D149: 2023-02-23 | E149: 3499.20 | F149: 3506.83 | G149: 3470.62 | H149: 3442.03 | I149: 3405.82 | J149: 3535.42 | K149: 3571.63 | L149: 3600.22 | M149: 3543.05 | N149: 3478.25 | O149: 1726250 | P149: -1.39%
A150: 140 | B150: Chemical | C150: NAVINFLUOR | D150: 2023-02-23 | E150: 4234.50 | F150: 4234.48 | G150: 4195.02 | H150: 4155.53 | I150: 4116.07 | J150: 4273.97 | K150: 4313.43 | L150: 4352.92 | M150: 4273.95 | N150: 4195 | O150: 580650 | P150: 6.52%
A151: 141 | B151: FMCG | C151: NESTLEIND | D151: 2023-02-23 | E151: 18677.10 | F151: 18726.62 | G151: 18604.23 | H151: 18531.37 | I151: 18408.98 | J151: 18799.48 | K151: 18921.87 | L151: 18994.73 | M151: 18849 | N151: 18653.75 | O151: 303360 | P151: -1.04%
A152: 142 | B152: Metals | C152: NMDC | D152: 2023-02-23 | E152: 115.40 | F152: 116.65 | G152: 113.75 | H152: 112.10 | I152: 109.20 | J152: 118.30 | K152: 121.20 | L152: 122.85 | M152: 119.55 | N152: 115 | O152: 43195500 | P152: -6.56%
A153: 143 | B153: Power | C153: NTPC | D153: 2023-02-23 | E153: 170.55 | F153: 170.70 | G153: 168.65 | H153: 166.75 | I153: 164.70 | J153: 172.60 | K153: 174.65 | L153: 176.55 | M153: 172.75 | N153: 168.8 | O153: 76317300 | P153: -1.11%
A154: 144 | B154: Realty | C154: OBEROIRLTY | D154: 2023-02-23 | E154: 840.55 | F154: 844.15 | G154: 833.40 | H154: 826.25 | I154: 815.50 | J154: 851.30 | K154: 862.05 | L154: 869.20 | M154: 854.9 | N154: 837 | O154: 6010200 | P154: -2.66%
A155: 145 | B155: Technology | C155: OFSS | D155: 2023-02-23 | E155: 3159.95 | F155: 3167.72 | G155: 3137.23 | H155: 3114.52 | I155: 3084.03 | J155: 3190.43 | K155: 3220.92 | L155: 3243.63 | M155: 3198.2 | N155: 3145 | O155: 371200 | P155: -5.31%
A156: 146 | B156: Oil_Gas | C156: ONGC | D156: 2023-02-23 | E156: 153.50 | F156: 153.13 | G156: 152.02 | H156: 150.53 | I156: 149.42 | J156: 154.62 | K156: 155.73 | L156: 157.22 | M156: 154.25 | N156: 151.65 | O156: 46646600 | P156: 5.86%
A157: 147 | B157: Textile | C157: PAGEIND | D157: 2023-02-23 | E157: 38054.75 | F157: 38136.85 | G157: 37721.45 | H157: 37388.15 | I157: 36972.75 | J157: 38470.15 | K157: 38885.55 | L157: 39218.85 | M157: 38552.25 | N157: 37803.55 | O157: 126645 | P157: 2.58%
A158: 148 | B158: Pharma | C158: PEL | D158: 2023-02-23 | E158: 807.10 | F158: 812.32 | G158: 797.68 | H158: 788.27 | I158: 773.63 | J158: 821.73 | K158: 836.37 | L158: 845.78 | M158: 826.95 | N158: 802.9 | O158: 5056700 | P158: 0.59%
A159: 149 | B159: Technology | C159: PERSISTENT | D159: 2023-02-23 | E159: 5005.35 | F159: 4970.20 | G159: 4925.15 | H159: 4844.95 | I159: 4799.90 | J159: 5050.40 | K159: 5095.45 | L159: 5175.65 | M159: 5015.25 | N159: 4890 | O159: 978250 | P159: 4.29%
A160: 150 | B160: Oil_Gas | C160: PETRONET | D160: 2023-02-23 | E160: 217.05 | F160: 215.40 | G160: 213.25 | H160: 209.45 | I160: 207.30 | J160: 219.20 | K160: 221.35 | L160: 225.15 | M160: 217.55 | N160: 211.6 | O160: 12756000 | P160: -5.24%
A161: 151 | B161: Finance | C161: PFC | D161: 2023-02-23 | E161: 146.40 | F161: 146.75 | G161: 144.55 | H161: 142.70 | I161: 140.50 | J161: 148.60 | K161: 150.80 | L161: 152.65 | M161: 148.95 | N161: 144.9 | O161: 50964000 | P161: -7.72%
A162: 152 | B162: FMCG | C162: PIDILITIND | D162: 2023-02-23 | E162: 2290.45 | F162: 2296.25 | G162: 2271.50 | H162: 2252.55 | I162: 2227.80 | J162: 2315.20 | K162: 2339.95 | L162: 2358.90 | M162: 2321 | N162: 2277.3 | O162: 2885000 | P162: 1.29%
A163: 153 | B163: Chemical | C163: PIIND | D163: 2023-02-23 | E163: 3228.30 | F163: 3224.28 | G163: 3185.17 | H163: 3142.03 | I163: 3102.92 | J163: 3267.42 | K163: 3306.53 | L163: 3349.67 | M163: 3263.4 | N163: 3181.15 | O163: 2104500 | P163: -0.63%
A164: 154 | B164: Banking | C164: PNB | D164: 2023-02-23 | E164: 47.85 | F164: 48.03 | G164: 47.22 | H164: 46.58 | I164: 45.77 | J164: 48.67 | K164: 49.48 | L164: 50.12 | M164: 48.85 | N164: 47.4 | O164: 233104000 | P164: -2.72%
A165: 155 | B165: Others | C165: POLYCAB | D165: 2023-02-23 | E165: 3008.50 | F165: 3020.57 | G165: 2978.08 | H165: 2947.67 | I165: 2905.18 | J165: 3050.98 | K165: 3093.47 | L165: 3123.88 | M165: 3063.05 | N165: 2990.15 | O165: 870000 | P165: -9.63%
A166: 156 | B166: Power | C166: POWERGRID | D166: 2023-02-23 | E166: 214.85 | F166: 215.15 | G166: 212.95 | H166: 211.05 | I166: 208.85 | J166: 217.05 | K166: 219.25 | L166: 221.15 | M166: 217.35 | N166: 213.25 | O166: 32030100 | P166: 2.34%
A167: 157 | B167: Media | C167: PVR | D167: 2023-02-23 | E167: 1615.05 | F167: 1626.25 | G167: 1600.05 | H167: 1585.05 | I167: 1558.85 | J167: 1641.25 | K167: 1667.45 | L167: 1682.45 | M167: 1652.45 | N167: 1611.25 | O167: 2487991 | P167: -4.32%
A168: 158 | B168: Others | C168: RAIN | D168: 2023-02-23 | E168: 159.00 | F168: 160.08 | G168: 156.97 | H168: 154.93 | I168: 151.82 | J168: 162.12 | K168: 165.23 | L168: 167.27 | M168: 163.2 | N168: 158.05 | O168: 10710000 | P168: -2.55%
A169: 159 | B169: Cement | C169: RAMCOCEM | D169: 2023-02-23 | E169: 725.20 | F169: 724.12 | G169: 711.43 | H169: 697.67 | I169: 684.98 | J169: 737.88 | K169: 750.57 | L169: 764.33 | M169: 736.8 | N169: 710.35 | O169: 3014100 | P169: -12.68%
A170: 160 | B170: Banking | C170: RBLBANK | D170: 2023-02-23 | E170: 153.80 | F170: 155.13 | G170: 151.57 | H170: 149.33 | I170: 145.77 | J170: 157.37 | K170: 160.93 | L170: 163.17 | M170: 158.7 | N170: 152.9 | O170: 27450000 | P170: -7.15%
A171: 161 | B171: Power | C171: RECLTD | D171: 2023-02-23 | E171: 111.95 | F171: 112.18 | G171: 111.12 | H171: 110.28 | I171: 109.22 | J171: 113.02 | K171: 114.08 | L171: 114.92 | M171: 113.25 | N171: 111.35 | O171: 50304000 | P171: -7.50%
A172: 162 | B172: Oil_Gas | C172: RELIANCE | D172: 2023-02-23 | E172: 2374.50 | F172: 2390.57 | G172: 2354.53 | H172: 2334.57 | I172: 2298.53 | J172: 2410.53 | K172: 2446.57 | L172: 2466.53 | M172: 2426.6 | N172: 2370.6 | O172: 38809750 | P172: 3.18%
A173: 163 | B173: Metals | C173: SAIL | D173: 2023-02-23 | E173: 84.40 | F173: 85.13 | G173: 83.07 | H173: 81.73 | I173: 79.67 | J173: 86.47 | K173: 88.53 | L173: 89.87 | M173: 87.2 | N173: 83.8 | O173: 119968000 | P173: 1.13%
A174: 164 | B174: Banking | C174: SBICARD | D174: 2023-02-23 | E174: 743.05 | F174: 740.57 | G174: 735.48 | H174: 727.92 | I174: 722.83 | J174: 748.13 | K174: 753.22 | L174: 760.78 | M174: 745.65 | N174: 733 | O174: 8750400 | P174: 1.17%
A175: 165 | B175: Finance | C175: SBILIFE | D175: 2023-02-23 | E175: 1130.45 | F175: 1135.58 | G175: 1121.72 | H175: 1112.98 | I175: 1099.12 | J175: 1144.32 | K175: 1158.18 | L175: 1166.92 | M175: 1149.45 | N175: 1126.85 | O175: 6732000 | P175: -0.09%
A176: 166 | B176: Banking | C176: SBIN | D176: 2023-02-23 | E176: 516.15 | F176: 516.73 | G176: 511.57 | H176: 506.98 | I176: 501.82 | J176: 521.32 | K176: 526.48 | L176: 531.07 | M176: 521.9 | N176: 512.15 | O176: 96660000 | P176: -0.89%
A177: 167 | B177: Cement | C177: SHREECEM | D177: 2023-02-23 | E177: 26176.45 | F177: 26197.68 | G177: 25861.57 | H177: 25546.68 | I177: 25210.57 | J177: 26512.57 | K177: 26848.68 | L177: 27163.57 | M177: 26533.8 | N177: 25882.8 | O177: 378300 | P177: -4.84%
A178: 168 | B178: Capital_Goods | C178: SIEMENS | D178: 2023-02-23 | E178: 3255.20 | F178: 3268.40 | G178: 3231.85 | H178: 3208.50 | I178: 3171.95 | J178: 3291.75 | K178: 3328.30 | L178: 3351.65 | M178: 3304.95 | N178: 3245.05 | O178: 2237125 | P178: 2.24%
A179: 169 | B179: Textile | C179: SRF | D179: 2023-02-23 | E179: 2270.20 | F179: 2274.42 | G179: 2240.13 | H179: 2210.07 | I179: 2175.78 | J179: 2304.48 | K179: 2338.77 | L179: 2368.83 | M179: 2308.7 | N179: 2244.35 | O179: 4139250 | P179: -4.30%
A180: 170 | B180: Finance | C180: SHRIRAMFIN | D180: 2023-02-23 | E180: 1207.45 | F180: 1206.92 | G180: 1192.98 | H180: 1178.52 | I180: 1164.58 | J180: 1221.38 | K180: 1235.32 | L180: 1249.78 | M180: 1220.85 | N180: 1192.45 | O180: 5067600 | P180: -0.62%
A181: 171 | B181: Pharma | C181: SUNPHARMA | D181: 2023-02-23 | E181: 968.65 | F181: 970.55 | G181: 963.25 | H181: 957.85 | I181: 950.55 | J181: 975.95 | K181: 983.25 | L181: 988.65 | M181: 977.85 | N181: 965.15 | O181: 17558100 | P181: 0.84%
A182: 172 | B182: Media | C182: SUNTV | D182: 2023-02-23 | E182: 437.30 | F182: 438.25 | G182: 431.20 | H182: 425.10 | I182: 418.05 | J182: 444.35 | K182: 451.40 | L182: 457.50 | M182: 445.3 | N182: 432.15 | O182: 10326000 | P182: 13.79%
A183: 173 | B183: Pharma | C183: SYNGENE | D183: 2023-02-23 | E183: 579.90 | F183: 577.67 | G183: 572.38 | H183: 564.87 | I183: 559.58 | J183: 585.18 | K183: 590.47 | L183: 597.98 | M183: 582.95 | N183: 570.15 | O183: 3224000 | P183: 6.65%
A184: 174 | B184: Chemical | C184: TATACHEM | D184: 2023-02-23 | E184: 964.15 | F184: 973.68 | G184: 947.92 | H184: 931.68 | I184: 905.92 | J184: 989.92 | K184: 1015.68 | L184: 1031.92 | M184: 999.45 | N184: 957.45 | O184: 5917000 | P184: -8.92%
A185: 175 | B185: Telecom | C185: TATACOMM | D185: 2023-02-23 | E185: 1219.05 | F185: 1219.75 | G185: 1211.50 | H185: 1203.95 | I185: 1195.70 | J185: 1227.30 | K185: 1235.55 | L185: 1243.10 | M185: 1228 | N185: 1212.2 | O185: 2491000 | P185: -1.33%
A186: 176 | B186: FMCG | C186: TATACONSUM | D186: 2023-02-23 | E186: 722.40 | F186: 725.48 | G186: 717.52 | H186: 712.63 | I186: 704.67 | J186: 730.37 | K186: 738.33 | L186: 743.22 | M186: 733.45 | N186: 720.6 | O186: 12007800 | P186: 5.58%
A187: 177 | B187: Automobile | C187: TATAMOTORS | D187: 2023-02-23 | E187: 429.80 | F187: 431.88 | G187: 427.02 | H187: 424.23 | I187: 419.37 | J187: 434.67 | K187: 439.53 | L187: 442.32 | M187: 436.75 | N187: 429.1 | O187: 70396425 | P187: -5.90%
A188: 178 | B188: Power | C188: TATAPOWER | D188: 2023-02-23 | E188: 202.00 | F188: 203.62 | G188: 199.73 | H188: 197.47 | I188: 193.58 | J188: 205.88 | K188: 209.77 | L188: 212.03 | M188: 207.5 | N188: 201.35 | O188: 107325000 | P188: 2.42%
A189: 179 | B189: Metals | C189: TATASTEEL | D189: 2023-02-23 | E189: 111.20 | F189: 111.70 | G189: 109.90 | H189: 108.60 | I189: 106.80 | J189: 113.00 | K189: 114.80 | L189: 116.10 | M189: 113.5 | N189: 110.4 | O189: 182374500 | P189: -1.12%
A190: 180 | B190: Technology | C190: TCS | D190: 2023-02-23 | E190: 3406.75 | F190: 3417.85 | G190: 3387.90 | H190: 3369.05 | I190: 3339.10 | J190: 3436.70 | K190: 3466.65 | L190: 3485.50 | M190: 3447.8 | N190: 3399 | O190: 10374350 | P190: 5.59%
A191: 181 | B191: Technology | C191: TECHM | D191: 2023-02-23 | E191: 1126.85 | F191: 1126.83 | G191: 1119.22 | H191: 1111.58 | I191: 1103.97 | J191: 1134.47 | K191: 1142.08 | L191: 1149.72 | M191: 1134.45 | N191: 1119.2 | O191: 12847800 | P191: -2.29%
A192: 182 | B192: FMCG | C192: TITAN | D192: 2023-02-23 | E192: 2428.15 | F192: 2437.00 | G192: 2408.30 | H192: 2388.45 | I192: 2359.75 | J192: 2456.85 | K192: 2485.55 | L192: 2505.40 | M192: 2465.7 | N192: 2417.15 | O192: 6634875 | P192: 3.09%
A193: 183 | B193: Pharma | C193: TORNTPHARM | D193: 2023-02-23 | E193: 1483.20 | F193: 1483.50 | G193: 1474.60 | H193: 1466.00 | I193: 1457.10 | J193: 1492.10 | K193: 1501.00 | L193: 1509.60 | M193: 1492.4 | N193: 1474.9 | O193: 1875000 | P193: 0.40%
A194: 184 | B194: Power | C194: TORNTPOWER | D194: 2023-02-23 | E194: 496.60 | F194: 497.13 | G194: 489.07 | H194: 481.53 | I194: 473.47 | J194: 504.67 | K194: 512.73 | L194: 520.27 | M194: 505.2 | N194: 489.6 | O194: 3529500 | P194: -16.02%
A195: 185 | B195: Others | C195: TRENT | D195: 2023-02-23 | E195: 1343.65 | F195: 1339.00 | G195: 1326.25 | H195: 1308.85 | I195: 1296.10 | J195: 1356.40 | K195: 1369.15 | L195: 1386.55 | M195: 1351.75 | N195: 1321.6 | O195: 4145200 | P195: -1.56%
A196: 186 | B196: Automobile | C196: TVSMOTOR | D196: 2023-02-23 | E196: 1113.40 | F196: 1115.58 | G196: 1104.87 | H196: 1096.33 | I196: 1085.62 | J196: 1124.12 | K196: 1134.83 | L196: 1143.37 | M196: 1126.3 | N196: 1107.05 | O196: 7839300 | P196: -3.14%
A197: 187 | B197: FMCG | C197: UBL | D197: 2023-02-23 | E197: 1436.80 | F197: 1441.57 | G197: 1426.43 | H197: 1416.07 | I197: 1400.93 | J197: 1451.93 | K197: 1467.07 | L197: 1477.43 | M197: 1456.7 | N197: 1431.2 | O197: 1723600 | P197: -1.22%
A198: 188 | B198: Cement | C198: ULTRACEMCO | D198: 2023-02-23 | E198: 7201.05 | F198: 7237.75 | G198: 7150.50 | H198: 7099.95 | I198: 7012.70 | J198: 7288.30 | K198: 7375.55 | L198: 7426.10 | M198: 7325 | N198: 7187.2 | O198: 2050100 | P198: -1.15%
A199: 189 | B199: Chemical | C199: UPL | D199: 2023-02-23 | E199: 740.50 | F199: 742.30 | G199: 736.20 | H199: 731.90 | I199: 725.80 | J199: 746.60 | K199: 752.70 | L199: 757.00 | M199: 748.4 | N199: 738 | O199: 14027000 | P199: 1.58%
A200: 190 | B200: Metals | C200: VEDL | D200: 2023-02-23 | E200: 302.85 | F200: 303.93 | G200: 299.52 | H200: 296.18 | I200: 291.77 | J200: 307.27 | K200: 311.68 | L200: 315.02 | M200: 308.35 | N200: 300.6 | O200: 33446000 | P200: 3.38%
A201: 191 | B201: Capital_Goods | C201: VOLTAS | D201: 2023-02-23 | E201: 910.65 | F201: 909.32 | G201: 895.18 | H201: 879.72 | I201: 865.58 | J201: 924.78 | K201: 938.92 | L201: 954.38 | M201: 923.45 | N201: 893.85 | O201: 5526000 | P201: -14.02%
A202: 192 | B202: Capital_Goods | C202: WHIRLPOOL | D202: 2023-02-23 | E202: 1279.90 | F202: 1281.77 | G202: 1268.03 | H202: 1256.17 | I202: 1242.43 | J202: 1293.63 | K202: 1307.37 | L202: 1319.23 | M202: 1295.5 | N202: 1269.9 | O202: 1108800 | P202: 4.21%
A203: 193 | B203: Technology | C203: WIPRO | D203: 2023-02-23 | E203: 394.80 | F203: 396.15 | G203: 392.60 | H203: 390.40 | I203: 386.85 | J203: 398.35 | K203: 401.90 | L203: 404.10 | M203: 399.7 | N203: 393.95 | O203: 38847000 | P203: 2.90%
A204: 194 | B204: Media | C204: ZEEL | D204: 2023-02-23 | E204: 206.20 | F204: 205.82 | G204: 200.93 | H204: 195.67 | I204: 190.78 | J204: 211.08 | K204: 215.97 | L204: 221.23 | M204: 210.7 | N204: 200.55 | O204: 81240000 | P204: -1.51%
A205: 195 | B205: Pharma | C205: ZYDUSLIFE | D205: 2023-02-23 | E205: 463.95 | F205: 464.78 | G205: 459.67 | H205: 455.38 | I205: 450.27 | J205: 469.07 | K205: 474.18 | L205: 478.47 | M205: 469.9 | N205: 460.5 | O205: 7882200 | P205: -3.18%
A222: Pivot Point: This is trigger point for intra day buy/sell based on the price range of the previous day
... 14 more rows

Sheet Cash Intra
M5: Back to Main Page
A6: FOR INTRA DAY TRADING | K6: =Main!B10 -> 2023-02-23
A8: Sr.no | C8: CLOSE RATE | D8: Pivot Point | E8: Supports | H8: Resistances
E9: S1 | F9: S2 | G9: S3 | H9: R1 | I9: R2 | J9: R3 | K9: HIGH | L9: LOW | M9: Total Trade Quanity in Lakhs
A10: 1 | B10: Nifty 50 | C10: 17554.30 | D10: 17618.75 | E10: 17465.00 | F10: 17375.70 | G10: 17221.95 | H10: 17708.05 | I10: 17861.80 | J10: 17951.10 | K10: 17772.50 | L10: 17529.45
A11: 2 | B11: Nifty Bank | C11: 39995.90 | D11: 40141.38 | E11: 39753.52 | F11: 39511.13 | G11: 39123.27 | H11: 40383.77 | I11: 40771.63 | J11: 41014.02 | K11: 40529.25 | L11: 39899.00
A12: 3 | B12: Nifty CPSE | C12: 2844.05 | D12: 2849.88 | E12: 2826.72 | F12: 2809.38 | G12: 2786.22 | H12: 2867.22 | I12: 2890.38 | J12: 2907.72 | K12: 2873.05 | L12: 2832.55
A13: 4 | B13: Nifty Infra | C13: 5065.55 | D13: 5090.80 | E13: 5030.80 | F13: 4996.05 | G13: 4936.05 | H13: 5125.55 | I13: 5185.55 | J13: 5220.30 | K13: 5150.80 | L13: 5056.05
A14: 5 | B14: Nifty IT | C14: 30608.20 | D14: 30642.48 | E14: 30469.07 | F14: 30329.93 | G14: 30156.52 | H14: 30781.62 | I14: 30955.03 | J14: 31094.17 | K14: 30815.90 | L14: 30503.35
A15: 6 | B15: Nifty PSE | C15: 4353.85 | D15: 4364.55 | E15: 4325.30 | F15: 4296.75 | G15: 4257.50 | H15: 4393.10 | I15: 4432.35 | J15: 4460.90 | K15: 4403.80 | L15: 4336.00
A16: 7 | B16: Nifty Midcap 50 | C16: 8519.75 | D16: 8536.57 | E16: 8474.28 | F16: 8428.82 | G16: 8366.53 | H16: 8582.03 | I16: 8644.32 | J16: 8689.78 | K16: 8598.85 | L16: 8491.10
A17: 8 | B17: ABB | C17: 3172.8 | D17: 3163.67 | E17: 3138.43 | F17: 3104.07 | G17: 3078.83 | H17: 3198.03 | I17: 3223.27 | J17: 3257.63 | K17: 3188.9 | L17: 3129.3 | M17: 2.18407
A18: 9 | B18: ACC | C18: 1752.2 | D18: 1766.33 | E18: 1705.67 | F18: 1659.13 | G18: 1598.47 | H18: 1812.87 | I18: 1873.53 | J18: 1920.07 | K18: 1827 | L18: 1719.8 | M18: 12.37245
A19: 10 | B19: AUBANK | C19: 595.4 | D19: 596.65 | E19: 587.00 | F19: 578.60 | G19: 568.95 | H19: 605.05 | I19: 614.70 | J19: 623.10 | K19: 606.3 | L19: 588.25 | M19: 10.773
A20: 11 | B20: ABBOTINDIA | C20: 20216.2 | D20: 20161.08 | E20: 20023.22 | F20: 19830.23 | G20: 19692.37 | H20: 20354.07 | I20: 20491.93 | J20: 20684.92 | K20: 20298.95 | L20: 19968.1 | M20: 0.09198
A21: 12 | B21: ADANIENT | C21: 1404.85 | D21: 1448.68 | E21: 1337.37 | F21: 1269.88 | G21: 1158.57 | H21: 1516.17 | I21: 1627.48 | J21: 1694.97 | K21: 1560 | L21: 1381.2 | M21: 106.06476
A22: 13 | B22: ADANIGREEN | C22: 539.05 | D22: 542.03 | E22: 536.07 | F22: 533.08 | G22: 527.12 | H22: 545.02 | I22: 550.98 | J22: 553.97 | K22: 548 | L22: 539.05 | M22: 8.61922
A23: 14 | B23: ADANIPORTS | C23: 547.1 | D23: 556.88 | E23: 530.22 | F23: 513.33 | G23: 486.67 | H23: 573.77 | I23: 600.43 | J23: 617.32 | K23: 583.55 | L23: 540 | M23: 109.94235
A24: 15 | B24: ATGL | C24: 833 | D24: 833.00 | E24: 833.00 | F24: 833.00 | G24: 833.00 | H24: 833.00 | I24: 833.00 | J24: 833.00 | K24: 833 | L24: 833 | M24: 0.61103
A25: 16 | B25: ADANITRANS | C25: 789.2 | D25: 789.20 | E25: 789.20 | F25: 789.20 | G25: 789.20 | H25: 789.20 | I25: 789.20 | J25: 789.20 | K25: 789.2 | L25: 789.2 | M25: 0.57508
A26: 17 | B26: AWL | C26: 390.3 | D26: 396.53 | E26: 384.07 | F26: 377.83 | G26: 365.37 | H26: 402.77 | I26: 415.23 | J26: 421.47 | K26: 409 | L26: 390.3 | M26: 33.93638
A27: 18 | B27: ABCAPITAL | C27: 139.1 | D27: 140.30 | E27: 137.45 | F27: 135.80 | G27: 132.95 | H27: 141.95 | I27: 144.80 | J27: 146.45 | K27: 143.15 | L27: 138.65 | M27: 16.17711
A28: 19 | B28: ABFRL | C28: 234.4 | D28: 238.12 | E28: 229.33 | F28: 224.27 | G28: 215.48 | H28: 243.18 | I28: 251.97 | J28: 257.03 | K28: 246.9 | L28: 233.05 | M28: 49.05914
A29: 20 | B29: ALKEM | C29: 3276.4 | D29: 3268.05 | E29: 3244.10 | F29: 3211.80 | G29: 3187.85 | H29: 3300.35 | I29: 3324.30 | J29: 3356.60 | K29: 3292 | L29: 3235.75 | M29: 0.75751
A30: 21 | B30: AMBUJACEM | C30: 335.4 | D30: 339.83 | E30: 327.67 | F30: 319.93 | G30: 307.77 | H30: 347.57 | I30: 359.73 | J30: 367.47 | K30: 352 | L30: 332.1 | M30: 126.96127
A31: 22 | B31: APOLLOHOSP | C31: 4449.1 | D31: 4475.02 | E31: 4414.08 | F31: 4379.07 | G31: 4318.13 | H31: 4510.03 | I31: 4570.97 | J31: 4605.98 | K31: 4535.95 | L31: 4440 | M31: 3.33978
A32: 23 | B32: ASHOKLEY | C32: 143.4 | D32: 144.80 | E32: 141.60 | F32: 139.80 | G32: 136.60 | H32: 146.60 | I32: 149.80 | J32: 151.60 | K32: 148 | L32: 143 | M32: 76.08729
A33: 24 | B33: ASIANPAINT | C33: 2795.95 | D33: 2796.63 | E33: 2779.32 | F33: 2762.68 | G33: 2745.37 | H33: 2813.27 | I33: 2830.58 | J33: 2847.22 | K33: 2813.95 | L33: 2780 | M33: 5.8027
A34: 25 | B34: ASTRAL | C34: 1856.9 | D34: 1883.55 | E34: 1823.35 | F34: 1789.80 | G34: 1729.60 | H34: 1917.10 | I34: 1977.30 | J34: 2010.85 | K34: 1943.75 | L34: 1850 | M34: 6.86134
A35: 26 | B35: AUROPHARMA | C35: 470.25 | D35: 467.43 | E35: 460.87 | F35: 451.48 | G35: 444.92 | H35: 476.82 | I35: 483.38 | J35: 492.77 | K35: 474 | L35: 458.05 | M35: 25.78321
A36: 27 | B36: DMART | C36: 3500.15 | D36: 3502.87 | E36: 3483.88 | F36: 3467.62 | G36: 3448.63 | H36: 3519.13 | I36: 3538.12 | J36: 3554.38 | K36: 3521.85 | L36: 3486.6 | M36: 1.1755
A37: 28 | B37: AXISBANK | C37: 833.35 | D37: 835.30 | E37: 827.60 | F37: 821.85 | G37: 814.15 | H37: 841.05 | I37: 848.75 | J37: 854.50 | K37: 843 | L37: 829.55 | M37: 69.84037
A38: 29 | B38: BAJAJ-AUTO | C38: 3840.7 | D38: 3848.63 | E38: 3807.02 | F38: 3773.33 | G38: 3731.72 | H38: 3882.32 | I38: 3923.93 | J38: 3957.62 | K38: 3890.25 | L38: 3814.95 | M38: 4.77992
A39: 30 | B39: BAJFINANCE | C39: 6198.65 | D39: 6247.88 | E39: 6135.77 | F39: 6072.88 | G39: 5960.77 | H39: 6310.77 | I39: 6422.88 | J39: 6485.77 | K39: 6360 | L39: 6185 | M39: 9.347
A40: 31 | B40: BAJAJFINSV | C40: 1360.95 | D40: 1369.65 | E40: 1347.30 | F40: 1333.65 | G40: 1311.30 | H40: 1383.30 | I40: 1405.65 | J40: 1419.30 | K40: 1392 | L40: 1356 | M40: 14.02505
A41: 32 | B41: BAJAJHLDNG | C41: 6035.5 | D41: 6033.68 | E41: 6001.07 | F41: 5966.63 | G41: 5934.02 | H41: 6068.12 | I41: 6100.73 | J41: 6135.17 | K41: 6066.3 | L41: 5999.25 | M41: 0.09943
A42: 33 | B42: BALKRISIND | C42: 2052.7 | D42: 2045.78 | E42: 2017.92 | F42: 1983.13 | G42: 1955.27 | H42: 2080.57 | I42: 2108.43 | J42: 2143.22 | K42: 2073.65 | L42: 2011 | M42: 1.76624
A43: 34 | B43: BANDHANBNK | C43: 228 | D43: 227.77 | E43: 226.28 | F43: 224.57 | G43: 223.08 | H43: 229.48 | I43: 230.97 | J43: 232.68 | K43: 229.25 | L43: 226.05 | M43: 42.11645
A44: 35 | B44: BANKBARODA | C44: 157.1 | D44: 157.35 | E44: 155.35 | F44: 153.60 | G44: 151.60 | H44: 159.10 | I44: 161.10 | J44: 162.85 | K44: 159.35 | L44: 155.6 | M44: 227.46525
A45: 36 | B45: BANKINDIA | C45: 70.2 | D45: 70.52 | E45: 69.18 | F45: 68.17 | G45: 66.83 | H45: 71.53 | I45: 72.87 | J45: 73.88 | K45: 71.85 | L45: 69.5 | M45: 117.28238
A46: 37 | B46: BATAINDIA | C46: 1424.9 | D46: 1418.12 | E46: 1409.23 | F46: 1393.57 | G46: 1384.68 | H46: 1433.78 | I46: 1442.67 | J46: 1458.33 | K46: 1427 | L46: 1402.45 | M46: 3.94468
A47: 38 | B47: BERGEPAINT | C47: 566.55 | D47: 565.50 | E47: 561.05 | F47: 555.55 | G47: 551.10 | H47: 571.00 | I47: 575.45 | J47: 580.95 | K47: 569.95 | L47: 560 | M47: 8.8664
A48: 39 | B48: BEL | C48: 95 | D48: 95.32 | E48: 94.48 | F48: 93.97 | G48: 93.13 | H48: 95.83 | I48: 96.67 | J48: 97.18 | K48: 96.15 | L48: 94.8 | M48: 145.89841
A49: 40 | B49: BHARATFORG | C49: 841.9 | D49: 847.03 | E49: 831.92 | F49: 821.93 | G49: 806.82 | H49: 857.02 | I49: 872.13 | J49: 882.12 | K49: 862.15 | L49: 837.05 | M49: 9.77266
A50: 41 | B50: BHEL | C50: 68.8 | D50: 69.23 | E50: 67.97 | F50: 67.13 | G50: 65.87 | H50: 70.07 | I50: 71.33 | J50: 72.17 | K50: 70.5 | L50: 68.4 | M50: 120.57163
A51: 42 | B51: BPCL | C51: 320.45 | D51: 319.88 | E51: 316.77 | F51: 313.08 | G51: 309.97 | H51: 323.57 | I51: 326.68 | J51: 330.37 | K51: 323 | L51: 316.2 | M51: 40.89274
A52: 43 | B52: BHARTIARTL | C52: 772.15 | D52: 773.43 | E52: 765.22 | F52: 758.28 | G52: 750.07 | H52: 780.37 | I52: 788.58 | J52: 795.52 | K52: 781.65 | L52: 766.5 | M52: 32.61898
A53: 44 | B53: BIOCON | C53: 222.25 | D53: 223.90 | E53: 219.80 | F53: 217.35 | G53: 213.25 | H53: 226.35 | I53: 230.45 | J53: 232.90 | K53: 228 | L53: 221.45 | M53: 25.12629
A54: 45 | B54: BOSCHLTD | C54: 18311.95 | D54: 18337.75 | E54: 18206.20 | F54: 18100.45 | G54: 17968.90 | H54: 18443.50 | I54: 18575.05 | J54: 18680.80 | K54: 18469.3 | L54: 18232 | M54: 0.2423
A55: 46 | B55: BRITANNIA | C55: 4484.5 | D55: 4501.03 | E55: 4461.17 | F55: 4437.83 | G55: 4397.97 | H55: 4524.37 | I55: 4564.23 | J55: 4587.57 | K55: 4540.9 | L55: 4477.7 | M55: 2.62918
A56: 47 | B56: CANBK | C56: 274.15 | D56: 274.22 | E56: 270.43 | F56: 266.72 | G56: 262.93 | H56: 277.93 | I56: 281.72 | J56: 285.43 | K56: 278 | L56: 270.5 | M56: 92.32454
A57: 48 | B57: CHOLAFIN | C57: 765.4 | D57: 767.35 | E57: 760.65 | F57: 755.90 | G57: 749.20 | H57: 772.10 | I57: 778.80 | J57: 783.55 | K57: 774.05 | L57: 762.6 | M57: 6.75975
A58: 49 | B58: CIPLA | C58: 962.55 | D58: 964.80 | E58: 956.80 | F58: 951.05 | G58: 943.05 | H58: 970.55 | I58: 978.55 | J58: 984.30 | K58: 972.8 | L58: 959.05 | M58: 16.02953
A59: 50 | B59: CLEAN | C59: 1408.7 | D59: 1413.65 | E59: 1398.30 | F59: 1387.90 | G59: 1372.55 | H59: 1424.05 | I59: 1439.40 | J59: 1449.80 | K59: 1429 | L59: 1403.25 | M59: 0.28661
A60: 51 | B60: COALINDIA | C60: 211.85 | D60: 213.10 | E60: 210.35 | F60: 208.85 | G60: 206.10 | H60: 214.60 | I60: 217.35 | J60: 218.85 | K60: 215.85 | L60: 211.6 | M60: 60.03852
A61: 52 | B61: COFORGE | C61: 4342.55 | D61: 4330.15 | E61: 4291.30 | F61: 4240.05 | G61: 4201.20 | H61: 4381.40 | I61: 4420.25 | J61: 4471.50 | K61: 4369 | L61: 4278.9 | M61: 2.9841
A62: 53 | B62: COLPAL | C62: 1457.55 | D62: 1453.47 | E62: 1447.28 | F62: 1437.02 | G62: 1430.83 | H62: 1463.73 | I62: 1469.92 | J62: 1480.18 | K62: 1459.65 | L62: 1443.2 | M62: 2.29296
A63: 54 | B63: CONCOR | C63: 586.9 | D63: 589.20 | E63: 582.15 | F63: 577.40 | G63: 570.35 | H63: 593.95 | I63: 601.00 | J63: 605.75 | K63: 596.25 | L63: 584.45 | M63: 45.15924
A64: 55 | B64: COROMANDEL | C64: 889.9 | D64: 892.93 | E64: 881.97 | F64: 874.03 | G64: 863.07 | H64: 900.87 | I64: 911.83 | J64: 919.77 | K64: 903.9 | L64: 885 | M64: 4.21421
A65: 56 | B65: CROMPTON | C65: 296.65 | D65: 295.55 | E65: 293.10 | F65: 289.55 | G65: 287.10 | H65: 299.10 | I65: 301.55 | J65: 305.10 | K65: 298 | L65: 292 | M65: 7.64883
A66: 57 | B66: CUMMINSIND | C66: 1579.35 | D66: 1577.87 | E66: 1566.78 | F66: 1554.22 | G66: 1543.13 | H66: 1590.43 | I66: 1601.52 | J66: 1614.08 | K66: 1588.95 | L66: 1565.3 | M66: 7.7898
A67: 58 | B67: DLF | C67: 348.6 | D67: 350.62 | E67: 345.03 | F67: 341.47 | G67: 335.88 | H67: 354.18 | I67: 359.77 | J67: 363.33 | K67: 356.2 | L67: 347.05 | M67: 33.26607
A68: 59 | B68: DABUR | C68: 533.2 | D68: 532.77 | E68: 530.03 | F68: 526.87 | G68: 524.13 | H68: 535.93 | I68: 538.67 | J68: 541.83 | K68: 535.5 | L68: 529.6 | M68: 9.22754
A69: 60 | B69: DALBHARAT | C69: 1912.95 | D69: 1897.33 | E69: 1875.67 | F69: 1838.38 | G69: 1816.72 | H69: 1934.62 | I69: 1956.28 | J69: 1993.57 | K69: 1919 | L69: 1860.05 | M69: 4.83208
A70: 61 | B70: DEEPAKNTR | C70: 1795.45 | D70: 1793.57 | E70: 1772.88 | F70: 1750.32 | G70: 1729.63 | H70: 1816.13 | I70: 1836.82 | J70: 1859.38 | K70: 1814.25 | L70: 1771 | M70: 3.49522
A71: 62 | B71: DELHIVERY | C71: 335.9 | D71: 339.37 | E71: 331.03 | F71: 326.17 | G71: 317.83 | H71: 344.23 | I71: 352.57 | J71: 357.43 | K71: 347.7 | L71: 334.5 | M71: 161.49472
A72: 63 | B72: DIVISLAB | C72: 2920.55 | D72: 2920.50 | E72: 2904.40 | F72: 2888.25 | G72: 2872.15 | H72: 2936.65 | I72: 2952.75 | J72: 2968.90 | K72: 2936.6 | L72: 2904.35 | M72: 4.61368
A73: 64 | B73: DIXON | C73: 2644.2 | D73: 2663.82 | E73: 2616.58 | F73: 2588.97 | G73: 2541.73 | H73: 2691.43 | I73: 2738.67 | J73: 2766.28 | K73: 2711.05 | L73: 2636.2 | M73: 2.70867
A74: 65 | B74: LALPATHLAB | C74: 1939.8 | D74: 1945.63 | E74: 1906.52 | F74: 1873.23 | G74: 1834.12 | H74: 1978.92 | I74: 2018.03 | J74: 2051.32 | K74: 1984.75 | L74: 1912.35 | M74: 1.84024
A75: 66 | B75: DRREDDY | C75: 4476.7 | D75: 4488.77 | E75: 4457.33 | F75: 4437.97 | G75: 4406.53 | H75: 4508.13 | I75: 4539.57 | J75: 4558.93 | K75: 4520.2 | L75: 4469.4 | M75: 1.76461
A76: 67 | B76: EICHERMOT | C76: 3249.7 | D76: 3244.98 | E76: 3219.82 | F76: 3189.93 | G76: 3164.77 | H76: 3274.87 | I76: 3300.03 | J76: 3329.92 | K76: 3270.15 | L76: 3215.1 | M76: 5.70379
A77: 68 | B77: EMAMILTD | C77: 392.5 | D77: 391.67 | E77: 387.38 | F77: 382.27 | G77: 377.98 | H77: 396.78 | I77: 401.07 | J77: 406.18 | K77: 395.95 | L77: 386.55 | M77: 2.46718
A78: 69 | B78: ESCORTS | C78: 2087.9 | D78: 2095.63 | E78: 2071.27 | F78: 2054.63 | G78: 2030.27 | H78: 2112.27 | I78: 2136.63 | J78: 2153.27 | K78: 2120 | L78: 2079 | M78: 2.28163
A79: 70 | B79: NYKAA | C79: 144.3 | D79: 144.60 | E79: 142.30 | F79: 140.30 | G79: 138.00 | H79: 146.60 | I79: 148.90 | J79: 150.90 | K79: 146.9 | L79: 142.6 | M79: 68.98378
A80: 71 | B80: FEDERALBNK | C80: 125.2 | D80: 125.75 | E80: 124.25 | F80: 123.30 | G80: 121.80 | H80: 126.70 | I80: 128.20 | J80: 129.15 | K80: 127.25 | L80: 124.8 | M80: 52.83351
A81: 72 | B81: FORTIS | C81: 273.6 | D81: 275.07 | E81: 270.38 | F81: 267.17 | G81: 262.48 | H81: 278.28 | I81: 282.97 | J81: 286.18 | K81: 279.75 | L81: 271.85 | M81: 4.03951
A82: 73 | B82: GAIL | C82: 95.55 | D82: 94.90 | E82: 93.80 | F82: 92.05 | G82: 90.95 | H82: 96.65 | I82: 97.75 | J82: 99.50 | K82: 96 | L82: 93.15 | M82: 97.21273
A83: 74 | B83: GLAND | C83: 1326.5 | D83: 1331.23 | E83: 1301.52 | F83: 1276.53 | G83: 1246.82 | H83: 1356.22 | I83: 1385.93 | J83: 1410.92 | K83: 1360.95 | L83: 1306.25 | M83: 6.10922
A84: 75 | B84: GODREJCP | C84: 929.9 | D84: 932.97 | E84: 921.93 | F84: 913.97 | G84: 902.93 | H84: 940.93 | I84: 951.97 | J84: 959.93 | K84: 944 | L84: 925 | M84: 8.05179
A85: 76 | B85: GODREJPROP | C85: 1106.65 | D85: 1118.78 | E85: 1090.87 | F85: 1075.08 | G85: 1047.17 | H85: 1134.57 | I85: 1162.48 | J85: 1178.27 | K85: 1146.7 | L85: 1103 | M85: 7.6209
A86: 77 | B86: GRASIM | C86: 1574.15 | D86: 1593.00 | E86: 1551.75 | F86: 1529.35 | G86: 1488.10 | H86: 1615.40 | I86: 1656.65 | J86: 1679.05 | K86: 1634.25 | L86: 1570.6 | M86: 10.52145
A87: 78 | B87: GUJGASLTD | C87: 502.7 | D87: 506.98 | E87: 495.97 | F87: 489.23 | G87: 478.22 | H87: 513.72 | I87: 524.73 | J87: 531.47 | K87: 518 | L87: 500.25 | M87: 14.29841
A88: 79 | B88: GSPL | C88: 266.95 | D88: 267.77 | E88: 264.38 | F88: 261.82 | G88: 258.43 | H88: 270.33 | I88: 273.72 | J88: 276.28 | K88: 271.15 | L88: 265.2 | M88: 6.71663
A89: 80 | B89: HCLTECH | C89: 1092.6 | D89: 1096.07 | E89: 1086.58 | F89: 1080.57 | G89: 1071.08 | H89: 1102.08 | I89: 1111.57 | J89: 1117.58 | K89: 1105.55 | L89: 1090.05 | M89: 22.12194
A90: 81 | B90: HDFCAMC | C90: 1818.75 | D90: 1820.72 | E90: 1805.43 | F90: 1792.12 | G90: 1776.83 | H90: 1834.03 | I90: 1849.32 | J90: 1862.63 | K90: 1836 | L90: 1807.4 | M90: 2.2382
A91: 82 | B91: HDFCBANK | C91: 1614.2 | D91: 1621.73 | E91: 1601.52 | F91: 1588.83 | G91: 1568.62 | H91: 1634.42 | I91: 1654.63 | J91: 1667.32 | K91: 1641.95 | L91: 1609.05 | M91: 51.79551
A92: 83 | B92: HDFCLIFE | C92: 494.45 | D92: 496.23 | E92: 490.72 | F92: 486.98 | G92: 481.47 | H92: 499.97 | I92: 505.48 | J92: 509.22 | K92: 501.75 | L92: 492.5 | M92: 27.28046
A93: 84 | B93: HAVELLS | C93: 1201.65 | D93: 1203.88 | E93: 1191.52 | F93: 1181.38 | G93: 1169.02 | H93: 1214.02 | I93: 1226.38 | J93: 1236.52 | K93: 1216.25 | L93: 1193.75 | M93: 5.22972
A94: 85 | B94: HEROMOTOCO | C94: 2499.45 | D94: 2509.70 | E94: 2484.75 | F94: 2470.05 | G94: 2445.10 | H94: 2524.40 | I94: 2549.35 | J94: 2564.05 | K94: 2534.65 | L94: 2495 | M94: 3.1026
A95: 86 | B95: HINDALCO | C95: 429.7 | D95: 430.32 | E95: 426.13 | F95: 422.57 | G95: 418.38 | H95: 433.88 | I95: 438.07 | J95: 441.63 | K95: 434.5 | L95: 426.75 | M95: 52.76939
A96: 87 | B96: HAL | C96: 2559.55 | D96: 2579.17 | E96: 2521.38 | F96: 2483.22 | G96: 2425.43 | H96: 2617.33 | I96: 2675.12 | J96: 2713.28 | K96: 2636.95 | L96: 2541 | M96: 11.72324
A97: 88 | B97: HINDPETRO | C97: 223.9 | D97: 223.22 | E97: 221.03 | F97: 218.17 | G97: 215.98 | H97: 226.08 | I97: 228.27 | J97: 231.13 | K97: 225.4 | L97: 220.35 | M97: 57.87659
A98: 89 | B98: HINDUNILVR | C98: 2494.05 | D98: 2500.12 | E98: 2476.68 | F98: 2459.32 | G98: 2435.88 | H98: 2517.48 | I98: 2540.92 | J98: 2558.28 | K98: 2523.55 | L98: 2482.75 | M98: 8.85515
A99: 90 | B99: HINDZINC | C99: 315.9 | D99: 318.10 | E99: 312.80 | F99: 309.70 | G99: 304.40 | H99: 321.20 | I99: 326.50 | J99: 329.60 | K99: 323.4 | L99: 315 | M99: 3.66016
A100: 91 | B100: HONAUT | C100: 36204.5 | D100: 36057.15 | E100: 35612.50 | F100: 35020.50 | G100: 34575.85 | H100: 36649.15 | I100: 37093.80 | J100: 37685.80 | K100: 36501.8 | L100: 35465.15 | M100: 0.11534
A101: 92 | B101: HDFC | C101: 2617.3 | D101: 2630.00 | E101: 2595.55 | F101: 2573.80 | G101: 2539.35 | H101: 2651.75 | I101: 2686.20 | J101: 2707.95 | K101: 2664.45 | L101: 2608.25 | M101: 29.49868
A102: 93 | B102: ICICIBANK | C102: 839.25 | D102: 842.70 | E102: 831.30 | F102: 823.35 | G102: 811.95 | H102: 850.65 | I102: 862.05 | J102: 870.00 | K102: 854.1 | L102: 834.75 | M102: 138.80984
A103: 94 | B103: ICICIGI | C103: 1098.45 | D103: 1097.32 | E103: 1090.38 | F103: 1082.32 | G103: 1075.38 | H103: 1105.38 | I103: 1112.32 | J103: 1120.38 | K103: 1104.25 | L103: 1089.25 | M103: 3.62708
A104: 95 | B104: ICICIPRULI | C104: 410.95 | D104: 412.72 | E104: 407.43 | F104: 403.92 | G104: 398.63 | H104: 416.23 | I104: 421.52 | J104: 425.03 | K104: 418 | L104: 409.2 | M104: 9.25607
A105: 96 | B105: ISEC | C105: 477.25 | D105: 473.42 | E105: 466.93 | F105: 456.62 | G105: 450.13 | H105: 483.73 | I105: 490.22 | J105: 500.53 | K105: 479.9 | L105: 463.1 | M105: 1.15592
A106: 97 | B106: IDFCFIRSTB | C106: 53.4 | D106: 53.68 | E106: 52.92 | F106: 52.43 | G106: 51.67 | H106: 54.17 | I106: 54.93 | J106: 55.42 | K106: 54.45 | L106: 53.2 | M106: 253.8727
A107: 98 | B107: ITC | C107: 383.85 | D107: 382.92 | E107: 380.93 | F107: 378.02 | G107: 376.03 | H107: 385.83 | I107: 387.82 | J107: 390.73 | K107: 384.9 | L107: 380 | M107: 89.61077
A108: 99 | B108: INDIAMART | C108: 4719.25 | D108: 4719.77 | E108: 4679.53 | F108: 4639.82 | G108: 4599.58 | H108: 4759.48 | I108: 4799.72 | J108: 4839.43 | K108: 4760 | L108: 4680.05 | M108: 0.39798
A109: 100 | B109: INDIANB | C109: 273.2 | D109: 276.93 | E109: 267.62 | F109: 262.03 | G109: 252.72 | H109: 282.52 | I109: 291.83 | J109: 297.42 | K109: 286.25 | L109: 271.35 | M109: 9.78304
A110: 101 | B110: IEX | C110: 145.5 | D110: 144.85 | E110: 143.30 | F110: 141.10 | G110: 139.55 | H110: 147.05 | I110: 148.60 | J110: 150.80 | K110: 146.4 | L110: 142.65 | M110: 120.20712
A111: 102 | B111: INDHOTEL | C111: 299.6 | D111: 302.33 | E111: 295.47 | F111: 291.33 | G111: 284.47 | H111: 306.47 | I111: 313.33 | J111: 317.47 | K111: 309.2 | L111: 298.2 | M111: 42.32835
A112: 103 | B112: IOC | C112: 77.3 | D112: 77.73 | E112: 76.67 | F112: 76.03 | G112: 74.97 | H112: 78.37 | I112: 79.43 | J112: 80.07 | K112: 78.8 | L112: 77.1 | M112: 98.78001
A113: 104 | B113: IRCTC | C113: 619.3 | D113: 625.50 | E113: 611.60 | F113: 603.90 | G113: 590.00 | H113: 633.20 | I113: 647.10 | J113: 654.80 | K113: 639.4 | L113: 617.8 | M113: 14.76831
A114: 105 | B114: IGL | C114: 436.15 | D114: 436.63 | E114: 433.37 | F114: 430.58 | G114: 427.32 | H114: 439.42 | I114: 442.68 | J114: 445.47 | K114: 439.9 | L114: 433.85 | M114: 11.17905
A115: 106 | B115: INDUSTOWER | C115: 165.4 | D115: 164.78 | E115: 162.97 | F115: 160.53 | G115: 158.72 | H115: 167.22 | I115: 169.03 | J115: 171.47 | K115: 166.6 | L115: 162.35 | M115: 45.55272
A116: 107 | B116: INDUSINDBK | C116: 1092.75 | D116: 1089.63 | E116: 1082.32 | F116: 1071.88 | G116: 1064.57 | H116: 1100.07 | I116: 1107.38 | J116: 1117.82 | K116: 1096.95 | L116: 1079.2 | M116: 19.83022
A117: 108 | B117: NAUKRI | C117: 3503.05 | D117: 3511.68 | E117: 3473.37 | F117: 3443.68 | G117: 3405.37 | H117: 3541.37 | I117: 3579.68 | J117: 3609.37 | K117: 3550 | L117: 3482 | M117: 3.27838
A118: 109 | B118: INFY | C118: 1561.8 | D118: 1564.03 | E118: 1553.07 | F118: 1544.33 | G118: 1533.37 | H118: 1572.77 | I118: 1583.73 | J118: 1592.47 | K118: 1575 | L118: 1555.3 | M118: 36.56244
A119: 110 | B119: INDIGO | C119: 1834.85 | D119: 1838.28 | E119: 1816.57 | F119: 1798.28 | G119: 1776.57 | H119: 1856.57 | I119: 1878.28 | J119: 1896.57 | K119: 1860 | L119: 1820 | M119: 10.95395
A120: 111 | B120: IPCALAB | C120: 820.05 | D120: 818.20 | E120: 809.85 | F120: 799.65 | G120: 791.30 | H120: 828.40 | I120: 836.75 | J120: 846.95 | K120: 826.55 | L120: 808 | M120: 3.61131
A121: 112 | B121: JSWENERGY | C121: 219.75 | D121: 221.58 | E121: 217.17 | F121: 214.58 | G121: 210.17 | H121: 224.17 | I121: 228.58 | J121: 231.17 | K121: 226 | L121: 219 | M121: 4.70435
A122: 113 | B122: JSWSTEEL | C122: 699.95 | D122: 706.07 | E122: 688.88 | F122: 677.82 | G122: 660.63 | H122: 717.13 | I122: 734.32 | J122: 745.38 | K122: 723.25 | L122: 695 | M122: 18.10091
A123: 114 | B123: JINDALSTEL | C123: 573.25 | D123: 577.63 | E123: 564.72 | F123: 556.18 | G123: 543.27 | H123: 586.17 | I123: 599.08 | J123: 607.62 | K123: 590.55 | L123: 569.1 | M123: 15.2296
A124: 115 | B124: JUBLFOOD | C124: 453.3 | D124: 455.15 | E124: 449.70 | F124: 446.10 | G124: 440.65 | H124: 458.75 | I124: 464.20 | J124: 467.80 | K124: 460.6 | L124: 451.55 | M124: 22.77856
A125: 116 | B125: KOTAKBANK | C125: 1700.55 | D125: 1708.22 | E125: 1690.33 | F125: 1680.12 | G125: 1662.23 | H125: 1718.43 | I125: 1736.32 | J125: 1746.53 | K125: 1726.1 | L125: 1698 | M125: 35.39149
A126: 117 | B126: L&TFH | C126: 89.3 | D126: 89.30 | E126: 88.50 | F126: 87.70 | G126: 86.90 | H126: 90.10 | I126: 90.90 | J126: 91.70 | K126: 90.1 | L126: 88.5 | M126: 41.36121
A127: 118 | B127: LTTS | C127: 3711.65 | D127: 3700.97 | E127: 3672.93 | F127: 3634.22 | G127: 3606.18 | H127: 3739.68 | I127: 3767.72 | J127: 3806.43 | K127: 3729 | L127: 3662.25 | M127: 2.44713
A128: 119 | B128: LICHSGFIN | C128: 353.25 | D128: 354.92 | E128: 350.53 | F128: 347.82 | G128: 343.43 | H128: 357.63 | I128: 362.02 | J128: 364.73 | K128: 359.3 | L128: 352.2 | M128: 9.59201
A129: 120 | B129: LTIM | C129: 4805.3 | D129: 4792.77 | E129: 4770.53 | F129: 4735.77 | G129: 4713.53 | H129: 4827.53 | I129: 4849.77 | J129: 4884.53 | K129: 4815 | L129: 4758 | M129: 4.11601
A130: 121 | B130: LT | C130: 2194.75 | D130: 2205.93 | E130: 2170.87 | F130: 2146.98 | G130: 2111.92 | H130: 2229.82 | I130: 2264.88 | J130: 2288.77 | K130: 2241 | L130: 2182.05 | M130: 21.03097
A131: 122 | B131: LAURUSLABS | C131: 317.4 | D131: 321.12 | E131: 313.28 | F131: 309.17 | G131: 301.33 | H131: 325.23 | I131: 333.07 | J131: 337.18 | K131: 328.95 | L131: 317 | M131: 12.21792
A132: 123 | B132: LICI | C132: 595.95 | D132: 596.03 | E132: 593.37 | F132: 590.78 | G132: 588.12 | H132: 598.62 | I132: 601.28 | J132: 603.87 | K132: 598.7 | L132: 593.45 | M132: 7.61922
A133: 124 | B133: LINDEINDIA | C133: 3814.8 | D133: 3788.45 | E133: 3736.90 | F133: 3659.00 | G133: 3607.45 | H133: 3866.35 | I133: 3917.90 | J133: 3995.80 | K133: 3840 | L133: 3710.55 | M133: 0.77191
A134: 125 | B134: LUPIN | C134: 664 | D134: 667.12 | E134: 657.53 | F134: 651.07 | G134: 641.48 | H134: 673.58 | I134: 683.17 | J134: 689.63 | K134: 676.7 | L134: 660.65 | M134: 6.85172
A135: 126 | B135: MRF | C135: 87658.3 | D135: 88386.10 | E135: 86772.20 | F135: 85886.10 | G135: 84272.20 | H135: 89272.20 | I135: 90886.10 | J135: 91772.20 | K135: 90000 | L135: 87500 | M135: 0.1097
A136: 127 | B136: M&MFIN | C136: 255.25 | D136: 254.57 | E136: 252.28 | F136: 249.32 | G136: 247.03 | H136: 257.53 | I136: 259.82 | J136: 262.78 | K136: 256.85 | L136: 251.6 | M136: 20.53486
A137: 128 | B137: M&M | C137: 1319.75 | D137: 1327.92 | E137: 1302.98 | F137: 1286.22 | G137: 1261.28 | H137: 1344.68 | I137: 1369.62 | J137: 1386.38 | K137: 1352.85 | L137: 1311.15 | M137: 21.96484
A138: 129 | B138: MARICO | C138: 503.75 | D138: 502.50 | E138: 499.60 | F138: 495.45 | G138: 492.55 | H138: 506.65 | I138: 509.55 | J138: 513.70 | K138: 505.4 | L138: 498.35 | M138: 14.12597
A139: 130 | B139: MARUTI | C139: 8658.95 | D139: 8654.32 | E139: 8589.63 | F139: 8520.32 | G139: 8455.63 | H139: 8723.63 | I139: 8788.32 | J139: 8857.63 | K139: 8719 | L139: 8585 | M139: 3.63931
A140: 131 | B140: MFSL | C140: 701.85 | D140: 703.32 | E140: 695.58 | F140: 689.32 | G140: 681.58 | H140: 709.58 | I140: 717.32 | J140: 723.58 | K140: 711.05 | L140: 697.05 | M140: 3.83338
A141: 132 | B141: MAXHEALTH | C141: 431.25 | D141: 432.68 | E141: 428.02 | F141: 424.78 | G141: 420.12 | H141: 435.92 | I141: 440.58 | J141: 443.82 | K141: 437.35 | L141: 429.45 | M141: 10.80016
A142: 133 | B142: MSUMI | C142: 49.85 | D142: 49.85 | E142: 49.35 | F142: 48.85 | G142: 48.35 | H142: 50.35 | I142: 50.85 | J142: 51.35 | K142: 50.35 | L142: 49.35 | M142: 31.88875
A143: 134 | B143: MPHASIS | C143: 2200 | D143: 2191.15 | E143: 2173.85 | F143: 2147.70 | G143: 2130.40 | H143: 2217.30 | I143: 2234.60 | J143: 2260.75 | K143: 2208.45 | L143: 2165 | M143: 3.17563
A144: 135 | B144: MUTHOOTFIN | C144: 971.5 | D144: 975.08 | E144: 963.37 | F144: 955.23 | G144: 943.52 | H144: 983.22 | I144: 994.93 | J144: 1003.07 | K144: 986.8 | L144: 966.95 | M144: 3.8597
A145: 136 | B145: NTPC | C145: 170.5 | D145: 170.73 | E145: 168.27 | F145: 166.03 | G145: 163.57 | H145: 172.97 | I145: 175.43 | J145: 177.67 | K145: 173.2 | L145: 168.5 | M145: 122.25021
A146: 137 | B146: NATIONALUM | C146: 81.2 | D146: 81.10 | E146: 80.45 | F146: 79.70 | G146: 79.05 | H146: 81.85 | I146: 82.50 | J146: 83.25 | K146: 81.75 | L146: 80.35 | M146: 57.78099
A147: 138 | B147: NAVINFLUOR | C147: 4233.9 | D147: 4234.30 | E147: 4193.60 | F147: 4153.30 | G147: 4112.60 | H147: 4274.60 | I147: 4315.30 | J147: 4355.60 | K147: 4275 | L147: 4194 | M147: 1.02302
A148: 139 | B148: NESTLEIND | C148: 18674.15 | D148: 18729.37 | E148: 18575.93 | F148: 18477.72 | G148: 18324.28 | H148: 18827.58 | I148: 18981.02 | J148: 19079.23 | K148: 18882.8 | L148: 18631.15 | M148: 0.4208
A149: 140 | B149: NAM-INDIA | C149: 218.25 | D149: 216.98 | E149: 214.32 | F149: 210.38 | G149: 207.72 | H149: 220.92 | I149: 223.58 | J149: 227.52 | K149: 219.65 | L149: 213.05 | M149: 3.99775
A150: 141 | B150: OBEROIRLTY | C150: 841.65 | D150: 844.57 | E150: 833.68 | F150: 825.72 | G150: 814.83 | H150: 852.53 | I150: 863.42 | J150: 871.38 | K150: 855.45 | L150: 836.6 | M150: 4.26164
A151: 142 | B151: ONGC | C151: 153.6 | D151: 153.27 | E151: 152.03 | F151: 150.47 | G151: 149.23 | H151: 154.83 | I151: 156.07 | J151: 157.63 | K151: 154.5 | L151: 151.7 | M151: 95.99697
A152: 143 | B152: OIL | C152: 248.7 | D152: 247.63 | E152: 243.62 | F152: 238.53 | G152: 234.52 | H152: 252.72 | I152: 256.73 | J152: 261.82 | K152: 251.65 | L152: 242.55 | M152: 28.74767
A153: 144 | B153: PAYTM | C153: 608.35 | D153: 613.78 | E153: 599.57 | F153: 590.78 | G153: 576.57 | H153: 622.57 | I153: 636.78 | J153: 645.57 | K153: 628 | L153: 605 | M153: 24.14579
A154: 145 | B154: OFSS | C154: 3164.85 | D154: 3169.72 | E154: 3137.43 | F154: 3110.02 | G154: 3077.73 | H154: 3197.13 | I154: 3229.42 | J154: 3256.83 | K154: 3202 | L154: 3142.3 | M154: 1.21696
A155: 146 | B155: POLICYBZR | C155: 516.4 | D155: 509.60 | E155: 494.30 | F155: 472.20 | G155: 456.90 | H155: 531.70 | I155: 547.00 | J155: 569.10 | K155: 524.9 | L155: 487.5 | M155: 38.84825
A156: 147 | B156: PIIND | C156: 3231.05 | D156: 3225.05 | E156: 3185.10 | F156: 3139.15 | G156: 3099.20 | H156: 3271.00 | I156: 3310.95 | J156: 3356.90 | K156: 3265 | L156: 3179.1 | M156: 3.25964
A157: 148 | B157: PAGEIND | C157: 38133.25 | D157: 38219.28 | E157: 37804.02 | F157: 37474.78 | G157: 37059.52 | H157: 38548.52 | I157: 38963.78 | J157: 39293.02 | K157: 38634.55 | L157: 37890.05 | M157: 0.22779
A158: 149 | B158: PATANJALI | C158: 940.5 | D158: 943.97 | E158: 928.53 | F158: 916.57 | G158: 901.13 | H158: 955.93 | I158: 971.37 | J158: 983.33 | K158: 959.4 | L158: 932 | M158: 3.69966
A159: 150 | B159: PERSISTENT | C159: 5039.5 | D159: 5001.83 | E159: 4929.67 | F159: 4819.83 | G159: 4747.67 | H159: 5111.67 | I159: 5183.83 | J159: 5293.67 | K159: 5074 | L159: 4892 | M159: 3.86046
A160: 151 | B160: PETRONET | C160: 216.95 | D160: 215.47 | E160: 213.13 | F160: 209.32 | G160: 206.98 | H160: 219.28 | I160: 221.62 | J160: 225.43 | K160: 217.8 | L160: 211.65 | M160: 18.94173
A161: 152 | B161: PIDILITIND | C161: 2294.65 | D161: 2298.53 | E161: 2277.12 | F161: 2259.58 | G161: 2238.17 | H161: 2316.07 | I161: 2337.48 | J161: 2355.02 | K161: 2319.95 | L161: 2281 | M161: 3.30363
A162: 153 | B162: POLYCAB | C162: 3013.25 | D162: 3024.32 | E162: 2983.13 | F162: 2953.02 | G162: 2911.83 | H162: 3054.43 | I162: 3095.62 | J162: 3125.73 | K162: 3065.5 | L162: 2994.2 | M162: 3.2854
A163: 154 | B163: POONAWALLA | C163: 297.1 | D163: 301.03 | E163: 291.27 | F163: 285.43 | G163: 275.67 | H163: 306.87 | I163: 316.63 | J163: 322.47 | K163: 310.8 | L163: 295.2 | M163: 21.96139
A164: 155 | B164: PFC | C164: 146.35 | D164: 146.77 | E164: 144.38 | F164: 142.42 | G164: 140.03 | H164: 148.73 | I164: 151.12 | J164: 153.08 | K164: 149.15 | L164: 144.8 | M164: 54.16298
A165: 156 | B165: POWERGRID | C165: 214.65 | D165: 214.98 | E165: 212.67 | F165: 210.68 | G165: 208.37 | H165: 216.97 | I165: 219.28 | J165: 221.27 | K165: 217.3 | L165: 213 | M165: 68.46495
A166: 157 | B166: PRESTIGE | C166: 414.55 | D166: 414.15 | E166: 406.35 | F166: 398.15 | G166: 390.35 | H166: 422.35 | I166: 430.15 | J166: 438.35 | K166: 421.95 | L166: 405.95 | M166: 8.98518
A167: 158 | B167: PGHH | C167: 13527.65 | D167: 13556.65 | E167: 13438.30 | F167: 13348.95 | G167: 13230.60 | H167: 13646.00 | I167: 13764.35 | J167: 13853.70 | K167: 13675 | L167: 13467.3 | M167: 0.05408
A168: 159 | B168: PNB | C168: 47.8 | D168: 48.05 | E168: 47.25 | F168: 46.70 | G168: 45.90 | H168: 48.60 | I168: 49.40 | J168: 49.95 | K168: 48.85 | L168: 47.5 | M168: 501.61602
A169: 160 | B169: RECLTD | C169: 112.05 | D169: 112.33 | E169: 111.22 | F169: 110.38 | G169: 109.27 | H169: 113.17 | I169: 114.28 | J169: 115.12 | K169: 113.45 | L169: 111.5 | M169: 55.57791
A170: 161 | B170: RELIANCE | C170: 2378.9 | D170: 2394.65 | E170: 2359.30 | F170: 2339.70 | G170: 2304.35 | H170: 2414.25 | I170: 2449.60 | J170: 2469.20 | K170: 2430 | L170: 2375.05 | M170: 50.87729
A171: 162 | B171: SBICARD | C171: 743.55 | D171: 740.50 | E171: 735.05 | F171: 726.55 | G171: 721.10 | H171: 749.00 | I171: 754.45 | J171: 762.95 | K171: 745.95 | L171: 732 | M171: 5.46212
A172: 163 | B172: SBILIFE | C172: 1131.15 | D172: 1135.08 | E172: 1121.22 | F172: 1111.28 | G172: 1097.42 | H172: 1145.02 | I172: 1158.88 | J172: 1168.82 | K172: 1148.95 | L172: 1125.15 | M172: 9.44068
A173: 164 | B173: SRF | C173: 2274.3 | D173: 2275.37 | E173: 2243.63 | F173: 2212.97 | G173: 2181.23 | H173: 2306.03 | I173: 2337.77 | J173: 2368.43 | K173: 2307.1 | L173: 2244.7 | M173: 4.44547
A174: 165 | B174: MOTHERSON | C174: 82.05 | D174: 81.93 | E174: 81.42 | F174: 80.78 | G174: 80.27 | H174: 82.57 | I174: 83.08 | J174: 83.72 | K174: 82.45 | L174: 81.3 | M174: 129.44556
A175: 166 | B175: SHREECEM | C175: 26214.9 | D175: 26206.63 | E175: 25883.27 | F175: 25551.63 | G175: 25228.27 | H175: 26538.27 | I175: 26861.63 | J175: 27193.27 | K175: 26530 | L175: 25875 | M175: 0.93446
A176: 167 | B176: SRTRANSFIN
A177: 168 | B177: SIEMENS | C177: 3251.5 | D177: 3270.45 | E177: 3227.10 | F177: 3202.70 | G177: 3159.35 | H177: 3294.85 | I177: 3338.20 | J177: 3362.60 | K177: 3313.8 | L177: 3246.05 | M177: 5.14766
A178: 169 | B178: SONACOMS | C178: 457.2 | D178: 460.42 | E178: 452.13 | F178: 447.07 | G178: 438.78 | H178: 465.48 | I178: 473.77 | J178: 478.83 | K178: 468.7 | L178: 455.35 | M178: 4.20361
A179: 170 | B179: SBIN | C179: 516.35 | D179: 516.92 | E179: 511.93 | F179: 507.52 | G179: 502.53 | H179: 521.33 | I179: 526.32 | J179: 530.73 | K179: 521.9 | L179: 512.5 | M179: 147.6305
A180: 171 | B180: SAIL | C180: 84.55 | D180: 85.22 | E180: 83.33 | F180: 82.12 | G180: 80.23 | H180: 86.43 | I180: 88.32 | J180: 89.53 | K180: 87.1 | L180: 84 | M180: 195.37168
A181: 172 | B181: SUNPHARMA | C181: 968.55 | D181: 970.85 | E181: 963.70 | F181: 958.85 | G181: 951.70 | H181: 975.70 | I181: 982.85 | J181: 987.70 | K181: 978 | L181: 966 | M181: 26.05147
A182: 173 | B182: SUNTV | C182: 438.25 | D182: 438.60 | E182: 432.30 | F182: 426.35 | G182: 420.05 | H182: 444.55 | I182: 450.85 | J182: 456.80 | K182: 444.9 | L182: 432.65 | M182: 4.9631
A183: 174 | B183: SYNGENE | C183: 579.3 | D183: 578.73 | E183: 572.97 | F183: 566.63 | G183: 560.87 | H183: 585.07 | I183: 590.83 | J183: 597.17 | K183: 584.5 | L183: 572.4 | M183: 7.6059
A184: 175 | B184: TVSMOTOR | C184: 1114.3 | D184: 1116.42 | E184: 1105.93 | F184: 1097.57 | G184: 1087.08 | H184: 1124.78 | I184: 1135.27 | J184: 1143.63 | K184: 1126.9 | L184: 1108.05 | M184: 7.46146
A185: 176 | B185: TATACHEM | C185: 965.2 | D185: 975.12 | E185: 948.63 | F185: 932.07 | G185: 905.58 | H185: 991.68 | I185: 1018.17 | J185: 1034.73 | K185: 1001.6 | L185: 958.55 | M185: 18.03876
A186: 177 | B186: TATACOMM | C186: 1220.55 | D186: 1219.95 | E186: 1211.85 | F186: 1203.15 | G186: 1195.05 | H186: 1228.65 | I186: 1236.75 | J186: 1245.45 | K186: 1228.05 | L186: 1211.25 | M186: 1.83558
A187: 178 | B187: TCS | C187: 3401.55 | D187: 3414.52 | E187: 3382.03 | F187: 3362.52 | G187: 3330.03 | H187: 3434.03 | I187: 3466.52 | J187: 3486.03 | K187: 3447 | L187: 3395 | M187: 12.1843
A188: 179 | B188: TATACONSUM | C188: 721.45 | D188: 725.10 | E188: 716.20 | F188: 710.95 | G188: 702.05 | H188: 730.35 | I188: 739.25 | J188: 744.50 | K188: 734 | L188: 719.85 | M188: 16.90647
A189: 180 | B189: TATAELXSI | C189: 6517.95 | D189: 6545.95 | E189: 6472.00 | F189: 6426.05 | G189: 6352.10 | H189: 6591.90 | I189: 6665.85 | J189: 6711.80 | K189: 6619.9 | L189: 6500 | M189: 0.83155
A190: 181 | B190: TATAMOTORS | C190: 429.45 | D190: 431.18 | E190: 426.52 | F190: 423.58 | G190: 418.92 | H190: 434.12 | I190: 438.78 | J190: 441.72 | K190: 435.85 | L190: 428.25 | M190: 72.0913
A191: 182 | B191: TATAPOWER | C191: 202.3 | D191: 203.82 | E191: 200.08 | F191: 197.87 | G191: 194.13 | H191: 206.03 | I191: 209.77 | J191: 211.98 | K191: 207.55 | L191: 201.6 | M191: 150.48335
A192: 183 | B192: TATASTEEL | C192: 111.15 | D192: 111.83 | E192: 109.97 | F192: 108.78 | G192: 106.92 | H192: 113.02 | I192: 114.88 | J192: 116.07 | K192: 113.7 | L192: 110.65 | M192: 243.91211
A193: 184 | B193: TTML | C193: 57.3 | D193: 58.77 | E193: 54.78 | F193: 52.27 | G193: 48.28 | H193: 61.28 | I193: 65.27 | J193: 67.78 | K193: 62.75 | L193: 56.25 | M193: 93.66911
A194: 185 | B194: TECHM | C194: 1125.7 | D194: 1125.98 | E194: 1117.72 | F194: 1109.73 | G194: 1101.47 | H194: 1133.97 | I194: 1142.23 | J194: 1150.22 | K194: 1134.25 | L194: 1118 | M194: 26.74708
A195: 186 | B195: RAMCOCEM | C195: 723.5 | D195: 721.75 | E195: 710.50 | F195: 697.50 | G195: 686.25 | H195: 734.75 | I195: 746.00 | J195: 759.00 | K195: 733 | L195: 708.75 | M195: 9.6644
A196: 187 | B196: TITAN | C196: 2431.55 | D196: 2436.25 | E196: 2409.70 | F196: 2387.85 | G196: 2361.30 | H196: 2458.10 | I196: 2484.65 | J196: 2506.50 | K196: 2462.8 | L196: 2414.4 | M196: 10.98118
A197: 188 | B197: TORNTPHARM | C197: 1480.95 | D197: 1483.57 | E197: 1473.73 | F197: 1466.52 | G197: 1456.68 | H197: 1490.78 | I197: 1500.62 | J197: 1507.83 | K197: 1493.4 | L197: 1476.35 | M197: 1.48246
A198: 189 | B198: TORNTPOWER | C198: 495.9 | D198: 496.42 | E198: 488.03 | F198: 480.17 | G198: 471.78 | H198: 504.28 | I198: 512.67 | J198: 520.53 | K198: 504.8 | L198: 488.55 | M198: 15.63125
A199: 190 | B199: TRENT | C199: 1343.85 | D199: 1339.93 | E199: 1327.42 | F199: 1310.98 | G199: 1298.47 | H199: 1356.37 | I199: 1368.88 | J199: 1385.32 | K199: 1352.45 | L199: 1323.5 | M199: 5.56036
A200: 191 | B200: TRIDENT | C200: 31.15 | D200: 31.27 | E200: 30.98 | F200: 30.82 | G200: 30.53 | H200: 31.43 | I200: 31.72 | J200: 31.88 | K200: 31.55 | L200: 31.1 | M200: 29.3163
A201: 192 | B201: TIINDIA | C201: 2515.55 | D201: 2526.33 | E201: 2492.22 | F201: 2468.88 | G201: 2434.77 | H201: 2549.67 | I201: 2583.78 | J201: 2607.12 | K201: 2560.45 | L201: 2503 | M201: 1.16862
A202: 193 | B202: UPL | C202: 739.3 | D202: 741.72 | E202: 734.13 | F202: 728.97 | G202: 721.38 | H202: 746.88 | I202: 754.47 | J202: 759.63 | K202: 749.3 | L202: 736.55 | M202: 19.50321
A203: 194 | B203: ULTRACEMCO | C203: 7205.75 | D203: 7243.20 | E203: 7154.55 | F203: 7103.35 | G203: 7014.70 | H203: 7294.40 | I203: 7383.05 | J203: 7434.25 | K203: 7331.85 | L203: 7192 | M203: 4.02548
A204: 195 | B204: UNIONBANK | C204: 67.6 | D204: 68.12 | E204: 66.73 | F204: 65.87 | G204: 64.48 | H204: 68.98 | I204: 70.37 | J204: 71.23 | K204: 69.5 | L204: 67.25 | M204: 77.0812
A205: 196 | B205: UBL | C205: 1445.85 | D205: 1448.60 | E205: 1433.25 | F205: 1420.65 | G205: 1405.30 | H205: 1461.20 | I205: 1476.55 | J205: 1489.15 | K205: 1463.95 | L205: 1436 | M205: 3.03593
... 29 more rows

Sheet MidCap Intra
L5: Back To Main Page
A6: FOR INTRA DAY TRADING | K6: =Main!B10 -> 2023-02-23
A9: Sr.no | B9: Scrip | C9: CLOSE RATE | D9: Pivot Point | E9: Supports | H9: Resistances
E10: S1 | F10: S2 | G10: S3 | H10: R1 | I10: R2 | J10: R3 | K10: HIGH | L10: LOW | M10: Total Trade Quanity in Lakhs
A11: 1 | B11: 3MINDIA | C11: 21809 | D11: 21952.33 | E11: 21556.67 | F11: 21304.33 | G11: 20908.67 | H11: 22204.67 | I11: 22600.33 | J11: 22852.67 | K11: 22348 | L11: 21700 | M11: 0.02414
A12: 2 | B12: ABB | C12: 3172.8 | D12: 3163.67 | E12: 3138.43 | F12: 3104.07 | G12: 3078.83 | H12: 3198.03 | I12: 3223.27 | J12: 3257.63 | K12: 3188.9 | L12: 3129.3 | M12: 2.18407
A13: 3 | B13: ACC | C13: 1752.2 | D13: 1766.33 | E13: 1705.67 | F13: 1659.13 | G13: 1598.47 | H13: 1812.87 | I13: 1873.53 | J13: 1920.07 | K13: 1827 | L13: 1719.8 | M13: 12.37245
A14: 4 | B14: AIAENG | C14: 2702.25 | D14: 2703.17 | E14: 2670.43 | F14: 2638.62 | G14: 2605.88 | H14: 2734.98 | I14: 2767.72 | J14: 2799.53 | K14: 2735.9 | L14: 2671.35 | M14: 0.35686
A15: 5 | B15: APLAPOLLO | C15: 1270.7 | D15: 1274.43 | E15: 1259.47 | F15: 1248.23 | G15: 1233.27 | H15: 1285.67 | I15: 1300.63 | J15: 1311.87 | K15: 1289.4 | L15: 1263.2 | M15: 4.59037
A16: 6 | B16: AUBANK | C16: 595.4 | D16: 596.65 | E16: 587.00 | F16: 578.60 | G16: 568.95 | H16: 605.05 | I16: 614.70 | J16: 623.10 | K16: 606.3 | L16: 588.25 | M16: 10.773
A17: 7 | B17: AARTIDRUGS | C17: 364.2 | D17: 366.30 | E17: 359.10 | F17: 354.00 | G17: 346.80 | H17: 371.40 | I17: 378.60 | J17: 383.70 | K17: 373.5 | L17: 361.2 | M17: 1.25537
A18: 8 | B18: AAVAS | C18: 1905.85 | D18: 1889.92 | E18: 1864.83 | F18: 1823.82 | G18: 1798.73 | H18: 1930.93 | I18: 1956.02 | J18: 1997.03 | K18: 1915 | L18: 1848.9 | M18: 1.03898
A19: 9 | B19: ABBOTINDIA | C19: 20216.2 | D19: 20161.08 | E19: 20023.22 | F19: 19830.23 | G19: 19692.37 | H19: 20354.07 | I19: 20491.93 | J19: 20684.92 | K19: 20298.95 | L19: 19968.1 | M19: 0.09198
A20: 10 | B20: ADANIENT | C20: 1404.85 | D20: 1448.68 | E20: 1337.37 | F20: 1269.88 | G20: 1158.57 | H20: 1516.17 | I20: 1627.48 | J20: 1694.97 | K20: 1560 | L20: 1381.2 | M20: 106.06476
A21: 11 | B21: ADANIGREEN | C21: 539.05 | D21: 542.03 | E21: 536.07 | F21: 533.08 | G21: 527.12 | H21: 545.02 | I21: 550.98 | J21: 553.97 | K21: 548 | L21: 539.05 | M21: 8.61922
A22: 12 | B22: ADANIPORTS | C22: 547.1 | D22: 556.88 | E22: 530.22 | F22: 513.33 | G22: 486.67 | H22: 573.77 | I22: 600.43 | J22: 617.32 | K22: 583.55 | L22: 540 | M22: 109.94235
A23: 13 | B23: ATGL | C23: 833 | D23: 833.00 | E23: 833.00 | F23: 833.00 | G23: 833.00 | H23: 833.00 | I23: 833.00 | J23: 833.00 | K23: 833 | L23: 833 | M23: 0.61103
A24: 14 | B24: ADANITRANS | C24: 789.2 | D24: 789.20 | E24: 789.20 | F24: 789.20 | G24: 789.20 | H24: 789.20 | I24: 789.20 | J24: 789.20 | K24: 789.2 | L24: 789.2 | M24: 0.57508
A25: 15 | B25: AWL | C25: 390.3 | D25: 396.53 | E25: 384.07 | F25: 377.83 | G25: 365.37 | H25: 402.77 | I25: 415.23 | J25: 421.47 | K25: 409 | L25: 390.3 | M25: 33.93638
A26: 16 | B26: ABCAPITAL | C26: 139.1 | D26: 140.30 | E26: 137.45 | F26: 135.80 | G26: 132.95 | H26: 141.95 | I26: 144.80 | J26: 146.45 | K26: 143.15 | L26: 138.65 | M26: 16.17711
A27: 17 | B27: ABFRL | C27: 234.4 | D27: 238.12 | E27: 229.33 | F27: 224.27 | G27: 215.48 | H27: 243.18 | I27: 251.97 | J27: 257.03 | K27: 246.9 | L27: 233.05 | M27: 49.05914
A28: 18 | B28: ABSLAMC | C28: 395.75 | D28: 396.98 | E28: 394.12 | F28: 392.48 | G28: 389.62 | H28: 398.62 | I28: 401.48 | J28: 403.12 | K28: 399.85 | L28: 395.35 | M28: 0.24128
A29: 19 | B29: AEGISCHEM | C29: 351.1 | D29: 350.95 | E29: 347.25 | F29: 343.40 | G29: 339.70 | H29: 354.80 | I29: 358.50 | J29: 362.35 | K29: 354.65 | L29: 347.1 | M29: 2.29268
A30: 20 | B30: AETHER | C30: 880.95 | D30: 885.65 | E30: 870.30 | F30: 859.65 | G30: 844.30 | H30: 896.30 | I30: 911.65 | J30: 922.30 | K30: 901 | L30: 875 | M30: 0.18996
A31: 21 | B31: AFFLE | C31: 1021.55 | D31: 1026.35 | E31: 1014.25 | F31: 1006.95 | G31: 994.85 | H31: 1033.65 | I31: 1045.75 | J31: 1053.05 | K31: 1038.45 | L31: 1019.05 | M31: 0.93781
A32: 22 | B32: AJANTPHARM | C32: 1214.7 | D32: 1219.80 | E32: 1203.50 | F32: 1192.30 | G32: 1176.00 | H32: 1231.00 | I32: 1247.30 | J32: 1258.50 | K32: 1236.1 | L32: 1208.6 | M32: 0.52534
A33: 23 | B33: APLLTD | C33: 520.8 | D33: 520.33 | E33: 515.72 | F33: 510.63 | G33: 506.02 | H33: 525.42 | I33: 530.03 | J33: 535.12 | K33: 524.95 | L33: 515.25 | M33: 2.99436
A34: 24 | B34: ALKEM | C34: 3276.4 | D34: 3268.05 | E34: 3244.10 | F34: 3211.80 | G34: 3187.85 | H34: 3300.35 | I34: 3324.30 | J34: 3356.60 | K34: 3292 | L34: 3235.75 | M34: 0.75751
A35: 25 | B35: ALKYLAMINE | C35: 2511.9 | D35: 2519.95 | E35: 2491.95 | F35: 2472.00 | G35: 2444.00 | H35: 2539.90 | I35: 2567.90 | J35: 2587.85 | K35: 2547.95 | L35: 2500 | M35: 0.13357
A36: 26 | B36: ALLCARGO | C36: 362.25 | D36: 366.13 | E36: 356.62 | F36: 350.98 | G36: 341.47 | H36: 371.77 | I36: 381.28 | J36: 386.92 | K36: 375.65 | L36: 360.5 | M36: 8.33228
A37: 27 | B37: ALOKINDS | C37: 11.1 | D37: 10.77 | E37: 10.43 | F37: 9.77 | G37: 9.43 | H37: 11.43 | I37: 11.77 | J37: 12.43 | K37: 11.1 | L37: 10.1 | M37: 41.56899
A38: 28 | B38: AMARAJABAT | C38: 565.95 | D38: 571.38 | E38: 557.77 | F38: 549.58 | G38: 535.97 | H38: 579.57 | I38: 593.18 | J38: 601.37 | K38: 585 | L38: 563.2 | M38: 4.063
A39: 29 | B39: AMBER | C39: 1894.75 | D39: 1897.58 | E39: 1877.17 | F39: 1859.58 | G39: 1839.17 | H39: 1915.17 | I39: 1935.58 | J39: 1953.17 | K39: 1918 | L39: 1880 | M39: 1.02573
A40: 30 | B40: AMBUJACEM | C40: 335.4 | D40: 339.83 | E40: 327.67 | F40: 319.93 | G40: 307.77 | H40: 347.57 | I40: 359.73 | J40: 367.47 | K40: 352 | L40: 332.1 | M40: 126.96127
A41: 31 | B41: ANGELONE | C41: 1076.6 | D41: 1078.22 | E41: 1067.43 | F41: 1058.27 | G41: 1047.48 | H41: 1087.38 | I41: 1098.17 | J41: 1107.33 | K41: 1089 | L41: 1069.05 | M41: 2.02023
A42: 32 | B42: ANURAS | C42: 637.6 | D42: 644.42 | E42: 624.18 | F42: 610.77 | G42: 590.53 | H42: 657.83 | I42: 678.07 | J42: 691.48 | K42: 664.65 | L42: 631 | M42: 3.24783
A43: 33 | B43: APOLLOHOSP | C43: 4449.1 | D43: 4475.02 | E43: 4414.08 | F43: 4379.07 | G43: 4318.13 | H43: 4510.03 | I43: 4570.97 | J43: 4605.98 | K43: 4535.95 | L43: 4440 | M43: 3.33978
A44: 34 | B44: APOLLOTYRE | C44: 328.65 | D44: 327.87 | E44: 325.98 | F44: 323.32 | G44: 321.43 | H44: 330.53 | I44: 332.42 | J44: 335.08 | K44: 329.75 | L44: 325.2 | M44: 18.64934
A45: 35 | B45: APTUS | C45: 257.45 | D45: 255.65 | E45: 252.80 | F45: 248.15 | G45: 245.30 | H45: 260.30 | I45: 263.15 | J45: 267.80 | K45: 258.5 | L45: 251 | M45: 0.96522
A46: 36 | B46: ASAHIINDIA | C46: 491.85 | D46: 493.22 | E46: 486.73 | F46: 481.62 | G46: 475.13 | H46: 498.33 | I46: 504.82 | J46: 509.93 | K46: 499.7 | L46: 488.1 | M46: 0.30964
A47: 37 | B47: ASHOKLEY | C47: 143.4 | D47: 144.80 | E47: 141.60 | F47: 139.80 | G47: 136.60 | H47: 146.60 | I47: 149.80 | J47: 151.60 | K47: 148 | L47: 143 | M47: 76.08729
A48: 38 | B48: ASIANPAINT | C48: 2795.95 | D48: 2796.63 | E48: 2779.32 | F48: 2762.68 | G48: 2745.37 | H48: 2813.27 | I48: 2830.58 | J48: 2847.22 | K48: 2813.95 | L48: 2780 | M48: 5.8027
A49: 39 | B49: ASTERDM | C49: 227.55 | D49: 227.92 | E49: 226.03 | F49: 224.52 | G49: 222.63 | H49: 229.43 | I49: 231.32 | J49: 232.83 | K49: 229.8 | L49: 226.4 | M49: 0.80555
A50: 40 | B50: ASTRAZEN | C50: 3360.7 | D50: 3346.48 | E50: 3319.47 | F50: 3278.23 | G50: 3251.22 | H50: 3387.72 | I50: 3414.73 | J50: 3455.97 | K50: 3373.5 | L50: 3305.25 | M50: 0.04796
A51: 41 | B51: ASTRAL | C51: 1856.9 | D51: 1883.55 | E51: 1823.35 | F51: 1789.80 | G51: 1729.60 | H51: 1917.10 | I51: 1977.30 | J51: 2010.85 | K51: 1943.75 | L51: 1850 | M51: 6.86134
A52: 42 | B52: ATUL | C52: 7160 | D52: 7151.37 | E52: 7102.68 | F52: 7045.37 | G52: 6996.68 | H52: 7208.68 | I52: 7257.37 | J52: 7314.68 | K52: 7200.05 | L52: 7094.05 | M52: 0.33046
A53: 43 | B53: AUROPHARMA | C53: 470.25 | D53: 467.43 | E53: 460.87 | F53: 451.48 | G53: 444.92 | H53: 476.82 | I53: 483.38 | J53: 492.77 | K53: 474 | L53: 458.05 | M53: 25.78321
A54: 44 | B54: AVANTIFEED | C54: 375.7 | D54: 376.93 | E54: 372.77 | F54: 369.83 | G54: 365.67 | H54: 379.87 | I54: 384.03 | J54: 386.97 | K54: 381.1 | L54: 374 | M54: 1.07822
A55: 45 | B55: DMART | C55: 3500.15 | D55: 3502.87 | E55: 3483.88 | F55: 3467.62 | G55: 3448.63 | H55: 3519.13 | I55: 3538.12 | J55: 3554.38 | K55: 3521.85 | L55: 3486.6 | M55: 1.1755
A56: 46 | B56: AXISBANK | C56: 833.35 | D56: 835.30 | E56: 827.60 | F56: 821.85 | G56: 814.15 | H56: 841.05 | I56: 848.75 | J56: 854.50 | K56: 843 | L56: 829.55 | M56: 69.84037
A57: 47 | B57: BASF | C57: 2331.9 | D57: 2337.45 | E57: 2305.45 | F57: 2279.00 | G57: 2247.00 | H57: 2363.90 | I57: 2395.90 | J57: 2422.35 | K57: 2369.45 | L57: 2311 | M57: 0.37344
A58: 48 | B58: BSE | C58: 452.6 | D58: 457.85 | E58: 446.35 | F58: 440.10 | G58: 428.60 | H58: 464.10 | I58: 475.60 | J58: 481.85 | K58: 469.35 | L58: 451.6 | M58: 6.48133
A59: 49 | B59: BAJAJ-AUTO | C59: 3840.7 | D59: 3848.63 | E59: 3807.02 | F59: 3773.33 | G59: 3731.72 | H59: 3882.32 | I59: 3923.93 | J59: 3957.62 | K59: 3890.25 | L59: 3814.95 | M59: 4.77992
A60: 50 | B60: BAJAJELEC | C60: 1125.4 | D60: 1129.17 | E60: 1117.23 | F60: 1109.07 | G60: 1097.13 | H60: 1137.33 | I60: 1149.27 | J60: 1157.43 | K60: 1141.1 | L60: 1121 | M60: 0.13989
A61: 51 | B61: BAJFINANCE | C61: 6198.65 | D61: 6247.88 | E61: 6135.77 | F61: 6072.88 | G61: 5960.77 | H61: 6310.77 | I61: 6422.88 | J61: 6485.77 | K61: 6360 | L61: 6185 | M61: 9.347
A62: 52 | B62: BAJAJFINSV | C62: 1360.95 | D62: 1369.65 | E62: 1347.30 | F62: 1333.65 | G62: 1311.30 | H62: 1383.30 | I62: 1405.65 | J62: 1419.30 | K62: 1392 | L62: 1356 | M62: 14.02505
A63: 53 | B63: BAJAJHLDNG | C63: 6035.5 | D63: 6033.68 | E63: 6001.07 | F63: 5966.63 | G63: 5934.02 | H63: 6068.12 | I63: 6100.73 | J63: 6135.17 | K63: 6066.3 | L63: 5999.25 | M63: 0.09943
A64: 54 | B64: BALAMINES | C64: 2172.3 | D64: 2179.05 | E64: 2158.25 | F64: 2144.20 | G64: 2123.40 | H64: 2193.10 | I64: 2213.90 | J64: 2227.95 | K64: 2199.85 | L64: 2165 | M64: 0.16855
A65: 55 | B65: BALKRISIND | C65: 2052.7 | D65: 2045.78 | E65: 2017.92 | F65: 1983.13 | G65: 1955.27 | H65: 2080.57 | I65: 2108.43 | J65: 2143.22 | K65: 2073.65 | L65: 2011 | M65: 1.76624
A66: 56 | B66: BALRAMCHIN | C66: 359.9 | D66: 363.23 | E66: 352.67 | F66: 345.43 | G66: 334.87 | H66: 370.47 | I66: 381.03 | J66: 388.27 | K66: 373.8 | L66: 356 | M66: 21.3427
A67: 57 | B67: BANDHANBNK | C67: 228 | D67: 227.77 | E67: 226.28 | F67: 224.57 | G67: 223.08 | H67: 229.48 | I67: 230.97 | J67: 232.68 | K67: 229.25 | L67: 226.05 | M67: 42.11645
A68: 58 | B68: BANKBARODA | C68: 157.1 | D68: 157.35 | E68: 155.35 | F68: 153.60 | G68: 151.60 | H68: 159.10 | I68: 161.10 | J68: 162.85 | K68: 159.35 | L68: 155.6 | M68: 227.46525
A69: 59 | B69: BANKINDIA | C69: 70.2 | D69: 70.52 | E69: 69.18 | F69: 68.17 | G69: 66.83 | H69: 71.53 | I69: 72.87 | J69: 73.88 | K69: 71.85 | L69: 69.5 | M69: 117.28238
A70: 60 | B70: MAHABANK | C70: 25.6 | D70: 25.88 | E70: 25.17 | F70: 24.73 | G70: 24.02 | H70: 26.32 | I70: 27.03 | J70: 27.47 | K70: 26.6 | L70: 25.45 | M70: 128.29796
A71: 61 | B71: BATAINDIA | C71: 1424.9 | D71: 1418.12 | E71: 1409.23 | F71: 1393.57 | G71: 1384.68 | H71: 1433.78 | I71: 1442.67 | J71: 1458.33 | K71: 1427 | L71: 1402.45 | M71: 3.94468
A72: 62 | B72: BAYERCROP | C72: 4400.7 | D72: 4410.70 | E72: 4378.00 | F72: 4355.30 | G72: 4322.60 | H72: 4433.40 | I72: 4466.10 | J72: 4488.80 | K72: 4443.4 | L72: 4388 | M72: 0.08091
A73: 63 | B73: BERGEPAINT | C73: 566.55 | D73: 565.50 | E73: 561.05 | F73: 555.55 | G73: 551.10 | H73: 571.00 | I73: 575.45 | J73: 580.95 | K73: 569.95 | L73: 560 | M73: 8.8664
A74: 64 | B74: BDL | C74: 922.3 | D74: 922.20 | E74: 913.40 | F74: 904.50 | G74: 895.70 | H74: 931.10 | I74: 939.90 | J74: 948.80 | K74: 931 | L74: 913.3 | M74: 10.23109
A75: 65 | B75: BEL | C75: 95 | D75: 95.32 | E75: 94.48 | F75: 93.97 | G75: 93.13 | H75: 95.83 | I75: 96.67 | J75: 97.18 | K75: 96.15 | L75: 94.8 | M75: 145.89841
A76: 66 | B76: BHARATFORG | C76: 841.9 | D76: 847.03 | E76: 831.92 | F76: 821.93 | G76: 806.82 | H76: 857.02 | I76: 872.13 | J76: 882.12 | K76: 862.15 | L76: 837.05 | M76: 9.77266
A77: 67 | B77: BHEL | C77: 68.8 | D77: 69.23 | E77: 67.97 | F77: 67.13 | G77: 65.87 | H77: 70.07 | I77: 71.33 | J77: 72.17 | K77: 70.5 | L77: 68.4 | M77: 120.57163
A78: 68 | B78: BPCL | C78: 320.45 | D78: 319.88 | E78: 316.77 | F78: 313.08 | G78: 309.97 | H78: 323.57 | I78: 326.68 | J78: 330.37 | K78: 323 | L78: 316.2 | M78: 40.89274
A79: 69 | B79: BHARATRAS | C79: 8964.65 | D79: 8927.23 | E79: 8823.52 | F79: 8682.38 | G79: 8578.67 | H79: 9068.37 | I79: 9172.08 | J79: 9313.22 | K79: 9030.95 | L79: 8786.1 | M79: 0.00811
A80: 70 | B80: BHARTIARTL | C80: 772.15 | D80: 773.43 | E80: 765.22 | F80: 758.28 | G80: 750.07 | H80: 780.37 | I80: 788.58 | J80: 795.52 | K80: 781.65 | L80: 766.5 | M80: 32.61898
A81: 71 | B81: BIOCON | C81: 222.25 | D81: 223.90 | E81: 219.80 | F81: 217.35 | G81: 213.25 | H81: 226.35 | I81: 230.45 | J81: 232.90 | K81: 228 | L81: 221.45 | M81: 25.12629
A82: 72 | B82: BIRLACORPN | C82: 873.6 | D82: 879.38 | E82: 864.22 | F82: 854.83 | G82: 839.67 | H82: 888.77 | I82: 903.93 | J82: 913.32 | K82: 894.55 | L82: 870 | M82: 0.554
A83: 73 | B83: BSOFT | C83: 282.55 | D83: 282.95 | E83: 279.85 | F83: 277.15 | G83: 274.05 | H83: 285.65 | I83: 288.75 | J83: 291.45 | K83: 286.05 | L83: 280.25 | M83: 15.01101
A84: 74 | B84: BLUEDART | C84: 6312.4 | D84: 6332.25 | E84: 6270.10 | F84: 6227.80 | G84: 6165.65 | H84: 6374.55 | I84: 6436.70 | J84: 6479.00 | K84: 6394.4 | L84: 6289.95 | M84: 0.31719
A85: 75 | B85: BLUESTARCO | C85: 1451.45 | D85: 1444.47 | E85: 1410.93 | F85: 1370.42 | G85: 1336.88 | H85: 1484.98 | I85: 1518.52 | J85: 1559.03 | K85: 1478 | L85: 1403.95 | M85: 3.35502
A86: 76 | B86: BBTC | C86: 884.8 | D86: 889.68 | E86: 876.47 | F86: 868.13 | G86: 854.92 | H86: 898.02 | I86: 911.23 | J86: 919.57 | K86: 902.9 | L86: 881.35 | M86: 0.28569
A87: 77 | B87: BORORENEW | C87: 451.2 | D87: 451.25 | E87: 445.50 | F87: 439.80 | G87: 434.05 | H87: 456.95 | I87: 462.70 | J87: 468.40 | K87: 457 | L87: 445.55 | M87: 1.22138
A88: 78 | B88: BOSCHLTD | C88: 18311.95 | D88: 18337.75 | E88: 18206.20 | F88: 18100.45 | G88: 17968.90 | H88: 18443.50 | I88: 18575.05 | J88: 18680.80 | K88: 18469.3 | L88: 18232 | M88: 0.2423
A89: 79 | B89: BRIGADE | C89: 484.5 | D89: 481.93 | E89: 477.87 | F89: 471.23 | G89: 467.17 | H89: 488.57 | I89: 492.63 | J89: 499.27 | K89: 486 | L89: 475.3 | M89: 0.68288
A90: 80 | B90: BCG | C90: 23.7 | D90: 24.02 | E90: 23.13 | F90: 22.57 | G90: 21.68 | H90: 24.58 | I90: 25.47 | J90: 26.03 | K90: 24.9 | L90: 23.45 | M90: 403.62906
A91: 81 | B91: BRITANNIA | C91: 4484.5 | D91: 4501.03 | E91: 4461.17 | F91: 4437.83 | G91: 4397.97 | H91: 4524.37 | I91: 4564.23 | J91: 4587.57 | K91: 4540.9 | L91: 4477.7 | M91: 2.62918
A92: 82 | B92: MAPMYINDIA | C92: 1148.95 | D92: 1141.40 | E92: 1127.55 | F92: 1106.15 | G92: 1092.30 | H92: 1162.80 | I92: 1176.65 | J92: 1198.05 | K92: 1155.25 | L92: 1120 | M92: 0.62435
A93: 83 | B93: CCL | C93: 549.05 | D93: 545.30 | E93: 538.85 | F93: 528.65 | G93: 522.20 | H93: 555.50 | I93: 561.95 | J93: 572.15 | K93: 551.75 | L93: 535.1 | M93: 2.02292
A94: 84 | B94: CESC | C94: 77.2 | D94: 77.22 | E94: 76.93 | F94: 76.67 | G94: 76.38 | H94: 77.48 | I94: 77.77 | J94: 78.03 | K94: 77.5 | L94: 76.95 | M94: 23.88587
A95: 85 | B95: CGPOWER | C95: 314.4 | D95: 315.73 | E95: 310.67 | F95: 306.93 | G95: 301.87 | H95: 319.47 | I95: 324.53 | J95: 328.27 | K95: 320.8 | L95: 312 | M95: 29.21934
A96: 86 | B96: CRISIL | C96: 3190.45 | D96: 3213.10 | E96: 3146.20 | F96: 3101.95 | G96: 3035.05 | H96: 3257.35 | I96: 3324.25 | J96: 3368.50 | K96: 3280 | L96: 3168.85 | M96: 0.1476
A97: 87 | B97: CSBBANK | C97: 234.65 | D97: 234.53 | E97: 231.87 | F97: 229.08 | G97: 226.42 | H97: 237.32 | I97: 239.98 | J97: 242.77 | K97: 237.2 | L97: 231.75 | M97: 1.65556
A98: 88 | B98: CAMPUS | C98: 364.9 | D98: 365.33 | E98: 359.67 | F98: 354.43 | G98: 348.77 | H98: 370.57 | I98: 376.23 | J98: 381.47 | K98: 371 | L98: 360.1 | M98: 4.74026
A99: 89 | B99: CANFINHOME | C99: 564.05 | D99: 567.58 | E99: 554.17 | F99: 544.28 | G99: 530.87 | H99: 577.47 | I99: 590.88 | J99: 600.77 | K99: 581 | L99: 557.7 | M99: 3.67589
A100: 90 | B100: CANBK | C100: 274.15 | D100: 274.22 | E100: 270.43 | F100: 266.72 | G100: 262.93 | H100: 277.93 | I100: 281.72 | J100: 285.43 | K100: 278 | L100: 270.5 | M100: 92.32454
A101: 91 | B101: CAPLIPOINT | C101: 670.75 | D101: 675.92 | E101: 663.83 | F101: 656.92 | G101: 644.83 | H101: 682.83 | I101: 694.92 | J101: 701.83 | K101: 688 | L101: 669 | M101: 0.61132
A102: 92 | B102: CGCL | C102: 700.45 | D102: 700.78 | E102: 697.67 | F102: 694.88 | G102: 691.77 | H102: 703.57 | I102: 706.68 | J102: 709.47 | K102: 703.9 | L102: 698 | M102: 0.46486
A103: 93 | B103: CARBORUNIV | C103: 981.05 | D103: 980.35 | E103: 966.70 | F103: 952.35 | G103: 938.70 | H103: 994.70 | I103: 1008.35 | J103: 1022.70 | K103: 994 | L103: 966 | M103: 1.0436
A104: 94 | B104: CASTROLIND | C104: 118.65 | D104: 119.03 | E104: 117.87 | F104: 117.08 | G104: 115.92 | H104: 119.82 | I104: 120.98 | J104: 121.77 | K104: 120.2 | L104: 118.25 | M104: 3.58255
A105: 95 | B105: CEATLTD | C105: 1473.65 | D105: 1481.63 | E105: 1457.02 | F105: 1440.38 | G105: 1415.77 | H105: 1498.27 | I105: 1522.88 | J105: 1539.52 | K105: 1506.25 | L105: 1465 | M105: 0.40913
A106: 96 | B106: CENTRALBK | C106: 25.35 | D106: 25.68 | E106: 24.82 | F106: 24.28 | G106: 23.42 | H106: 26.22 | I106: 27.08 | J106: 27.62 | K106: 26.55 | L106: 25.15 | M106: 81.55878
A107: 97 | B107: CDSL | C107: 997.55 | D107: 995.75 | E107: 989.80 | F107: 982.05 | G107: 976.10 | H107: 1003.50 | I107: 1009.45 | J107: 1017.20 | K107: 1001.7 | L107: 988 | M107: 2.40964
A108: 98 | B108: CENTURYPLY | C108: 511.85 | D108: 511.30 | E108: 507.60 | F108: 503.35 | G108: 499.65 | H108: 515.55 | I108: 519.25 | J108: 523.50 | K108: 515 | L108: 507.05 | M108: 0.97576
A109: 99 | B109: CENTURYTEX | C109: 612 | D109: 615.78 | E109: 605.52 | F109: 599.03 | G109: 588.77 | H109: 622.27 | I109: 632.53 | J109: 639.02 | K109: 626.05 | L109: 609.3 | M109: 0.96028
A110: 100 | B110: CERA | C110: 6716.65 | D110: 6650.72 | E110: 6513.43 | F110: 6310.22 | G110: 6172.93 | H110: 6853.93 | I110: 6991.22 | J110: 7194.43 | K110: 6788 | L110: 6447.5 | M110: 0.92359
A111: 101 | B111: CHALET | C111: 362.95 | D111: 365.70 | E111: 357.85 | F111: 352.75 | G111: 344.90 | H111: 370.80 | I111: 378.65 | J111: 383.75 | K111: 373.55 | L111: 360.6 | M111: 1.52901
A112: 102 | B112: CHAMBLFERT | C112: 279.85 | D112: 281.90 | E112: 276.95 | F112: 274.05 | G112: 269.10 | H112: 284.80 | I112: 289.75 | J112: 292.65 | K112: 286.85 | L112: 279 | M112: 8.66374
A113: 103 | B113: CHEMPLASTS | C113: 395.85 | D113: 397.58 | E113: 391.62 | F113: 387.38 | G113: 381.42 | H113: 401.82 | I113: 407.78 | J113: 412.02 | K113: 403.55 | L113: 393.35 | M113: 2.91423
A114: 104 | B114: CHOLAHLDNG | C114: 585.1 | D114: 583.62 | E114: 579.03 | F114: 572.97 | G114: 568.38 | H114: 589.68 | I114: 594.27 | J114: 600.33 | K114: 588.2 | L114: 577.55 | M114: 0.46493
A115: 105 | B115: CHOLAFIN | C115: 765.4 | D115: 767.35 | E115: 760.65 | F115: 755.90 | G115: 749.20 | H115: 772.10 | I115: 778.80 | J115: 783.55 | K115: 774.05 | L115: 762.6 | M115: 6.75975
A116: 106 | B116: CIPLA | C116: 962.55 | D116: 964.80 | E116: 956.80 | F116: 951.05 | G116: 943.05 | H116: 970.55 | I116: 978.55 | J116: 984.30 | K116: 972.8 | L116: 959.05 | M116: 16.02953
A117: 107 | B117: CUB | C117: 132.3 | D117: 133.13 | E117: 130.77 | F117: 129.23 | G117: 126.87 | H117: 134.67 | I117: 137.03 | J117: 138.57 | K117: 135.5 | L117: 131.6 | M117: 41.04191
A118: 108 | B118: CLEAN | C118: 1408.7 | D118: 1413.65 | E118: 1398.30 | F118: 1387.90 | G118: 1372.55 | H118: 1424.05 | I118: 1439.40 | J118: 1449.80 | K118: 1429 | L118: 1403.25 | M118: 0.28661
A119: 109 | B119: COALINDIA | C119: 211.85 | D119: 213.10 | E119: 210.35 | F119: 208.85 | G119: 206.10 | H119: 214.60 | I119: 217.35 | J119: 218.85 | K119: 215.85 | L119: 211.6 | M119: 60.03852
A120: 110 | B120: COCHINSHIP | C120: 469.9 | D120: 474.17 | E120: 463.33 | F120: 456.77 | G120: 445.93 | H120: 480.73 | I120: 491.57 | J120: 498.13 | K120: 485 | L120: 467.6 | M120: 3.56344
A121: 111 | B121: COFORGE | C121: 4342.55 | D121: 4330.15 | E121: 4291.30 | F121: 4240.05 | G121: 4201.20 | H121: 4381.40 | I121: 4420.25 | J121: 4471.50 | K121: 4369 | L121: 4278.9 | M121: 2.9841
A122: 112 | B122: COLPAL | C122: 1457.55 | D122: 1453.47 | E122: 1447.28 | F122: 1437.02 | G122: 1430.83 | H122: 1463.73 | I122: 1469.92 | J122: 1480.18 | K122: 1459.65 | L122: 1443.2 | M122: 2.29296
A123: 113 | B123: CAMS | C123: 2301.1 | D123: 2291.23 | E123: 2276.42 | F123: 2251.73 | G123: 2236.92 | H123: 2315.92 | I123: 2330.73 | J123: 2355.42 | K123: 2306.05 | L123: 2266.55 | M123: 1.00607
A124: 114 | B124: CONCOR | C124: 586.9 | D124: 589.20 | E124: 582.15 | F124: 577.40 | G124: 570.35 | H124: 593.95 | I124: 601.00 | J124: 605.75 | K124: 596.25 | L124: 584.45 | M124: 45.15924
A125: 115 | B125: COROMANDEL | C125: 889.9 | D125: 892.93 | E125: 881.97 | F125: 874.03 | G125: 863.07 | H125: 900.87 | I125: 911.83 | J125: 919.77 | K125: 903.9 | L125: 885 | M125: 4.21421
A126: 116 | B126: CREDITACC | C126: 974.5 | D126: 979.20 | E126: 958.40 | F126: 942.30 | G126: 921.50 | H126: 995.30 | I126: 1016.10 | J126: 1032.20 | K126: 1000 | L126: 963.1 | M126: 0.99081
A127: 117 | B127: CROMPTON | C127: 296.65 | D127: 295.55 | E127: 293.10 | F127: 289.55 | G127: 287.10 | H127: 299.10 | I127: 301.55 | J127: 305.10 | K127: 298 | L127: 292 | M127: 7.64883
A128: 118 | B128: CUMMINSIND | C128: 1579.35 | D128: 1577.87 | E128: 1566.78 | F128: 1554.22 | G128: 1543.13 | H128: 1590.43 | I128: 1601.52 | J128: 1614.08 | K128: 1588.95 | L128: 1565.3 | M128: 7.7898
A129: 119 | B129: CYIENT | C129: 973.8 | D129: 964.97 | E129: 949.98 | F129: 926.17 | G129: 911.18 | H129: 988.78 | I129: 1003.77 | J129: 1027.58 | K129: 979.95 | L129: 941.15 | M129: 7.84693
A130: 120 | B130: DCMSHRIRAM | C130: 847.15 | D130: 852.47 | E130: 838.48 | F130: 829.82 | G130: 815.83 | H130: 861.13 | I130: 875.12 | J130: 883.78 | K130: 866.45 | L130: 843.8 | M130: 0.20739
A131: 121 | B131: DLF | C131: 348.6 | D131: 350.62 | E131: 345.03 | F131: 341.47 | G131: 335.88 | H131: 354.18 | I131: 359.77 | J131: 363.33 | K131: 356.2 | L131: 347.05 | M131: 33.26607
A132: 122 | B132: DABUR | C132: 533.2 | D132: 532.77 | E132: 530.03 | F132: 526.87 | G132: 524.13 | H132: 535.93 | I132: 538.67 | J132: 541.83 | K132: 535.5 | L132: 529.6 | M132: 9.22754
A133: 123 | B133: DALBHARAT | C133: 1912.95 | D133: 1897.33 | E133: 1875.67 | F133: 1838.38 | G133: 1816.72 | H133: 1934.62 | I133: 1956.28 | J133: 1993.57 | K133: 1919 | L133: 1860.05 | M133: 4.83208
A134: 124 | B134: DEEPAKFERT | C134: 626.65 | D134: 627.18 | E134: 619.47 | F134: 612.28 | G134: 604.57 | H134: 634.37 | I134: 642.08 | J134: 649.27 | K134: 634.9 | L134: 620 | M134: 1.99116
A135: 125 | B135: DEEPAKNTR | C135: 1795.45 | D135: 1793.57 | E135: 1772.88 | F135: 1750.32 | G135: 1729.63 | H135: 1816.13 | I135: 1836.82 | J135: 1859.38 | K135: 1814.25 | L135: 1771 | M135: 3.49522
A136: 126 | B136: DELHIVERY | C136: 335.9 | D136: 339.37 | E136: 331.03 | F136: 326.17 | G136: 317.83 | H136: 344.23 | I136: 352.57 | J136: 357.43 | K136: 347.7 | L136: 334.5 | M136: 161.49472
A137: 127 | B137: DELTACORP | C137: 189.05 | D137: 190.33 | E137: 186.72 | F137: 184.38 | G137: 180.77 | H137: 192.67 | I137: 196.28 | J137: 198.62 | K137: 193.95 | L137: 188 | M137: 16.43064
A138: 128 | B138: DEVYANI | C138: 152.3 | D138: 152.53 | E138: 151.07 | F138: 149.83 | G138: 148.37 | H138: 153.77 | I138: 155.23 | J138: 156.47 | K138: 154 | L138: 151.3 | M138: 6.0734
A139: 129 | B139: DHANI | C139: 32.6 | D139: 32.60 | E139: 32.35 | F139: 32.10 | G139: 31.85 | H139: 32.85 | I139: 33.10 | J139: 33.35 | K139: 32.85 | L139: 32.35 | M139: 8.05308
A140: 130 | B140: DBL | C140: 202.4 | D140: 203.27 | E140: 200.38 | F140: 198.37 | G140: 195.48 | H140: 205.28 | I140: 208.17 | J140: 210.18 | K140: 206.15 | L140: 201.25 | M140: 1.83515
A141: 131 | B141: DIVISLAB | C141: 2920.55 | D141: 2920.50 | E141: 2904.40 | F141: 2888.25 | G141: 2872.15 | H141: 2936.65 | I141: 2952.75 | J141: 2968.90 | K141: 2936.6 | L141: 2904.35 | M141: 4.61368
A142: 132 | B142: DIXON | C142: 2644.2 | D142: 2663.82 | E142: 2616.58 | F142: 2588.97 | G142: 2541.73 | H142: 2691.43 | I142: 2738.67 | J142: 2766.28 | K142: 2711.05 | L142: 2636.2 | M142: 2.70867
A143: 133 | B143: LALPATHLAB | C143: 1939.8 | D143: 1945.63 | E143: 1906.52 | F143: 1873.23 | G143: 1834.12 | H143: 1978.92 | I143: 2018.03 | J143: 2051.32 | K143: 1984.75 | L143: 1912.35 | M143: 1.84024
A144: 134 | B144: DRREDDY | C144: 4476.7 | D144: 4488.77 | E144: 4457.33 | F144: 4437.97 | G144: 4406.53 | H144: 4508.13 | I144: 4539.57 | J144: 4558.93 | K144: 4520.2 | L144: 4469.4 | M144: 1.76461
A145: 135 | B145: EIDPARRY | C145: 501.9 | D145: 507.35 | E145: 494.60 | F145: 487.30 | G145: 474.55 | H145: 514.65 | I145: 527.40 | J145: 534.70 | K145: 520.1 | L145: 500.05 | M145: 1.12066
A146: 136 | B146: EIHOTEL | C146: 156.6 | D146: 158.38 | E146: 154.37 | F146: 152.13 | G146: 148.12 | H146: 160.62 | I146: 164.63 | J146: 166.87 | K146: 162.4 | L146: 156.15 | M146: 3.2828
A147: 137 | B147: EPL | C147: 164.4 | D147: 162.75 | E147: 159.65 | F147: 154.90 | G147: 151.80 | H147: 167.50 | I147: 170.60 | J147: 175.35 | K147: 165.85 | L147: 158 | M147: 9.10315
A148: 138 | B148: EASEMYTRIP | C148: 47 | D148: 47.35 | E148: 46.40 | F148: 45.80 | G148: 44.85 | H148: 47.95 | I148: 48.90 | J148: 49.50 | K148: 48.3 | L148: 46.75 | M148: 59.75699
A149: 139 | B149: EDELWEISS | C149: 63.5 | D149: 63.32 | E149: 62.68 | F149: 61.87 | G149: 61.23 | H149: 64.13 | I149: 64.77 | J149: 65.58 | K149: 63.95 | L149: 62.5 | M149: 9.32423
A150: 140 | B150: EICHERMOT | C150: 3249.7 | D150: 3244.98 | E150: 3219.82 | F150: 3189.93 | G150: 3164.77 | H150: 3274.87 | I150: 3300.03 | J150: 3329.92 | K150: 3270.15 | L150: 3215.1 | M150: 5.70379
A151: 141 | B151: ELGIEQUIP | C151: 462.55 | D151: 460.62 | E151: 454.48 | F151: 446.42 | G151: 440.28 | H151: 468.68 | I151: 474.82 | J151: 482.88 | K151: 466.75 | L151: 452.55 | M151: 2.51771
A152: 142 | B152: EMAMILTD | C152: 392.5 | D152: 391.67 | E152: 387.38 | F152: 382.27 | G152: 377.98 | H152: 396.78 | I152: 401.07 | J152: 406.18 | K152: 395.95 | L152: 386.55 | M152: 2.46718
A153: 143 | B153: ENDURANCE | C153: 1325.95 | D153: 1325.18 | E153: 1310.77 | F153: 1295.58 | G153: 1281.17 | H153: 1340.37 | I153: 1354.78 | J153: 1369.97 | K153: 1339.6 | L153: 1310 | M153: 0.14638
A154: 144 | B154: ENGINERSIN | C154: 73.1 | D154: 73.52 | E154: 72.53 | F154: 71.97 | G154: 70.98 | H154: 74.08 | I154: 75.07 | J154: 75.63 | K154: 74.5 | L154: 72.95 | M154: 7.76403
A155: 145 | B155: EQUITASBNK | C155: 63.9 | D155: 63.25 | E155: 62.50 | F155: 61.10 | G155: 60.35 | H155: 64.65 | I155: 65.40 | J155: 66.80 | K155: 64 | L155: 61.85 | M155: 52.21017
A156: 146 | B156: ESCORTS | C156: 2087.9 | D156: 2095.63 | E156: 2071.27 | F156: 2054.63 | G156: 2030.27 | H156: 2112.27 | I156: 2136.63 | J156: 2153.27 | K156: 2120 | L156: 2079 | M156: 2.28163
A157: 147 | B157: EXIDEIND | C157: 173.65 | D157: 174.65 | E157: 172.00 | F157: 170.35 | G157: 167.70 | H157: 176.30 | I157: 178.95 | J157: 180.60 | K157: 177.3 | L157: 173 | M157: 16.88416
A158: 148 | B158: FDC | C158: 269.9 | D158: 269.98 | E158: 267.97 | F158: 266.03 | G158: 264.02 | H158: 271.92 | I158: 273.93 | J158: 275.87 | K158: 272 | L158: 268.05 | M158: 0.49962
A159: 149 | B159: NYKAA | C159: 144.3 | D159: 144.60 | E159: 142.30 | F159: 140.30 | G159: 138.00 | H159: 146.60 | I159: 148.90 | J159: 150.90 | K159: 146.9 | L159: 142.6 | M159: 68.98378
A160: 150 | B160: FEDERALBNK | C160: 125.2 | D160: 125.75 | E160: 124.25 | F160: 123.30 | G160: 121.80 | H160: 126.70 | I160: 128.20 | J160: 129.15 | K160: 127.25 | L160: 124.8 | M160: 52.83351
A161: 151 | B161: FACT | C161: 225.95 | D161: 228.22 | E161: 222.73 | F161: 219.52 | G161: 214.03 | H161: 231.43 | I161: 236.92 | J161: 240.13 | K161: 233.7 | L161: 225 | M161: 3.2173
A162: 152 | B162: FINEORG | C162: 4849.95 | D162: 4885.32 | E162: 4770.63 | F162: 4691.32 | G162: 4576.63 | H162: 4964.63 | I162: 5079.32 | J162: 5158.63 | K162: 5000 | L162: 4806 | M162: 0.33845
A163: 153 | B163: FINCABLES | C163: 661.5 | D163: 668.63 | E163: 641.37 | F163: 621.23 | G163: 593.97 | H163: 688.77 | I163: 716.03 | J163: 736.17 | K163: 695.9 | L163: 648.5 | M163: 10.2693
A164: 154 | B164: FINPIPE | C164: 169.75 | D164: 170.18 | E164: 166.67 | F164: 163.58 | G164: 160.07 | H164: 173.27 | I164: 176.78 | J164: 179.87 | K164: 173.7 | L164: 167.1 | M164: 3.52309
A165: 155 | B165: FSL | C165: 117.45 | D165: 117.32 | E165: 116.18 | F165: 114.92 | G165: 113.78 | H165: 118.58 | I165: 119.72 | J165: 120.98 | K165: 118.45 | L165: 116.05 | M165: 25.82701
A166: 156 | B166: FORTIS | C166: 273.6 | D166: 275.07 | E166: 270.38 | F166: 267.17 | G166: 262.48 | H166: 278.28 | I166: 282.97 | J166: 286.18 | K166: 279.75 | L166: 271.85 | M166: 4.03951
A167: 157 | B167: GRINFRA | C167: 1105.2 | D167: 1113.10 | E167: 1094.60 | F167: 1084.00 | G167: 1065.50 | H167: 1123.70 | I167: 1142.20 | J167: 1152.80 | K167: 1131.6 | L167: 1102.5 | M167: 0.47427
A168: 158 | B168: GAIL | C168: 95.55 | D168: 94.90 | E168: 93.80 | F168: 92.05 | G168: 90.95 | H168: 96.65 | I168: 97.75 | J168: 99.50 | K168: 96 | L168: 93.15 | M168: 97.21273
A169: 159 | B169: GMMPFAUDLR | C169: 1562.8 | D169: 1564.23 | E169: 1548.57 | F169: 1534.33 | G169: 1518.67 | H169: 1578.47 | I169: 1594.13 | J169: 1608.37 | K169: 1579.9 | L169: 1550 | M169: 0.58367
A170: 160 | B170: GMRINFRA | C170: 38.5 | D170: 38.58 | E170: 38.12 | F170: 37.73 | G170: 37.27 | H170: 38.97 | I170: 39.43 | J170: 39.82 | K170: 39.05 | L170: 38.2 | M170: 103.73931
A171: 161 | B171: GALAXYSURF | C171: 2387.4 | D171: 2386.13 | E171: 2362.27 | F171: 2337.13 | G171: 2313.27 | H171: 2411.27 | I171: 2435.13 | J171: 2460.27 | K171: 2410 | L171: 2361 | M171: 0.08933
A172: 162 | B172: GARFIBRES | C172: 2900.75 | D172: 2908.58 | E172: 2862.17 | F172: 2823.58 | G172: 2777.17 | H172: 2947.17 | I172: 2993.58 | J172: 3032.17 | K172: 2955 | L172: 2870 | M172: 0.09068
A173: 163 | B173: GICRE | C173: 150.1 | D173: 149.60 | E173: 147.20 | F173: 144.30 | G173: 141.90 | H173: 152.50 | I173: 154.90 | J173: 157.80 | K173: 152 | L173: 146.7 | M173: 12.61502
A174: 164 | B174: GLAND | C174: 1326.5 | D174: 1331.23 | E174: 1301.52 | F174: 1276.53 | G174: 1246.82 | H174: 1356.22 | I174: 1385.93 | J174: 1410.92 | K174: 1360.95 | L174: 1306.25 | M174: 6.10922
A175: 165 | B175: GLAXO | C175: 1291.1 | D175: 1286.63 | E175: 1277.27 | F175: 1263.43 | G175: 1254.07 | H175: 1300.47 | I175: 1309.83 | J175: 1323.67 | K175: 1296 | L175: 1272.8 | M175: 0.82592
A176: 166 | B176: GLENMARK | C176: 442.9 | D176: 438.57 | E176: 432.38 | F176: 421.87 | G176: 415.68 | H176: 449.08 | I176: 455.27 | J176: 465.78 | K176: 444.75 | L176: 428.05 | M176: 13.74248
A177: 167 | B177: GOCOLORS | C177: 962 | D177: 969.18 | E177: 950.47 | F177: 938.93 | G177: 920.22 | H177: 980.72 | I177: 999.43 | J177: 1010.97 | K177: 987.9 | L177: 957.65 | M177: 0.48056
A178: 168 | B178: GODFRYPHLP | C178: 1678.5 | D178: 1692.28 | E178: 1656.37 | F178: 1634.23 | G178: 1598.32 | H178: 1714.42 | I178: 1750.33 | J178: 1772.47 | K178: 1728.2 | L178: 1670.15 | M178: 0.50336
A179: 169 | B179: GODREJAGRO | C179: 439.85 | D179: 442.87 | E179: 436.03 | F179: 432.22 | G179: 425.38 | H179: 446.68 | I179: 453.52 | J179: 457.33 | K179: 449.7 | L179: 439.05 | M179: 0.57308
A180: 170 | B180: GODREJCP | C180: 929.9 | D180: 932.97 | E180: 921.93 | F180: 913.97 | G180: 902.93 | H180: 940.93 | I180: 951.97 | J180: 959.93 | K180: 944 | L180: 925 | M180: 8.05179
A181: 171 | B181: GODREJIND | C181: 417.15 | D181: 418.62 | E181: 414.53 | F181: 411.92 | G181: 407.83 | H181: 421.23 | I181: 425.32 | J181: 427.93 | K181: 422.7 | L181: 416 | M181: 1.49163
A182: 172 | B182: GODREJPROP | C182: 1106.65 | D182: 1118.78 | E182: 1090.87 | F182: 1075.08 | G182: 1047.17 | H182: 1134.57 | I182: 1162.48 | J182: 1178.27 | K182: 1146.7 | L182: 1103 | M182: 7.6209
A183: 173 | B183: GRANULES | C183: 280 | D183: 281.70 | E183: 277.45 | F183: 274.90 | G183: 270.65 | H183: 284.25 | I183: 288.50 | J183: 291.05 | K183: 285.95 | L183: 279.15 | M183: 6.06292
A184: 174 | B184: GRAPHITE | C184: 307.9 | D184: 308.63 | E184: 305.27 | F184: 302.63 | G184: 299.27 | H184: 311.27 | I184: 314.63 | J184: 317.27 | K184: 312 | L184: 306 | M184: 2.12128
A185: 175 | B185: GRASIM | C185: 1574.15 | D185: 1593.00 | E185: 1551.75 | F185: 1529.35 | G185: 1488.10 | H185: 1615.40 | I185: 1656.65 | J185: 1679.05 | K185: 1634.25 | L185: 1570.6 | M185: 10.52145
A186: 176 | B186: GESHIP | C186: 569.55 | D186: 574.33 | E186: 560.22 | F186: 550.88 | G186: 536.77 | H186: 583.67 | I186: 597.78 | J186: 607.12 | K186: 588.45 | L186: 565 | M186: 2.55253
A187: 177 | B187: GREENPANEL | C187: 283.9 | D187: 283.47 | E187: 279.93 | F187: 275.97 | G187: 272.43 | H187: 287.43 | I187: 290.97 | J187: 294.93 | K187: 287 | L187: 279.5 | M187: 1.11723
A188: 178 | B188: GRINDWELL | C188: 1949.5 | D188: 1946.08 | E188: 1921.72 | F188: 1893.93 | G188: 1869.57 | H188: 1973.87 | I188: 1998.23 | J188: 2026.02 | K188: 1970.45 | L188: 1918.3 | M188: 0.36481
A189: 179 | B189: GUJALKALI | C189: 646.55 | D189: 646.53 | E189: 640.02 | F189: 633.48 | G189: 626.97 | H189: 653.07 | I189: 659.58 | J189: 666.12 | K189: 653.05 | L189: 640 | M189: 0.41806
A190: 180 | B190: GAEL | C190: 236.75 | D190: 237.58 | E190: 232.87 | F190: 228.98 | G190: 224.27 | H190: 241.47 | I190: 246.18 | J190: 250.07 | K190: 242.3 | L190: 233.7 | M190: 1.58007
A191: 181 | B191: FLUOROCHEM | C191: 3010.8 | D191: 3023.58 | E191: 2962.27 | F191: 2913.73 | G191: 2852.42 | H191: 3072.12 | I191: 3133.43 | J191: 3181.97 | K191: 3084.9 | L191: 2975.05 | M191: 1.16009
A192: 182 | B192: GUJGASLTD | C192: 502.7 | D192: 506.98 | E192: 495.97 | F192: 489.23 | G192: 478.22 | H192: 513.72 | I192: 524.73 | J192: 531.47 | K192: 518 | L192: 500.25 | M192: 14.29841
A193: 183 | B193: GNFC | C193: 533.9 | D193: 537.78 | E193: 528.12 | F193: 522.33 | G193: 512.67 | H193: 543.57 | I193: 553.23 | J193: 559.02 | K193: 547.45 | L193: 532 | M193: 6.414
A194: 184 | B194: GPPL | C194: 102.85 | D194: 101.42 | E194: 99.03 | F194: 95.22 | G194: 92.83 | H194: 105.23 | I194: 107.62 | J194: 111.43 | K194: 103.8 | L194: 97.6 | M194: 48.34924
A195: 185 | B195: GSFC | C195: 127.45 | D195: 128.40 | E195: 126.10 | F195: 124.75 | G195: 122.45 | H195: 129.75 | I195: 132.05 | J195: 133.40 | K195: 130.7 | L195: 127.05 | M195: 11.09163
A196: 186 | B196: GSPL | C196: 266.95 | D196: 267.77 | E196: 264.38 | F196: 261.82 | G196: 258.43 | H196: 270.33 | I196: 273.72 | J196: 276.28 | K196: 271.15 | L196: 265.2 | M196: 6.71663
A197: 187 | B197: HEG | C197: 967.25 | D197: 972.90 | E197: 957.40 | F197: 947.55 | G197: 932.05 | H197: 982.75 | I197: 998.25 | J197: 1008.10 | K197: 988.4 | L197: 963.05 | M197: 1.24739
A198: 188 | B198: HCLTECH | C198: 1092.6 | D198: 1096.07 | E198: 1086.58 | F198: 1080.57 | G198: 1071.08 | H198: 1102.08 | I198: 1111.57 | J198: 1117.58 | K198: 1105.55 | L198: 1090.05 | M198: 22.12194
A199: 189 | B199: HDFCAMC | C199: 1818.75 | D199: 1820.72 | E199: 1805.43 | F199: 1792.12 | G199: 1776.83 | H199: 1834.03 | I199: 1849.32 | J199: 1862.63 | K199: 1836 | L199: 1807.4 | M199: 2.2382
A200: 190 | B200: HDFCBANK | C200: 1614.2 | D200: 1621.73 | E200: 1601.52 | F200: 1588.83 | G200: 1568.62 | H200: 1634.42 | I200: 1654.63 | J200: 1667.32 | K200: 1641.95 | L200: 1609.05 | M200: 51.79551
A201: 191 | B201: HDFCLIFE | C201: 494.45 | D201: 496.23 | E201: 490.72 | F201: 486.98 | G201: 481.47 | H201: 499.97 | I201: 505.48 | J201: 509.22 | K201: 501.75 | L201: 492.5 | M201: 27.28046
A202: 192 | B202: HFCL | C202: 64.6 | D202: 64.95 | E202: 63.20 | F202: 61.80 | G202: 60.05 | H202: 66.35 | I202: 68.10 | J202: 69.50 | K202: 66.7 | L202: 63.55 | M202: 40.1125
A203: 193 | B203: HLEGLAS | C203: 541.85 | D203: 545.62 | E203: 536.28 | F203: 530.72 | G203: 521.38 | H203: 551.18 | I203: 560.52 | J203: 566.08 | K203: 554.95 | L203: 540.05 | M203: 0.17378
A204: 194 | B204: HAPPSTMNDS | C204: 876.3 | D204: 883.43 | E204: 866.87 | F204: 857.43 | G204: 840.87 | H204: 892.87 | I204: 909.43 | J204: 918.87 | K204: 900 | L204: 874 | M204: 3.22564
A205: 195 | B205: HATSUN | C205: 892.95 | D205: 892.03 | E205: 885.92 | F205: 878.88 | G205: 872.77 | H205: 899.07 | I205: 905.18 | J205: 912.22 | K205: 898.15 | L205: 885 | M205: 0.07181
A206: 196 | B206: HAVELLS | C206: 1201.65 | D206: 1203.88 | E206: 1191.52 | F206: 1181.38 | G206: 1169.02 | H206: 1214.02 | I206: 1226.38 | J206: 1236.52 | K206: 1216.25 | L206: 1193.75 | M206: 5.22972
... 320 more rows

Sheet Bulk Deals
E6: Back To Main Page
A7: Subject : | B7: BULK DEAL | D7: =Main!B10 -> 2023-02-23
A9: Date | B9: Scrip code | C9: Scrip Name | D9: Client Name | E9: Buy / Sell | F9: Quantity Traded | G9: Trade Price / Wt.Avg.trade price | H9: Exchange
A10: 2023-02-22 | B10: 539773 | C10: ADVIKCA | D10: AKSHAY RAJENDRABHAI OSWAL | E10: BUY | F10: 1,121,738 | G10: 4.13 | H10: BSE
A11: 2023-02-22 | B11: 539773 | C11: ADVIKCA | D11: AKSHAY RAJENDRABHAI OSWAL | E11: SELL | F11: 1,121,738 | G11: 4.18 | H11: BSE
A12: 2023-02-22 | B12: 539773 | C12: ADVIKCA | D12: SHASHWATMALOT | E12: SELL | F12: 322,472 | G12: 4.36 | H12: BSE
A13: 2023-02-22 | B13: 539773 | C13: ADVIKCA | D13: SHASHWATMALOT | E13: BUY | F13: 1,544,725 | G13: 4.16 | H13: BSE
A14: 2023-02-22 | B14: 532386 | C14: CALSOFT | D14: SANJAY AGRAWAL | E14: BUY | F14: 85,500 | G14: 14.12 | H14: BSE
A15: 2023-02-22 | B15: 532386 | C15: CALSOFT | D15: NARAYAN DAS AGRAWAL | E15: SELL | F15: 80,000 | G15: 14.1 | H15: BSE
A16: 2023-02-22 | B16: 543435 | C16: CLARA | D16: MAMTA PIKESHKUMAR JAIN | E16: BUY | F16: 15,000 | G16: 240 | H16: BSE
A17: 2023-02-22 | B17: 543435 | C17: CLARA | D17: SW CAPITAL PRIVATE LIMITED | E17: SELL | F17: 13,500 | G17: 240.01 | H17: BSE
A18: 2023-02-22 | B18: 539559 | C18: DDIL | D18: ANOOP KUMAR CHIRIPAL | E18: SELL | F18: 250,000 | G18: 17.1 | H18: BSE
A19: 2023-02-22 | B19: 539559 | C19: DDIL | D19: KQUANT ENTERPRISES LLP | E19: SELL | F19: 300,000 | G19: 17.1 | H19: BSE
A20: 2023-02-22 | B20: 539559 | C20: DDIL | D20: COLOURSHINE HOSIERY PRIVATE LIMITED | E20: BUY | F20: 700,000 | G20: 15.5 | H20: BSE
A21: 2023-02-22 | B21: 539559 | C21: DDIL | D21: NAVRATRI SHARE TRADING PRIVATE LIMITED . | E21: SELL | F21: 477,980 | G21: 17.1 | H21: BSE
A22: 2023-02-22 | B22: 539559 | C22: DDIL | D22: MAYANK TAYAL | E22: SELL | F22: 322,521 | G22: 17.1 | H22: BSE
A23: 2023-02-22 | B23: 539405 | C23: DITCO | D23: RAJESH GUPTA | E23: SELL | F23: 19,596 | G23: 17.85 | H23: BSE
A24: 2023-02-22 | B24: 539405 | C24: DITCO | D24: AAYUSH AGGARWAL | E24: SELL | F24: 20,000 | G24: 17.9 | H24: BSE
A25: 2023-02-22 | B25: 539405 | C25: DITCO | D25: RAHULSINGLA | E25: BUY | F25: 25,000 | G25: 17.88 | H25: BSE
A26: 2023-02-22 | B26: 540811 | C26: DML | D26: JYOTI KETAN VAKHARIA | E26: SELL | F26: 100,000 | G26: 13.99 | H26: BSE
A27: 2023-02-22 | B27: 540811 | C27: DML | D27: HAXCO INVEST PRIVATE LIMITED | E27: BUY | F27: 80,000 | G27: 13.99 | H27: BSE
A28: 2023-02-22 | B28: 540266 | C28: GLCL | D28: ONKARA REDDY | E28: SELL | F28: 40,000 | G28: 41.06 | H28: BSE
A29: 2023-02-22 | B29: 540266 | C29: GLCL | D29: RAMA KRISHNA MITTINTI | E29: SELL | F29: 40,000 | G29: 41.05 | H29: BSE
A30: 2023-02-22 | B30: 531913 | C30: GOPAIST | D30: KALPANA ASHOK THACKER | E30: SELL | F30: 30,658 | G30: 11.7 | H30: BSE
A31: 2023-02-22 | B31: 531913 | C31: GOPAIST | D31: JYOTI SINGH | E31: SELL | F31: 40,814 | G31: 11.7 | H31: BSE
A32: 2023-02-22 | B32: 530663 | C32: GOYALASS | D32: SMITA AGRAWAL | E32: SELL | F32: 326,595 | G32: 2.25 | H32: BSE
A33: 2023-02-22 | B33: 530663 | C33: GOYALASS | D33: MISTERKAPOORKESHRI | E33: BUY | F33: 531,885 | G33: 2.19 | H33: BSE
A34: 2023-02-22 | B34: 530663 | C34: GOYALASS | D34: MANOHARAN SATHISHKUMAR | E34: SELL | F34: 249,501 | G34: 2.17 | H34: BSE
A35: 2023-02-22 | B35: 530663 | C35: GOYALASS | D35: SULEKHA RANI | E35: SELL | F35: 268,314 | G35: 2.23 | H35: BSE
A36: 2023-02-22 | B36: 530663 | C36: GOYALASS | D36: SULEKHA RANI | E36: BUY | F36: 18 | G36: 2.21 | H36: BSE
A37: 2023-02-22 | B37: 530663 | C37: GOYALASS | D37: MANOHARAN SATHISHKUMAR | E37: BUY | F37: 21,775 | G37: 2.18 | H37: BSE
A38: 2023-02-22 | B38: 526967 | C38: HEERAISP | D38: SURESH MANGILAL SOMANI | E38: BUY | F38: 57,000 | G38: 10.05 | H38: BSE
A39: 2023-02-22 | B39: 526967 | C39: HEERAISP | D39: JAYA VERMA | E39: SELL | F39: 50,000 | G39: 10.5 | H39: BSE
A40: 2023-02-22 | B40: 526967 | C40: HEERAISP | D40: MAYANK RASIKLAL KOTADIA | E40: BUY | F40: 49,804 | G40: 10.61 | H40: BSE
A41: 2023-02-22 | B41: 526967 | C41: HEERAISP | D41: MAYANK RASIKLAL KOTADIA | E41: SELL | F41: 100,000 | G41: 10.05 | H41: BSE
A42: 2023-02-22 | B42: 543769 | C42: INDONG | D42: MUKUNDRAI KANAKLAL MAHETA | E42: BUY | F42: 92,000 | G42: 21.62 | H42: BSE
A43: 2023-02-22 | B43: 541083 | C43: INFLAME | D43: INDIA EMERGING GIANTS FUND LIMITED | E43: BUY | F43: 50,000 | G43: 467.36 | H43: BSE
A44: 2023-02-22 | B44: 543667 | C44: INOXGREEN | D44: PILOT CONSULTANTS PRIVATE LIMITED | E44: SELL | F44: 3,300,000 | G44: 42.9 | H44: BSE
A45: 2023-02-22 | B45: 543667 | C45: INOXGREEN | D45: ICM FINANCE PRIVATE LIMITED | E45: BUY | F45: 3,300,000 | G45: 42.9 | H45: BSE
A46: 2023-02-22 | B46: 543286 | C46: JETMALL | D46: MANOHARLAL BANSILAL KANJANI | E46: BUY | F46: 42,000 | G46: 21.93 | H46: BSE
A47: 2023-02-22 | B47: 531784 | C47: KCLINFRA | D47: RAJESH KUMAR SODHANI | E47: BUY | F47: 325,085 | G47: 1.71 | H47: BSE
A48: 2023-02-22 | B48: 505523 | C48: MAHACORP | D48: BHAVYA DHIMAN | E48: BUY | F48: 1,100,198 | G48: 1.29 | H48: BSE
A49: 2023-02-22 | B49: 539767 | C49: MNIL | D49: KAMAL KUMAR JALAN SEC. PVT. LTD | E49: BUY | F49: 19,285 | G49: 14.95 | H49: BSE
A50: 2023-02-22 | B50: 539767 | C50: MNIL | D50: VIVEK KUMAR BHAUKA | E50: SELL | F50: 25,000 | G50: 14.95 | H50: BSE
A51: 2023-02-22 | B51: 539767 | C51: MNIL | D51: AGROFTER VENTURES PRIVATE LIMITED | E51: BUY | F51: 25,000 | G51: 14.95 | H51: BSE
A52: 2023-02-22 | B52: 543207 | C52: NATURAL | D52: HEMA JAYPRAKASH BHAVSAR | E52: BUY | F52: 73,502 | G52: 5.5 | H52: BSE
A53: 2023-02-22 | B53: 543207 | C53: NATURAL | D53: PUSHPENDRA | E53: SELL | F53: 57,666 | G53: 5.5 | H53: BSE
A54: 2023-02-22 | B54: 543207 | C54: NATURAL | D54: PUSHPENDRA | E54: BUY | F54: 47,939 | G54: 5.29 | H54: BSE
A55: 2023-02-22 | B55: 543282 | C55: NIKSTECH | D55: ANKIT MAHESHBHAI SHAH | E55: BUY | F55: 3,000 | G55: 165.48 | H55: BSE
A56: 2023-02-22 | B56: 543282 | C56: NIKSTECH | D56: SHALIN MAHESHBHAI SHAH | E56: BUY | F56: 3,000 | G56: 181.2 | H56: BSE
A57: 2023-02-22 | B57: 543282 | C57: NIKSTECH | D57: SHERWOOD SECURITIES PVT LTD | E57: SELL | F57: 4,200 | G57: 181.2 | H57: BSE
A58: 2023-02-22 | B58: 531802 | C58: PRERINFRA | D58: GRISHMABEN ALKESHBHAI SHAH | E58: SELL | F58: 80,000 | G58: 34.69 | H58: BSE
A59: 2023-02-22 | B59: 543366 | C59: SBLI | D59: CORE INC | E59: SELL | F59: 6,000 | G59: 81.4 | H59: BSE
A60: 2023-02-22 | B60: 543366 | C60: SBLI | D60: JAGDIP PANACHAND VORA (HUF) | E60: BUY | F60: 4,800 | G60: 81.4 | H60: BSE
A61: 2023-02-22 | B61: 540147 | C61: SHASHIJIT | D61: AJIT DEEPCHAND JAIN | E61: SELL | F61: 70,000 | G61: 35 | H61: BSE
A62: 2023-02-22 | B62: 540147 | C62: SHASHIJIT | D62: NARAYANLAL SARDA | E62: BUY | F62: 57,142 | G62: 35 | H62: BSE
A63: 2023-02-22 | B63: 538923 | C63: SOFCOM | D63: RITESH JITENDRA VASNAWALA | E63: SELL | F63: 47,000 | G63: 91.89 | H63: BSE
A64: 2023-02-22 | B64: 538923 | C64: SOFCOM | D64: AMI NAMAN SHAH | E64: BUY | F64: 30,504 | G64: 92.07 | H64: BSE
A65: 2023-02-22 | B65: 538923 | C65: SOFCOM | D65: PANNABEN BHANUBHAI SHAH | E65: BUY | F65: 37,002 | G65: 91.26 | H65: BSE
A66: 2023-02-22 | B66: 538923 | C66: SOFCOM | D66: NAMAN BHANUBHAI SHAH | E66: BUY | F66: 53,667 | G66: 92.09 | H66: BSE
A67: 2023-02-22 | B67: 538923 | C67: SOFCOM | D67: JIGAR MUKESHBHAI SHAH | E67: SELL | F67: 2 | G67: 91.75 | H67: BSE
A68: 2023-02-22 | B68: 538923 | C68: SOFCOM | D68: JIGAR MUKESHBHAI SHAH | E68: BUY | F68: 29,002 | G68: 91.9 | H68: BSE
A69: 2023-02-22 | B69: 531529 | C69: SOFTRAKV | D69: SAMIR R SHAH HUF | E69: BUY | F69: 374,922 | G69: 7.57 | H69: BSE
A70: 2023-02-22 | B70: AGRITECH | C70: Agri-Tech (India) Limited | D70: VEENA RAJESH SHAH | E70: BUY | F70: 30,000 | G70: 112.2 | H70: NSE
A71: 2023-02-22 | B71: BTML | C71: Bodhi Tree Multimedia Ltd | D71: OLIA KHUSHROOH JAL | E71: BUY | F71: 77,500 | G71: 176.68 | H71: NSE
A72: 2023-02-22 | B72: GODHA | C72: Godha Cabcon Insulat Ltd | D72: VIBRANT SECURITIES PVT. LTD | E72: BUY | F72: 1,067,444 | G72: 1.75 | H72: NSE
A73: 2023-02-22 | B73: GOYALALUM | C73: Goyal Aluminiums Limited | D73: TOUCHLINE SECURITIES PRIVATE LIMITED | E73: BUY | F73: 78,824 | G73: 257.56 | H73: NSE
A74: 2023-02-22 | B74: GSTL | C74: Globesecure Techno Ltd | D74: LAXMI VYANKATESH ENTERPRISES | E74: BUY | F74: 52,000 | G74: 145.35 | H74: NSE
A75: 2023-02-22 | B75: GSTL | C75: Globesecure Techno Ltd | D75: ASHISH SHIPBREAKERS PVT.LTD | E75: BUY | F75: 50,000 | G75: 140.5 | H75: NSE
A76: 2023-02-22 | B76: GSTL | C76: Globesecure Techno Ltd | D76: VEENA RAJESH SHAH | E76: BUY | F76: 218,000 | G76: 143.95 | H76: NSE
A77: 2023-02-22 | B77: HEADSUP | C77: Heads UP Ventures Limited | D77: HETRAM | E77: BUY | F77: 214,235 | G77: 11.95 | H77: NSE
A78: 2023-02-22 | B78: HEADSUP | C78: Heads UP Ventures Limited | D78: TWO ROADS TRADING PRIVATE LIMITED | E78: BUY | F78: 163,220 | G78: 12.06 | H78: NSE
A79: 2023-02-22 | B79: LRRPL | C79: Lead Rec And Rub Prod Ltd | D79: ELANKUMARANPERIAKARUPPAN | E79: BUY | F79: 90,000 | G79: 26.3 | H79: NSE
A80: 2023-02-22 | B80: LRRPL | C80: Lead Rec And Rub Prod Ltd | D80: SELVAMURTHY AKILANDESWARI | E80: BUY | F80: 60,000 | G80: 26.3 | H80: NSE
A81: 2023-02-22 | B81: MANAKSTEEL | C81: Manaksia Steels Ltd | D81: BRILLIANT INVESTMENT CONSULTANTS PRIVATE LIMTED | E81: BUY | F81: 1,500,000 | G81: 44.2 | H81: NSE
A82: 2023-02-22 | B82: OBCL | C82: Orissa Bengal Carrier Ltd | D82: ACHINTYA SECURITIES PRIVATE LIMITED | E82: BUY | F82: 110,000 | G82: 55.03 | H82: NSE
A83: 2023-02-22 | B83: OBCL | C83: Orissa Bengal Carrier Ltd | D83: COMPANY SHIVAAY TRADING | E83: BUY | F83: 75,465 | G83: 55 | H83: NSE
A84: 2023-02-22 | B84: PERFECT | C84: Perfect Infraengineer Ltd | D84: KBN INVESTMENTS PVT. LTD. | E84: BUY | F84: 102,000 | G84: 19.85 | H84: NSE
A85: 2023-02-22 | B85: RMDRIP | C85: R M Drip & Sprink Sys Ltd | D85: SHETTY LEENA SACHIN | E85: BUY | F85: 48,000 | G85: 30.15 | H85: NSE
A86: 2023-02-22 | B86: SECURCRED | C86: SecUR Credentials Limited | D86: ANUSTUP TRADING PRIVATE LIMITED | E86: BUY | F86: 249,475 | G86: 29.85 | H86: NSE
A87: 2023-02-22 | B87: SECURCRED | C87: SecUR Credentials Limited | D87: PALAK INTERMEDIATES PRIVATE LIMITED | E87: BUY | F87: 327,105 | G87: 29.95 | H87: NSE
A88: 2023-02-22 | B88: SUULD | C88: Suumaya Industries Ltd | D88: L7 HITECH PRIVATE LIMITED | E88: BUY | F88: 409,381 | G88: 23.36 | H88: NSE
A89: 2023-02-22 | B89: SUULD | C89: Suumaya Industries Ltd | D89: SALIM KASAMBHAI FULANI | E89: BUY | F89: 537,057 | G89: 23.1 | H89: NSE
A90: 2023-02-22 | B90: SVPGLOB | C90: SVP GLOBAL TEXTILES LTD | D90: CHINTAN DEEPAK DOSHI | E90: BUY | F90: 900,000 | G90: 19.21 | H90: NSE
A91: 2023-02-22 | B91: AGRITECH | C91: Agri-Tech (India) Limited | D91: VEENA RAJESH SHAH | E91: SELL | F91: 30,000 | G91: 107.79 | H91: NSE
A92: 2023-02-22 | B92: DELHIVERY | C92: Delhivery Limited | D92: INTERNET FUND III PTE. LTD. | E92: SELL | F92: 12,363,060 | G92: 335.06 | H92: NSE
A93: 2023-02-22 | B93: GODHA | C93: Godha Cabcon Insulat Ltd | D93: MADHU DEVI GODHA | E93: SELL | F93: 1,948,887 | G93: 1.75 | H93: NSE
A94: 2023-02-22 | B94: GODHA | C94: Godha Cabcon Insulat Ltd | D94: VIBRANT SECURITIES PVT. LTD | E94: SELL | F94: 1,367,444 | G94: 1.8 | H94: NSE
A95: 2023-02-22 | B95: GOYALALUM | C95: Goyal Aluminiums Limited | D95: TOUCHLINE SECURITIES PRIVATE LIMITED | E95: SELL | F95: 104,170 | G95: 257.9 | H95: NSE
A96: 2023-02-22 | B96: GSTL | C96: Globesecure Techno Ltd | D96: LAXMI VYANKATESH ENTERPRISES | E96: SELL | F96: 46,000 | G96: 141.63 | H96: NSE
A97: 2023-02-22 | B97: GSTL | C97: Globesecure Techno Ltd | D97: VEENA RAJESH SHAH | E97: SELL | F97: 218,000 | G97: 143.51 | H97: NSE
A98: 2023-02-22 | B98: GSTL | C98: Globesecure Techno Ltd | D98: VARUN KRISHNAVTAR KABRA | E98: SELL | F98: 46,000 | G98: 140.5 | H98: NSE
A99: 2023-02-22 | B99: GSTL | C99: Globesecure Techno Ltd | D99: ASHISH SHIPBREAKERS PVT.LTD | E99: SELL | F99: 4,000 | G99: 141.05 | H99: NSE
A100: 2023-02-22 | B100: HEADSUP | C100: Heads UP Ventures Limited | D100: HETRAM | E100: SELL | F100: 215,084 | G100: 11.99 | H100: NSE
A101: 2023-02-22 | B101: HEADSUP | C101: Heads UP Ventures Limited | D101: TWO ROADS TRADING PRIVATE LIMITED | E101: SELL | F101: 165,201 | G101: 11.98 | H101: NSE
A102: 2023-02-22 | B102: LRRPL | C102: Lead Rec And Rub Prod Ltd | D102: MULTIPLIER SHARE & STOCK ADVISORS PRIVATE LIMITED | E102: SELL | F102: 54,000 | G102: 26.3 | H102: NSE
A103: 2023-02-22 | B103: MANAKSTEEL | C103: Manaksia Steels Ltd | D103: NISHCHAYA TRADINGS PRIVATE LIMITED | E103: SELL | F103: 1,500,000 | G103: 44.2 | H103: NSE
A104: 2023-02-22 | B104: OBCL | C104: Orissa Bengal Carrier Ltd | D104: ACHINTYA SECURITIES PRIVATE LIMITED | E104: SELL | F104: 110,000 | G104: 54.9 | H104: NSE
A105: 2023-02-22 | B105: OBCL | C105: Orissa Bengal Carrier Ltd | D105: COMPANY SHIVAAY TRADING | E105: SELL | F105: 122,461 | G105: 55.17 | H105: NSE
A106: 2023-02-22 | B106: PATEL-RE | C106: Patel Engineering Limited | D106: BANK OF BARODA | E106: SELL | F106: 2,980,282 | G106: 0.25 | H106: NSE
A107: 2023-02-22 | B107: PERFECT | C107: Perfect Infraengineer Ltd | D107: MANAN RAJENDRA DOSHI | E107: SELL | F107: 96,000 | G107: 19.85 | H107: NSE
A108: 2023-02-22 | B108: PERFECT | C108: Perfect Infraengineer Ltd | D108: SHREEJI CAPITAL AND FINANCE LIMITED | E108: SELL | F108: 342,000 | G108: 19.85 | H108: NSE
A109: 2023-02-22 | B109: SECURCRED | C109: SecUR Credentials Limited | D109: ANUSTUP TRADING PRIVATE LIMITED | E109: SELL | F109: 249,475 | G109: 29.89 | H109: NSE
A110: 2023-02-22 | B110: SECURCRED | C110: SecUR Credentials Limited | D110: PALAK INTERMEDIATES PRIVATE LIMITED | E110: SELL | F110: 124,091 | G110: 29.31 | H110: NSE
A111: 2023-02-22 | B111: SUULD | C111: Suumaya Industries Ltd | D111: BLUE ANGEL STOCK BROKERS PRIVATE LIMITED | E111: SELL | F111: 404,298 | G111: 23.19 | H111: NSE
A112: 2023-02-22 | B112: SUULD | C112: Suumaya Industries Ltd | D112: L7 HITECH PRIVATE LIMITED | E112: SELL | F112: 150,000 | G112: 23 | H112: NSE
A113: 2023-02-22 | B113: SUULD | C113: Suumaya Industries Ltd | D113: SALIM KASAMBHAI FULANI | E113: SELL | F113: 537,057 | G113: 23.41 | H113: NSE
A114: 2023-02-22 | B114: SVPGLOB | C114: SVP GLOBAL TEXTILES LTD | D114: MANISH KUMAR | E114: SELL | F114: 1,418,092 | G114: 19.3 | H114: NSE

Sheet Call Tracker (Equity & F&O)
M5: Back To Main Page
A6: Retail Research Technical Calls & Fundamental Performance Report for the month of Feb-2023
M7: =Main!B10 -> 2023-02-23
B8: Positional Call
A9: Sr.no | B9: Date | D9: Company | E9: Rec | F9: Rec Price | G9: Stop Loss*** | H9: Call Closed At | I9: Target | J9: Remark | K9: Profit / Loss per Share | L9: All charges | M9: Net Gain / Loss % | N9: Status | O9: Closed Date | P9: Market Closing Price
A10: 1 | B10: 2022-10-27 | D10: ASHOKLEY | E10: Buy | F10: 147 | G10: 137 | H10: 154.5 | I10: 160-170 | J10: Profit of Rs.7.5/- | K10: =H10-F10 -> 7.5 | L10: =(F10*-0.7)/100 -> -1.03 | M10: =(K10+L10)/F10 -> 4.40% | N10: Successful | O10: 2022-02-02 | R10: N
A11: 2 | B11: 2022-11-25 | D11: SANOFI | E11: Buy | F11: 5670 | G11: 5250 | H11: 5905 | I11: 6200-6500 | J11: Part profit of Rs.235/- | K11: =H11-F11 -> 235 | L11: =(F11*-0.7)/100 -> -39.69 | M11: =(K11+L11)/F11 -> 3.44% | N11: Successful | O11: 2022-12-28 | R11: H
A12: 3 | B12: 2022-12-01 | D12: TCS | E12: Buy<> | F12: 3380 | G12: 3140 | H12: 3565 | I12: 3800-4000 | J12: Part profit of Rs.185/- | K12: =H12-F12 -> 185 | L12: =(F12*-0.7)/100 -> -23.66 | M12: =(K12+L12)/F12 -> 4.77% | N12: Successful | O12: 2023-02-16 | R12: H
A13: 4 | B13: 2023-01-10 | D13: BHARTIARTL | E13: Buy | F13: 780-800 | G13: 735 | I13: 870-900 | J13: Open | R13: H
A14: 5 | B14: 2023-01-16 | D14: NAVINFLUOR | E14: Buy | F14: 4025 | G14: 3770 | H14: 4260 | I14: 4300-4500 | J14: Profit of Rs.235/- | K14: =H14-F14 -> 235 | L14: =(F14*-0.7)/100 -> -28.18 | M14: =(K14+L14)/F14 -> 5.14% | N14: Successful | O14: 2023-02-07 | R14: N
A15: 6 | B15: 2023-01-19 | D15: SRF | E15: Buy | F15: 2140 | G15: 2000 | H15: 2277 | I15: 2300-2400 | J15: Profit of Rs.137/- | K15: 137 | L15: -14.98 | M15: 5.70% | N15: Successful | O15: 2023-02-10 | R15: N
A16: 7 | B16: 2023-01-24 | D16: PIIND | E16: Accu | F16: 3045 | G16: 2890 | H16: 3245 | I16: 3300-3400 | J16: Profit of Rs.200/- | K16: =H16-F16 -> 200 | L16: =(F16*-0.7)/100 -> -21.32 | M16: =(K16+L16)/F16 -> 5.87% | N16: Successful | O16: 2023-02-15 | R16: H
A17: 8 | B17: 2023-01-24 | D17: KIMS | E17: Buy | F17: 1435 | G17: 1340 | H17: 1512.5 | I17: 1580-1650 | J17: Part Profit of Rs.77.5/- | K17: =H17-F17 -> 77.5 | L17: =(F17*-0.7)/100 -> -10.05 | M17: =(K17+L17)/F17 -> 4.70% | N17: Successful | O17: 2023-01-31 | R17: N
A18: 9 | B18: 2023-01-25 | D18: REDINGTON | E18: Accu | F18: 177.5 | G18: 167 | H18: 189.5 | I18: 195-200 | J18: Profit of Rs.12/- | K18: =H18-F18 -> 12 | L18: =(F18*-0.7)/100 -> -1.24 | M18: =(K18+L18)/F18 -> 6.06% | N18: Successful | O18: 2023-02-01 | R18: H
A19: 10 | B19: 2023-01-27 | D19: HDFCAMC | E19: Accu | F19: 1890-1930 | G19: 1790 | I19: 2050-2150 | J19: Open | R19: H
A20: 11 | B20: 2023-02-01 | D20: FLUOROCHEM | E20: Accu | F20: 2645 | G20: 2480 | H20: 2840 | I20: 2900-3000 | J20: Profit of Rs.195/- | K20: =H20-F20 -> 195 | L20: =(F20*-0.7)/100 -> -18.52 | M20: =(K20+L20)/F20 -> 6.67% | N20: Successful | O20: 2023-02-07 | R20: H
A21: 12 | B21: 2023-02-01 | D21: AXISBANK | E21: Accu | F21: 825-850 | G21: 790 | I21: 900-950 | J21: Open | R21: H
A22: 13 | B22: 2023-02-02 | D22: SBIN | E22: Accu | F22: 522.5 | G22: 478 | H22: 553 | I22: 570-600 | J22: Profit of Rs.30.5/- | K22: =H22-F22 -> 30.5 | L22: =(F22*-0.7)/100 -> -3.66 | M22: =(K22+L22)/F22 -> 5.14% | N22: Successful | O22: 2023-02-10 | R22: H
A23: 14 | B23: 2023-02-06 | D23: LTIM | E23: Accu | F23: 4500 | G23: 4190 | H23: 4785 | I23: 4800-5000 | J23: Profit of Rs.285/- | K23: =H23-F23 -> 285 | L23: =(F23*-0.7)/100 -> -31.50 | M23: =(K23+L23)/F23 -> 5.63% | N23: Successful | O23: 2023-02-16 | R23: H
A24: 15 | B24: 2023-02-06 | D24: JSWSTEEL | E24: Accu | F24: 695-717.5 | G24: 660 | I24: 770-800 | J24: Open | R24: H
A25: 16 | B25: 2023-02-06 | D25: ACC | E25: Accu | F25: 1890 | G25: 1745 | H25: 2025 | I25: 2100-2200 | J25: Profit of Rs.135/- | K25: =H25-F25 -> 135 | L25: =(F25*-0.7)/100 -> -13.23 | M25: =(K25+L25)/F25 -> 6.44% | N25: Successful | O25: 2023-02-07 | R25: H
A26: 17 | B26: 2023-02-08 | D26: INTELLECT | E26: Accu | F26: 452.2 | G26: 415 | H26: 474 | I26: 490-510 | J26: Profit of Rs.21.8/- | K26: =H26-F26 -> 21.8 | L26: =(F26*-0.7)/100 -> -3.17 | M26: =(K26+L26)/F26 -> 4.12% | N26: Successful | O26: 2023-02-14 | R26: H
A27: 18 | B27: 2023-02-09 | D27: ACC | E27: Accu | F27: 1810-1895 | G27: 1745 | I27: 2100-2200 | J27: Open | R27: H
A28: 19 | B28: 2023-02-15 | D28: PIIND | E28: Accu | F28: 3085 | G28: 2890 | H28: 3265 | I28: 3300-3400 | J28: Profit of Rs.180/- | K28: =H28-F28 -> 180 | L28: =(F28*-0.7)/100 -> -21.60 | M28: =(K28+L28)/F28 -> 5.13% | N28: Successful | O28: 2023-02-16 | R28: H
A29: 20 | B29: 2023-02-16 | D29: PIDILITIND | E29: Accu | F29: 2250-2310 | G29: 2170 | I29: 2450-2500 | J29: Open | R29: H
A30: 21 | B30: 2023-02-20 | D30: SHARDACROP | E30: Accu | F30: 452.5-472.5 | G30: 425 | I30: 520-550 | J30: Open | R30: H
A31: 22 | B31: 2023-02-21 | D31: CANBK | E31: Accu | F31: 281-288 | G31: 268 | I31: 315-335 | J31: Open | R31: N
A32: 23 | B32: 2023-02-21 | D32: HAPPIESTMNDS | E32: Accu | F32: 865-899 | G32: 830 | I32: 960-1000 | J32: Open | R32: H
A36: CLBS = Closing Basis ***
A37: Dividend adjusted <> | F37: Reinitiated $
A38: Part book {} | D38: s | F38: Revised stoploss #
B40: Momentum Call
A41: Sr.no | B41: Date | D41: Company | E41: Rec | F41: Rec Price | G41: Stop Loss | H41: Call Closed At | I41: Target | J41: Remark | K41: Profit / Loss per Share/Lot | L41: All charges | M41: Net Gain / Loss % | N41: Status | O41: Closed Date
A42: 1 | B42: 2023-01-31 | D42: SBIN | E42: Buy | F42: 551 | G42: 530 | H42: 530 | I42: 575-585 | J42: Loss of Rs.21 | K42: =H42-F42 -> -21 | L42: =(F42*-0.7)/100 -> -3.86 | M42: =(K42+L42)/F42 -> -4.51% | N42: Unsuccessful | O42: 2023-02-01 | R42: H
A43: 2 | B43: 2023-02-01 | D43: LT | E43: Buy | F43: 2110 | G43: 2035 | H43: 2175 | I43: 2200-2250 | J43: Profit of Rs.65/- | K43: 65 | L43: =(F43*-0.07)/100 -> -1.48 | M43: 3.01% | N43: Successful | O43: 2023-02-01 | R43: H
A44: 3 | B44: 2023-02-01 | D44: AVANTIFEED | E44: Buy | F44: 406 | G44: 390 | H44: 388 | I44: 425-435 | J44: Loss of Rs.18 | K44: =H44-F44 -> -18 | L44: =(F44*-0.07)/100 -> -0.28 | M44: =(K44+L44)/F44 -> -4.50% | N44: Unsuccessful | O44: 2023-02-01 | R44: H
A45: 4 | B45: 2023-02-01 | D45: SIEMENS | E45: Buy | F45: 2965 | G45: 2850 | H45: 3044 | I45: 3100-3150 | J45: Profit of Rs.79/- | K45: 79 | L45: =(F45*-0.7)/100 -> -20.76 | M45: 1.96% | N45: Successful | O45: 2023-02-03 | R45: H
A46: 5 | B46: 2023-02-02 | D46: RELIANCE | E46: Buy | F46: 2315 | G46: 2245 | H46: 2400 | I46: 2400-2450 | J46: Profit of Rs.85/- | K46: =H46-F46 -> 85 | L46: =(F46*-0.7)/100 -> -16.21 | M46: =(K46+L46)/F46 -> 2.97% | N46: Successful | O46: 2023-02-15 | R46: H
A47: 6 | B47: 2023-02-02 | D47: LT | E47: Buy | F47: 2125 | G47: 2060 | H47: 2192.5 | I47: 2220-2260 | J47: Profit of Rs.67.50/- | K47: =H47-F47 -> 67.5 | L47: =(F47*-0.7)/100 -> -14.88 | M47: =(K47+L47)/F47 -> 2.48% | N47: Successful | O47: 2023-02-13 | R47: H
A48: 7 | B48: 2023-02-07 | D48: PRESTIGE | E48: Buy | F48: 399 | G48: 387 | H48: 413 | I48: 415-425 | J48: Profit of Rs.14/- | K48: =H48-F48 -> 14 | L48: =(F48*-0.7)/100 -> -2.79 | M48: =(K48+L48)/F48 -> 2.81% | N48: Successful | O48: 2023-02-10 | R48: H
A49: 8 | B49: 2023-02-07 | D49: M&M | E49: Buy | F49: 1365 | G49: 1330 | H49: 1395 | I49: 1410-1430 | J49: Profit of Rs.30/- | K49: 30 | L49: =(F49*-0.7)/100 -> -9.56 | M49: 1.50% | N49: Successful | O49: 2023-02-16 | R49: H
A50: 9 | B50: 2023-02-08 | D50: BHARTIARTL | E50: Buy | F50: 770-775 | G50: 748 | I50: 800-810 | J50: Open | R50: H
A51: 10 | B51: 2023-02-14 | D51: CIPLA | E51: Buy | F51: 1023 | G51: 995 | H51: 965 | I51: 1060-1080 | J51: Loss of Rs.58 | K51: =H51-F51 -> -58 | L51: =(F51*-0.07)/100 -> -0.72 | M51: =(K51+L51)/F51 -> -5.74% | N51: Unsuccessful | O51: 2023-02-20 | R51: H
A52: 11 | B52: 2023-02-15 | D52: INTELLECT | E52: Buy | F52: 455 | G52: 442 | H52: 465.5 | I52: 470-475 | J52: Profit of Rs.10.5/- | K52: =H52-F52 -> 10.5 | L52: =(F52*-0.07)/100 -> -0.32 | M52: =(K52+L52)/F52 -> 2.24% | N52: Successful | O52: 2023-02-15 | R52: H
A53: 12 | B53: 2023-02-15 | D53: FLUOROCHEM | E53: Buy | F53: 2860 | G53: 2770 | H53: 2950 | I53: 3000-3050 | J53: Profit of Rs.90/- | K53: 90 | L53: =(F53*-0.7)/100 -> -20.02 | M53: 2.45% | N53: Successful | O53: 2023-02-16 | R53: H
A54: 13 | B54: 2023-02-16 | D54: BAJAJFINSV | E54: Buy | F54: 1420 | G54: 1379 | H54: 1362.5 | I54: 1470-1490 | J54: Loss of Rs.57.5/- | K54: -57.5 | L54: =(F54*-0.7)/100 -> -9.94 | M54: -4.75% | N54: Unsuccessful | O54: 2023-02-22 | R54: H
A55: 14 | B55: 2023-02-17 | D55: TECHM | E55: Buy | F55: 1113 | G55: 1075 | H55: 1153 | I55: 1160-1180 | J55: Profit of Rs.40/- | K55: =H55-F55 -> 40 | L55: =(F55*-0.7)/100 -> -7.79 | M55: =(K55+L55)/F55 -> 2.89% | N55: Successful | O55: 2023-02-20 | R55: H
A56: 15 | B56: 2023-02-17 | D56: APLLTD | E56: Buy | F56: 506.5 | G56: 492 | H56: 520.5 | I56: 520-530 | J56: Profit of Rs.14/- | K56: =H56-F56 -> 14 | L56: =(F56*-0.7)/100 -> -3.55 | M56: =(K56+L56)/F56 -> 2.06% | N56: Successful | O56: 2023-02-21 | R56: H
A57: 16 | B57: 2023-02-20 | D57: HCLTECH | E57: Buy | F57: 1118-1124 | G57: 1090 | I57: 1160-1180 | J57: Open | R57: H
A62: CLBS = Closing Basis *** | H62: *
A63: Dividend adjusted <> | F63: Reinitiated $
F64: Revised stoploss #
A66: Master Trade High Risk
A67: Sr.no | B67: Date | D67: Company | E67: Rec | F67: Rec Price | G67: Stop Loss | H67: Call Closed At | I67: Target | J67: Remark | K67: Profit / Loss per share | L67: All charges | M67: Gain / Loss per Lot | N67: Lot | O67: Status | P67: Closed Date
A68: 1 | B68: 2023-02-09 | D68: RELIANCE FEB FUT | E68: Buy | F68: 2346 | G68: 2297 | H68: 2395 | I68: 2420-2450 | J68: Profit of Rs.49/- | K68: =H68-F68 -> 49 | L68: =(H68*N68)*0.07% -> 419.13 | M68: =(K68*N68)-L68 -> 11830.9 | N68: 250 | O68: Successful | P68: 2023-02-15 | R68: H
A69: 2 | B69: 2023-02-20 | D69: M&M MAR FUT | E69: Buy | F69: 1349 | G69: 1331 | H69: 1363 | I69: 1380-1390 | J69: Profit of Rs.14/- | K69: =H69-F69 -> 14 | L69: =(H69*N69)*0.07% -> 667.87 | M69: =(K69*N69)-L69 -> 9132.1 | N69: 700 | O69: Successful | P69: 2023-02-20 | R69: H
A70: 3 | B70: 2023-02-20 | D70: BANDHANBNK MAR FUT | E70: Sell | F70: 239.25 | G70: 242 | H70: 233.5 | I70: 230-228 | J70: Profit of Rs.4/- | K70: =F70-H70 -> 5.75 | L70: 294.21 | M70: =((4*N70)-394.21) -> 6805.79 | N70: 1800 | O70: Successful | P70: 2023-02-21 | R70: H
D71: BANDHANBNK 230 PE MAR | E71: Sell | F71: 6.25 | H71: 8 | K71: =F71-H71 -> -1.75 | L71: 100.00 | R71: H
A72: 4 | B72: 2023-02-20 | D72: SIEMENS MAR FUT | E72: Buy | F72: 3227.5 | G72: 3185 | H72: 3263.5 | I72: 3260-3300 | J72: Profit of Rs.36/- | K72: =H72-F72 -> 36 | L72: =(H72*N72)*0.07% -> 628.22 | M72: =(K72*N72)-L72 -> 9271.8 | N72: 275 | O72: Successful | P72: 2023-02-21 | R72: N
A73: 5 | B73: 2023-02-21 | D73: IGL MAR FUT | E73: Buy | F73: 442-443 | G73: 432 | I73: 455-463 | J73: Open | R73: N
A74: 6 | B74: 2023-02-21 | D74: IRCTC MAR FUT | E74: Sell | F74: 645 | G74: 662 | H74: 634.5 | I74: 630-620 | J74: Profit of Rs.10.5/- | K74: =F74-H74 -> 10.5 | L74: =(H74*N74)*0.07% -> 399.74 | M74: =(K74*N74)-L74 -> 9050.3 | N74: 900 | O74: Successful | P74: 2023-02-22 | R74: H
B75: 2023-02-22 | D75: ONGC MAR FUT | E75: Buy | F75: 153.75-154.25 | G75: 150.5 | I75: 160 | J75: Open
B76: 2023-02-22 | D76: BATAINDIA MAR FUT | E76: Buy | F76: 1420-1425 | G76: 1380 | I76: 1470-1480 | J76: Open
B77: 2023-02-22 | D77: RELIANCE MAR FUT | E77: Buy | F77: 2420-2430 | G77: 2380 | I77: 2480-2500 | J77: Open
B78: 2023-02-22 | D78: M&M MAR FUT | E78: Buy | F78: 1338-1340 | G78: 1320 | I78: 1370-1380 | J78: Open
B79: 2023-02-22 | D79: MOTHERSON MAR FUT | E79: Sell | F79: 82.6-82.8 | G79: 84.7 | I79: 79-78 | J79: Open
A81: Master Trade Medium Risk
A82: Sr.no | B82: Date | D82: Company | E82: Rec | F82: Rec Price | G82: Stop Loss | H82: Call Closed At | I82: Target | J82: Remark | K82: Profit/ Loss per lot | L82: All charges | M82: Gain / Loss per Lot | N82: Lot | O82: Status | P82: Closed Date
A83: 1 | B83: 2023-01-25 | D83: BEL 107 CE FEB | E83: Buy | F83: 0.95 | G83: 0.2 | H83: 0.95 | I83: 2-2.50 | J83: Neutral/- | K83: =H83-F83 -> 0 | L83: 100.00 | M83: =(K83*N83)-L83 -> -100.0 | N83: 5700 | O83: Neutral | P83: 2023-02-01 | R83: H
A84: 2 | B84: 2023-01-27 | D84: NIFTY 17800 CE 2 FEB | E84: Buy | F84: 107.5 | H84: 202.5 | J84: Profit of Rs.21 /- | K84: =H84-F84 -> 95 | L84: 100.00 | M84: 850.0 | N84: 50 | O84: Successful | P84: 2023-02-01 | R84: N
D85: NIFTY 17300 PE 2 FEB | E85: Buy | F85: 77.5 | H85: 3.5 | K85: =H85-F85 -> -74 | L85: 100.00 | N85: 50
A86: 3 | B86: 2023-02-01 | D86: NIFTY 17800 PE 2 FEB | E86: Buy | F86: 96 | G86: 18 | H86: 147.5 | I86: 200-250 | J86: Profit of Rs.51.5 /- | K86: =H86-F86 -> 51.5 | L86: 100.00 | M86: 2475.0 | N86: 50 | O86: Successful | P86: 2023-02-01 | R86: H
A87: 4 | B87: 2023-02-03 | D87: RELIANCE 2360 CE FEB | E87: Buy | F87: 41 | G87: 24 | H87: 46 | I87: 70-80 | J87: Profit of Rs.5 /- | K87: =H87-F87 -> 5 | L87: 100.00 | M87: =(K87*N87)-100 -> 1150.0 | N87: 250 | O87: Successful | P87: 2023-02-08 | R87: H
A88: 5 | B88: 2023-02-09 | D88: HDFCLIFE 510 PE FEB | E88: Buy | F88: 6.4 | G88: 3 | H88: 7.7 | I88: 10-12.0 | J88: Profit of Rs.1.3/- | K88: =H88-F88 -> 1.3 | L88: 100.00 | M88: =(K88*N88)-100 -> 1200.0 | N88: 1000 | O88: Successful | P88: 2023-02-14 | R88: H
A89: 6 | B89: 2023-02-13 | D89: NIFTY 17800 CE 16 FEB | E89: Buy | F89: 75 | G89: 35 | H89: 95 | I89: 120-140 | J89: Profit of Rs.20/- | K89: =H89-F89 -> 20 | L89: 100.00 | M89: =(K89*N89)-100 -> 900.0 | N89: 50 | O89: Successful | P89: 2023-02-14 | R89: H
A90: 7 | B90: 2023-02-13 | D90: RELIANCE 2340 CE FEB | E90: Buy | F90: 29.5 | G90: 9 | H90: 38 | I90: 55-65 | J90: Profit of Rs.8.5/- | K90: 8.5 | L90: 100.00 | M90: 2025.0 | N90: 250 | O90: Successful | P90: 2023-02-14 | R90: H
A91: 8 | B91: 2023-02-14 | D91: HDFCBANK 1680 CE FEB | E91: Buy | F91: 19 | G91: 9 | H91: 16 | I91: 30-40 | J91: Loss of Rs.3/- | K91: =H91-F91 -> -3 | L91: 100.00 | M91: =(K91*N91)-100 -> -1750.0 | N91: 550 | O91: Unsuccessful | P91: 2023-02-16 | R91: H
A92: 9 | B92: 2023-02-15 | D92: NIFTY 17950 PE 16 FEB | E92: Buy | F92: 55 | G92: 17 | H92: 7 | I92: 90-120 | J92: Loss of Rs.48/- | K92: =H92-F92 -> -48 | L92: 100.00 | M92: =(K92*N92)-100 -> -2500.0 | N92: 50 | O92: Unsuccessful | P92: 2023-02-16 | R92: H
A93: 10 | B93: 2023-02-20 | D93: NIFTY 17900 CE FEB | E93: Buy | F93: 70-74 | J93: Open | N93: 50 | R93: N
D94: NIFTY 18050 CE FEB | E94: Sell | F94: 28-30 | N94: 50 | R94: N
A95: 11 | B95: 2023-02-21 | D95: LT 2260 CE MAR | E95: Buy | F95: 47-49 | G95: 32 | I95: 75-90 | J95: Open | R95: N
B96: 2023-02-22 | D96: NIFTY 17700 CE FEB | E96: Buy | F96: 72 | G96: 32 | H96: 32 | I96: 120-140 | J96: Loss of Rs.48/- | K96: =H96-F96 -> -40 | L96: 100.00 | M96: =(K96*N96)-100 -> -2100.0 | N96: 50 | O96: Unsuccessful | P96: 2023-02-22
B97: 2023-02-22 | D97: RELIANCE 2440 CE MAR | E97: Buy | F97: 47-49 | G97: 28 | I97: 70-90 | J97: Open
A101: Techno -Funda (positional)
A102: Sr.no | B102: Date | D102: Company | E102: Rec | F102: Rec Price | G102: Stop Loss*** | H102: Call Closed At | I102: Target | J102: Remark | K102: Profit / Loss per Share/Lot | L102: All charges | M102: Net Gain / Loss % | N102: Status | O102: Closed Date | P102: Market Closing Price
A103: 1 | B103: 2022-10-06 | D103: AMBIKCO | E103: Buy | F103: 1420-1620 | G103: 1220 | I103: 2000-2300 | J103: Open | R103: H
A105: CLBS = Closing Basis *** | F105: Reinitiated $
A106: Dividend adjusted <> | F106: Revised stoploss # | H106: .................
B110: Investment Idea
A111: Sr.no | B111: Date | D111: Company | E111: Rec | F111: Rec Price | G111: Point of Review | H111: Close Rate | I111: Target | J111: Remark | K111: Profit / Loss per Share | L111: Gain / Loss % | M111: Status | N111: Closed Date
A112: 1 | B112: 2013-11-01 | D112: L&T Finance Holding | E112: Accu | F112: 82.00 | G112: - | H112: 100 | I112: 100.00 | J112: Target Achieved | K112: =H112-F112 -> 18.00 | L112: =K112/F112 -> 21.95% | M112: Successful | N112: 2016-10-14
A113: 2 | B113: 2014-06-04 | D113: Finolex Inds | E113: Buy | F113: 257.00 | G113: - | H113: 300 | I113: 300.00 | J113: Target Achieved | K113: 43.00 | L113: 16.73% | M113: Successful | N113: 2014-07-02
A114: 3 | B114: 2014-07-08 | D114: JK Cement | E114: Buy | F114: 393.00 | G114: - | H114: 468 | I114: 468.00 | J114: Target Achieved | K114: 75.00 | L114: 19.08% | M114: Successful | N114: 2014-08-12
A115: 4 | B115: 2014-08-06 | D115: Finolex Cables | E115: Buy | F115: 205.00 | G115: - | H115: 275 | I115: 250.00 | J115: Target Achieved | K115: 70.00 | L115: 34.15% | M115: Successful | N115: 2014-11-19
A116: 5 | B116: 2014-09-04 | D116: Exide Inds | E116: Buy | F116: 162.00 | G116: - | H116: 190 | I116: 190.00 | J116: Target Achieved | K116: 28.00 | L116: 17.28% | M116: Successful | N116: 2015-01-02
A117: 6 | B117: 2014-09-04 | D117: Deepak Nitrite | E117: Buy | F117: 75.00 | G117: - | H117: 91.5 | I117: 95-100 | J117: Profit of Rs.16.50/- | K117: 16.50 | L117: 22.00% | M117: Successful | N117: 2014-11-11
A118: 7 | B118: 2014-10-01 | D118: Mercks | E118: Buy | F118: 850.00 | G118: - | H118: 982.5 | I118: 1050.00 | J118: Profit of Rs.132.50/- | K118: 132.50 | L118: 15.59% | M118: Successful | N118: 2015-02-04
A119: 8 | B119: 2014-10-01 | D119: Grindwell Norton | E119: Buy | F119: 475.00 | G119: - | H119: 515 | I119: 600.00 | J119: Profit of Rs.40/- | K119: 40.00 | L119: 8.42% | M119: Successful | N119: 2014-10-27
A120: 9 | B120: 2014-10-01 | D120: Snowman Logistics | E120: Buy | F120: 86.00 | G120: - | H120: 99 | I120: 140.00 | J120: Profit of Rs.13.00/- | K120: 13.00 | L120: 15.12% | M120: Successful | N120: 2014-10-27
A121: 10 | B121: 2014-10-14 | D121: Birla Corp | E121: Buy | F121: 496.60 | G121: - | H121: 621 | I121: 580.00 | J121: Target Achieved | K121: 124.40 | L121: 25.05% | M121: Successful | N121: 2016-08-23
A122: 11 | B122: 2014-10-14 | D122: Ultratech Cem | E122: Buy | F122: 2481.90 | G122: - | H122: 2840 | I122: 2870.00 | J122: Profit of Rs.358.10/- | K122: 358.10 | L122: 14.43% | M122: Successful | N122: 2015-01-13
A123: 12 | B123: 2014-10-16 | D123: Sintex Inds | E123: Buy | F123: 84.50 | G123: - | H123: 93 | I123: 110.00 | J123: Profit of Rs.8.50/- | K123: 8.50 | L123: 10.06% | M123: Successful | N123: 2014-10-27
A124: 13 | B124: 2014-10-16 | D124: HSIL | E124: Buy | F124: 401.00 | G124: - | H124: 428 | I124: 450.00 | J124: Profit of Rs.27.00/- | K124: 27.00 | L124: 6.73% | M124: Successful | N124: 2015-01-16
A125: 14 | B125: 2014-10-16 | D125: Eveready Inds | E125: Buy | F125: 101.00 | G125: - | H125: 112 | I125: 120.00 | J125: Profit of Rs.11.00/- | K125: 11.00 | L125: 10.89% | M125: Successful | N125: 2014-10-27
A126: 15 | B126: 2014-11-11 | D126: Pennar Inds | E126: Buy | F126: 59.00 | G126: - | H126: 76 | I126: 76.00 | J126: Target Achieved | K126: 17.00 | L126: 28.81% | M126: Successful | N126: 2017-10-24
A127: 16 | B127: 2014-11-11 | D127: Snowman Logistics | E127: Buy | F127: 99.00 | G127: - | H127: 120 | I127: 120.00 | J127: Profit of Rs.21/- | K127: 21.00 | L127: 21.21% | M127: Successful | N127: 2014-11-17
A128: 17 | B128: 2014-11-13 | D128: Dharamsi Morarji Chem | E128: Buy | F128: 22.00 | G128: - | H128: 33.55 | I128: 32.00 | J128: Profit of Rs 11.55/- | K128: 11.55 | L128: 52.50% | M128: Successful | N128: 2015-07-03
A129: 18 | B129: 2014-12-03 | D129: Tatachem | E129: Buy | F129: 440.00 | G129: - | H129: 520 | I129: 520.00 | J129: Profit of Rs 80.00/- | K129: 80.00 | L129: 18.18% | M129: Successful | N129: 2015-07-23
A130: 19 | B130: 2014-12-03 | D130: Advanta | E130: Buy | F130: 360.00 | G130: - | H130: 427 | I130: 425.00 | J130: Profit of Rs.67.00/- | K130: 67.00 | L130: 18.61% | M130: Successful | N130: 2015-02-23
A131: 20 | B131: 2015-01-08 | D131: GDL | E131: Buy | F131: 360.00 | G131: - | H131: 455 | I131: 420.00 | J131: Profit of Rs.95.00/- | K131: 95.00 | L131: 26.39% | M131: Successful | N131: 2015-01-20
A132: 21 | B132: 2015-01-08 | D132: NRB Bearing | E132: Buy | F132: 130.00 | H132: 175.5 | I132: 165.00 | J132: Profit of Rs 45.50/- | K132: 45.50 | L132: 35.00% | M132: Successful | N132: 2017-12-19
A133: 22 | B133: 2015-02-05 | D133: GSFC | E133: Accu | F133: 98.00 | H133: 120 | I133: 120.00 | J133: Target Achieved | K133: 22.00 | L133: 22.45% | M133: Successful | N133: 2017-01-18
A134: 23 | B134: 2015-02-05 | D134: Sundrmfast | E134: Accu | F134: 196.00 | H134: 262 | I134: 255.00 | J134: Target Achieved | K134: 66.00 | L134: 33.67% | M134: Successful | N134: 2016-08-17
A135: 24 | B135: 2015-03-04 | D135: GPPL | E135: Accu | F135: 235 | H135: 77.00 | I135: 280-285 | J135: Loss of Rs.158/- | K135: -158.00 | L135: -67.23% | M135: Unsuccessful | N135: 2019-02-26
A136: 25 | B136: 2015-03-04 | D136: ORIENTCEM | E136: Accu | F136: 185.00 | H136: 224 | I136: 220-225 | J136: Target Achieved | K136: 39.00 | L136: 21.08% | M136: Successful | N136: 2016-10-04
A137: 26 | B137: 2015-03-27 | D137: PFS | E137: Accu | F137: 49.5 | H137: 15.85 | I137: 67.00 | J137: Loss of Rs.33.65/- | K137: -33.65 | L137: -68% | M137: Unsuccessful | N137: 2019-06-11
A138: 27 | B138: 2015-03-30 | D138: Walchandnagar Ind Ltd | E138: Accu | F138: 183.50 | H138: 219 | I138: 218.00 | J138: Profit of Rs.35.50/- | K138: 35.50 | L138: 19.35% | M138: Successful | N138: 2015-04-09
A139: 28 | B139: 2015-04-20 | D139: Kalpataru Power Transmission Ltd | E139: Accu | F139: =(227+237)/2 -> 232.00 | H139: 298 | I139: 298.00 | J139: Target Achieved | K139: 66.00 | L139: 28.45% | M139: Successful | N139: 2017-03-29
A140: 29 | B140: 2015-05-04 | D140: Mastek Ltd | E140: Buy | F140: 385.00 | H140: =212.5+331 -> 543.5 | I140: 510.00 | J140: Profit of Rs 158.50/- | K140: 158.50 | L140: 41.17% | M140: Successful | N140: 2015-08-19
A141: 30 | B141: 2015-05-04 | D141: Suprajit Eng | E141: Buy | F141: 115.50 | H141: 146 | I141: 142.00 | J141: Profit of Rs 30.50/- | K141: 30.50 | L141: 26.41% | M141: Successful | N141: 2015-07-17
A142: 31 | B142: 2015-05-27 | D142: TCI | E142: Buy | F142: 237.50 | H142: 279.5 | I142: 278.00 | J142: Target Achieved | K142: 42.00 | L142: 17.68% | M142: Successful | N142: 2015-08-06
A143: 32 | B143: 2015-06-19 | D143: HSIL | E143: Accu | F143: 340.00 | H143: 448 | I143: 448.00 | J143: Target Achieved | K143: 108.00 | L143: 31.76% | M143: Successful | N143: 2017-10-10
A144: 33 | B144: 2015-07-06 | D144: Capital First | E144: Accu | F144: 390.00 | H144: 460 | I144: 460.00 | J144: Target Achieved | K144: 70.00 | L144: 17.95% | M144: Successful | N144: 2016-04-18
A145: 34 | B145: 2015-07-10 | D145: Dolphin OffShore | E145: Accu | F145: 122.5 | H145: 61.00 | I145: 172.00 | J145: Loss of Rs.61.50/- | K145: -61.50 | L145: -50.20% | M145: Unsuccessful | N145: 2018-08-21
A146: 35 | B146: 2015-08-03 | D146: Allcargo logistics | E146: Accu | F146: 297.50 | H146: 350 | I146: 360.00 | J146: Profit of Rs 52.50/- | K146: 52.50 | L146: 17.65% | M146: Successful | N146: 2015-08-16
A147: 36 | B147: 2015-08-03 | D147: Camline Fine | E147: Accu | F147: 115.50 | H147: 149 | I147: 140.00 | J147: Profit of Rs 33.50/- | K147: 33.50 | L147: 29.00% | M147: Successful | N147: 2017-01-05
A148: 37 | B148: 2015-09-04 | D148: TCI | E148: Accu | F148: 226.00 | H148: 292 | I148: 292.00 | J148: Target Achieved | K148: 66.00 | L148: 29.20% | M148: Successful | N148: 2015-10-09
A149: 38 | B149: 2015-09-07 | D149: Kalpataru Power Transmission Ltd | E149: Accu | F149: 232.50 | H149: 312.5 | I149: 310.00 | J149: Target Achieved | K149: 80.00 | L149: 34.41% | M149: Successful | N149: 2017-03-29
A150: 39 | B150: 2015-09-21 | D150: LLOYD ELECTRIC & ENG LTD | E150: Accu | F150: 196.50 | H150: 238 | I150: 238.00 | J150: Target Achieved | K150: 41.50 | L150: 21.12% | M150: Successful | N150: 2015-10-14
A151: 40 | B151: 2015-09-24 | D151: L&T Finance Holding | E151: Accu | F151: 65.00 | H151: 82 | I151: 82.00 | J151: Target Achieved | K151: 17.00 | L151: 26.15% | M151: Successful | N151: 2016-07-27
A152: 41 | B152: 2015-10-14 | D152: KEC International ltd | E152: Accu | F152: 144.00 | H152: 182.5 | I152: 181.00 | J152: Target Achieved | K152: 38.50 | L152: 26.74% | M152: Successful | N152: 2017-03-23
A153: 42 | B153: 2015-10-14 | D153: Gruh Finance | E153: Accu | F153: 264.00 | H153: 311 | I153: 311.00 | J153: Target Achieved | K153: 47.00 | L153: 17.80% | M153: Successful | N153: 2016-08-22
A154: 43 | B154: 2015-11-10 | D154: Pidilitind | E154: Buy | F154: 549.50 | H154: 630 | I154: 630.00 | J154: Target Achieved | K154: 80.50 | L154: 14.65% | M154: Successful | N154: 2016-02-19
A155: 44 | B155: 2015-12-04 | D155: Zensar Technology | E155: Accu | F155: 1027.50 | H155: 1315 | I155: 1250.00 | J155: Target Achieved | K155: 287.50 | L155: 27.98% | M155: Successful | N155: 2018-05-24
A156: 45 | B156: 2015-12-29 | D156: Vinati Organics Ltd | E156: Accu | F156: 465.00 | H156: 540 | I156: 540.00 | J156: Target Achieved | K156: 75.00 | L156: 16.13% | M156: Successful | N156: 2016-06-09
A157: 46 | B157: 2016-01-11 | D157: GSFC | E157: Buy | F157: 81.00 | H157: 110 | I157: 110.00 | J157: Target Achieved | K157: 29.00 | L157: 35.80% | M157: Successful | N157: 2017-01-10
A158: 47 | B158: 2016-01-13 | D158: SSWL | E158: Buy | F158: 417.50 | H158: 547 | I158: 535.00 | J158: Target Achieved | K158: 129.50 | L158: 31.02% | M158: Successful | N158: 2016-07-27
A159: 48 | B159: 2016-02-08 | D159: Persistent System Ltd | E159: Accu | F159: 650.00 | H159: 800 | I159: 800.00 | J159: Target Achieved | K159: 150.00 | L159: 23.08% | M159: Successful | N159: 2018-02-23
A160: 49 | B160: 2016-03-04 | D160: UPL | E160: Accu | F160: 437.50 | H160: 504.5 | I160: 522.00 | J160: Profit of Rs.67/- | K160: 67.00 | L160: 15.31% | M160: Successful | N160: 2016-04-20
A161: 50 | B161: 2016-03-09 | D161: Ashoka Buildcon Ltd | E161: Accu | F161: 189.50 | H161: 218 | I161: 218.00 | J161: Target Achieved | K161: 28.50 | L161: 15.04% | M161: Successful | N161: 2017-10-26
A162: 51 | B162: 2016-04-11 | D162: PTC INDIA FIN SERV LTD | E162: Accu | F162: 36.5 | H162: 15.85 | I162: 60.00 | J162: Loss of Rs.20.65/- | K162: -20.65 | L162: -56.58% | M162: Unsuccessful | N162: 2019-06-11
A163: 52 | B163: 2016-04-12 | D163: CAMLINFINE $ | E163: Accu | F163: 93.00 | H163: 149 | I163: 140.00 | J163: Profit of Rs 56/- | K163: 56.00 | L163: 60.22% | M163: Successful | N163: 2017-01-05
A164: 53 | B164: 2016-04-12 | D164: Greaves Cotton Ltd. | E164: Accu | F164: 130.00 | H164: 150 | I164: 150-155 | J164: Target Achieved | K164: 20.00 | L164: 15.38% | M164: Successful | N164: 2016-07-13
A165: 54 | B165: 2016-04-13 | D165: DHFL | E165: Accu | F165: 196.00 | H165: 299 | I165: 299.00 | J165: Target Achieved | K165: 103.00 | L165: 52.55% | M165: Successful | N165: 2016-09-07
A166: 55 | B166: 2016-04-13 | D166: Magma | E166: Accu | F166: 88.00 | H166: 103 | I166: 103.00 | J166: Target Achieved | K166: 15.00 | L166: 17.05% | M166: Successful | N166: 2016-06-09
A167: 56 | B167: 2016-05-02 | D167: KEC International ltd $ | E167: Accu | F167: 127.50 | H167: 148 | I167: 148-150 | J167: Target Achieved | K167: =H167-F167 -> 20.50 | L167: =K167/F167 -> 16.08% | M167: Successful | N167: 2016-07-13
A168: 57 | B168: 2016-05-03 | D168: Mindtree | E168: Accu | F168: 675.00 | H168: 815 | I168: 790-800 | J168: Target Achieved | K168: =H168-F168 -> 140.00 | L168: =K168/F168 -> 20.74% | M168: Successful | N168: 2018-02-23
A169: 58 | B169: 2016-06-01 | D169: Atulauto | E169: Accu | F169: 500 | H169: 232.50 | I169: 565-570 | J169: Loss of Rs.267.50 /- | K169: =H169-F169 -> -267.50 | L169: =K169/F169 -> -53.50% | M169: Unsuccessful | N169: 2019-09-27
A170: 59 | B170: 2016-06-06 | D170: TRITURBINE | E170: Accu | F170: 110.00 | H170: 126.5 | I170: 125.00 | J170: Profit of Rs.16.50/- | K170: =H170-F170 -> 16.50 | L170: =K170/F170 -> 15.00% | M170: Successful | N170: 2016-07-01
A171: 60 | B171: 2016-06-17 | D171: Pennar Industries Ltd | E171: Accu | F171: 44.00 | H171: 69.5 | I171: 69.50 | J171: Profit of Rs.25.50/- | K171: =H171-F171 -> 25.50 | L171: =K171/F171 -> 57.95% | M171: Successful | N171: 2017-08-30
A172: 61 | B172: 2016-06-28 | D172: EVEREADY | E172: Accu | F172: 262.50 | H172: 340 | I172: 333.00 | J172: Profit of Rs.77.50/- | K172: 77.50 | L172: 29.52% | M172: Successful | N172: 2017-10-09
A173: 62 | B173: 2016-06-28 | D173: FIEMIND | E173: Accu | F173: 840.00 | H173: 1230 | I173: 1230.00 | J173: Target Achieved | K173: 390.00 | L173: 46.43% | M173: Successful | N173: 2016-10-06
A174: 63 | B174: 2016-07-05 | D174: Bajaj Corp Ltd | E174: Accu | F174: 395 | H174: =(468.5+342.5)/2 -> 405.50 | I174: 510.00 | J174: Profit of Rs.10.50/- | K174: =H174-F174 -> 10.50 | L174: =K174/F174 -> 3% | M174: Neutral | N174: 2019-05-21
A175: 64 | B175: 2016-08-02 | D175: GPPL $ | E175: Buy | F175: =169.5-12.8 -> 156.7 | H175: 77.00 | I175: 198-200 | J175: Loss of Rs.79.7/- | K175: -79.70 | L175: -50.86% | M175: Unsuccessful | N175: 2019-02-26
A176: 65 | B176: 2016-08-04 | D176: WONDERLA HOLIDAYS LTD | E176: Accu | F176: 400 | H176: 305.00 | I176: 475.00 | J176: Loss of Rs.95/- | K176: -95.00 | L176: -23.75% | M176: Unsuccessful | N176: 2019-05-21
A177: 66 | B177: 2016-08-11 | D177: CAMLINFINE | E177: Accu | F177: 86.50 | H177: 130 | I177: 130.00 | J177: Profit of Rs.43.50/- | K177: 43.50 | L177: 50.29% | M177: Successful | N177: 2017-12-22
A178: 67 | B178: 2016-08-18 | D178: GRANULES | E178: Accu | F178: 133.5 | H178: 126.50 | I178: 178.00 | J178: Exit | K178: -7.00 | L178: -5.24% | M178: Unsuccessful | N178: 2016-09-02
A179: 68 | B179: 2016-08-31 | D179: VA TECH WABAG | E179: Accu | F179: 560.00 | H179: 725 | I179: 725.00 | J179: Target Achieved | K179: 165.00 | L179: 29.46% | M179: Successful | N179: 2016-03-27
A180: 69 | B180: 2016-09-01 | D180: SKIPPER LIMITED | E180: Accu | F180: 160.50 | H180: 210 | I180: 210.00 | J180: Target Achieved | K180: 49.50 | L180: 30.84% | M180: Successful | N180: 2017-05-16
A181: 70 | B181: 2016-10-03 | D181: IFBIND | E181: Accu | F181: 430.00 | H181: 596 | I181: 575.00 | J181: Profit of Rs.166/- | K181: 166.00 | L181: 38.60% | M181: Successful | N181: 2017-02-03
A182: 71 | B182: 2016-10-14 | D182: ASIANTILES | E182: Accu | F182: 280.00 | H182: 345 | I182: 345.00 | J182: Target Achieved | K182: =H182-F182 -> 65.00 | L182: =K182/F182 -> 23.21% | M182: Successful | N182: 2017-03-20
A183: 72 | B183: 2016-10-14 | D183: DEEPIND | E183: Accu | F183: 245.00 | H183: 325.5 | I183: 330.00 | J183: Profit of Rs.80.5/- | K183: 80.50 | L183: =K183/F183 -> 32.86% | M183: Successful | N183: 2017-02-03
A184: 73 | B184: 2016-10-17 | D184: DCBBANK | E184: Accu | F184: 125.00 | H184: 160 | I184: 160.00 | J184: Target Achieved | K184: 35.00 | L184: 28.00% | M184: Successful | N184: 2017-03-09
A185: 74 | B185: 2016-10-17 | D185: ORIENTREF | E185: Accu | F185: 114.00 | H185: 145 | I185: 145.00 | J185: Target Achieved | K185: 31.00 | L185: =K185/F185 -> 27.19% | M185: Successful | N185: 2017-05-04
A186: 75 | B186: 2016-10-17 | D186: GANECOS | E186: Accu | F186: 212.00 | H186: 280 | I186: 276.00 | J186: Profit of Rs.68/- | K186: 68.00 | L186: =K186/F186 -> 32.08% | M186: Successful | N186: 2017-05-03
A187: 76 | B187: 2016-11-04 | D187: NBCC | E187: Accu | F187: 155.00 | H187: 210 | I187: 210.00 | J187: Profit of Rs.55/- | K187: 55.00 | L187: =K187/F187 -> 35.48% | M187: Successful | N187: 2017-07-28
A188: 77 | B188: 2016-12-06 | D188: PRECAM | E188: Accu | F188: 150.5 | H188: 72.50 | I188: 174.00 | J188: Loss of Rs.78/- | K188: -78.00 | L188: -51.83% | M188: Unsuccessful | N188: 2018-08-21
A189: 78 | B189: 2016-12-08 | D189: INFRATEL | E189: Accu | F189: 380.00 | H189: 478 | I189: 468.00 | J189: Target Achieved | K189: =H189-F189 -> 98.00 | L189: =K189/F189 -> 25.79% | M189: Successful | N189: 2017-10-17
A190: 79 | B190: 2016-12-30 | D190: GODREJPROP | E190: Accu | F190: 305.00 | H190: 375 | I190: 375.00 | J190: Target Achieved | K190: =H190-F190 -> 70.00 | L190: =K190/F190 -> 22.95% | M190: Successful | N190: 2017-02-02
A191: 80 | B191: 2017-01-04 | D191: DEEPAKNTR | E191: Accu | F191: 99.50 | H191: 158 | I191: 158.00 | J191: Target Achieved | K191: =H191-F191 -> 58.50 | L191: =K191/F191 -> 58.79% | M191: Successful | N191: 2017-06-12
A192: 81 | B192: 2017-01-04 | D192: DEEPAKNTR | E192: Accu | F192: 99.50 | H192: 158 | I192: 158.00 | J192: Target Achieved | K192: 58.50 | L192: 58.79% | M192: Successful | N192: 2017-06-12
A193: 82 | B193: 2017-02-20 | D193: RECLTD | E193: Accu | F193: 140.50 | H193: 220 | I193: 220.00 | J193: Target Achieved | K193: =H193-F193 -> 79.50 | L193: =K193/F193 -> 56.58% | M193: Successful | N193: 2017-05-09
A194: 83 | B194: 2017-02-20 | D194: SUBROS | E194: Accu | F194: 202.50 | H194: 234 | I194: 234.00 | J194: Target Achieved | K194: 31.50 | L194: 15.56% | M194: Successful | N194: 2017-04-11
A195: 84 | B195: 2017-03-24 | D195: VRLLOG | E195: Accu | F195: 300.50 | H195: 417.5 | I195: 420.00 | J195: Profit of Rs.117/- | K195: =H195-F195 -> 117.00 | L195: =K195/F195 -> 38.94% | M195: Successful | N195: 2017-12-01
A196: 85 | B196: 2017-03-24 | D196: FIEMIND | E196: Accu | F196: 850.00 | H196: 1042.5 | I196: 1023.00 | J196: Profit of Rs 192.50/- | K196: 192.50 | L196: 22.65% | M196: Successful | N196: 2017-04-05
A197: 86 | B197: 2017-04-05 | D197: RATNAMANI | E197: Accu | F197: 785.00 | H197: 930 | I197: 920.00 | J197: Profit of Rs.145/- | K197: =H197-F197 -> 145.00 | L197: =K197/F197 -> 18.47% | M197: Successful | N197: 2017-08-29
A198: 87 | B198: 2017-04-06 | D198: ZEEMEDIA | E198: Accu | F198: 40 | H198: 13.10 | I198: 60.00 | J198: Loss of Rs.26.9/- | K198: -26.90 | L198: -67.25% | M198: Unsuccessful | N198: 2018-02-07
A199: 88 | B199: 2017-04-12 | D199: DABUR | E199: Accu | F199: 289.50 | H199: 354 | I199: 360.00 | J199: Profit of Rs.64.5/- | K199: =H199-F199 -> 64.50 | L199: =K199/F199 -> 22.28% | M199: Successful | N199: 2017-11-01
A200: 89 | B200: 2017-04-20 | D200: KPRMILL | E200: Accu | F200: 700.00 | H200: 840 | I200: 840.00 | J200: Profit of Rs.140/- | K200: 140.00 | L200: 20.00% | M200: Successful | N200: 2017-06-07
A201: 90 | B201: 2017-06-01 | D201: ESSELPACK | E201: Accu | F201: 130.00 | H201: 144.25 | I201: 170.00 | J201: Profit of Rs.14.25/- | K201: 14.25 | L201: 10.96% | M201: Successful | N201: 2019-07-29
A202: 91 | B202: 2017-06-15 | D202: KEI | E202: Accu | F202: 214.50 | H202: 262 | I202: 262.00 | J202: Profit of Rs.47.5/- | K202: 47.50 | L202: 22.14% | M202: Successful | N202: 2017-08-30
A203: 92 | B203: 2017-07-17 | D203: MAYURUNIQ | E203: Accu | F203: 370.00 | H203: 447.5 | I203: 450.00 | J203: Target Achieved | K203: 77.50 | L203: 20.95% | M203: Successful | N203: 2017-10-27
A204: 93 | B204: 2017-07-27 | D204: RAMCOCEM | E204: Accu | F204: 657.50 | H204: 825 | I204: 820.00 | J204: Target Achieved | K204: 167.50 | L204: 25.48% | M204: Successful | N204: 2017-12-21
A205: 94 | B205: 2017-08-17 | D205: FINPIPE | E205: Accu | F205: 605.00 | H205: 750 | I205: 750.00 | J205: Profit of Rs.145/- | K205: 145.00 | L205: 23.97% | M205: Successful | N205: 2017-10-19
A206: 95 | B206: 2017-09-01 | D206: SHK | E206: Accu | F206: 255 | H206: 217.25 | I206: 320.00 | J206: Loss of Rs.37.75/- | K206: -37.75 | L206: -15% | M206: Unsuccessful | N206: 2019-07-15
A207: 96 | B207: 2017-09-19 | D207: SKIPPER | E207: Accu | F207: 215.00 | H207: 258 | I207: 258.00 | J207: Target Achieved | K207: 43.00 | L207: 20.00% | M207: Successful | N207: 2017-11-01
A208: 97 | B208: 2017-09-19 | D208: SKIPPER | E208: Accu | F208: 215.00 | H208: 258 | I208: 258.00 | J208: Target Achieved | K208: 43.00 | L208: 20.00% | M208: Successful | N208: 2017-11-01
A209: 98 | B209: 2017-09-20 | D209: CAMLINFINE$ | E209: Accu | F209: 75.00 | H209: 90 | I209: 90.00 | J209: Profit of Rs.15.00/- | K209: =H209-F209 -> 15.00 | L209: =K209/F209 -> 20.00% | M209: Successful | N209: 2017-10-11
A210: 99 | B210: 2017-10-03 | D210: GNA | E210: Accu | F210: 315.00 | H210: 392 | I210: 384.00 | J210: Profit of Rs.77/- | K210: 77.00 | L210: 24.44% | M210: Successful | N210: 2017-10-09
A211: 100 | B211: 2017-10-05 | D211: NOCIL | E211: Accu | F211: 145.00 | H211: 179 | I211: 180.00 | J211: Profit of Rs.34/- | K211: 34.00 | L211: 23.45% | M211: Successful | N211: 2017-10-17
A212: 101 | B212: 2017-10-06 | D212: CENTURYPLY | E212: Accu | F212: 256.00 | H212: 323 | I212: 320.00 | J212: Target Achieved | K212: 67.00 | L212: 26.17% | M212: Successful | N212: 2017-11-28
A213: 102 | B213: 2017-10-09 | D213: EIHOTEL | E213: Accu | F213: 137.50 | H213: 184 | I213: 183.00 | J213: Profit of Rs.46.5/- | K213: 46.50 | L213: 33.82% | M213: Successful | N213: 2018-01-08
A214: 103 | B214: 2017-10-10 | D214: NRBBEARING | E214: Accu | F214: 125.50 | H214: 158 | I214: 155.00 | J214: Profit of Rs.32.5/- | K214: 32.50 | L214: 25.90% | M214: Successful | N214: 2017-11-28
A215: 104 | B215: 2017-10-10 | D215: BOROSIL | E215: Accu | F215: 895.00 | H215: 1122.5 | I215: 1078.00 | J215: Profit of Rs.227.5/- | K215: 227.50 | L215: 25.42% | M215: Successful | N215: 2018-01-17
A216: 105 | B216: 2017-10-12 | D216: CYIENT | E216: Accu | F216: 525.00 | H216: 629 | I216: 629.00 | J216: Target Achieved | K216: 104.00 | L216: 19.81% | M216: Successful | N216: 2018-01-19
A217: 106 | B217: 2017-11-07 | D217: HATSUN | E217: Accu | F217: 740.00 | H217: 892.5 | I217: 900.00 | J217: Profit of Rs.152.5/- | K217: =H217-F217 -> 152.50 | L217: =K217/F217 -> 20.61% | M217: Successful | N217: 2017-11-13
A218: 107 | B218: 2017-12-04 | D218: SANGHIIND | E218: Accu | F218: 118.50 | H218: 143.5 | I218: 145.00 | J218: Profit of Rs.25/- | K218: =H218-F218 -> 25.00 | L218: =K218/F218 -> 21.10% | M218: Successful | N218: 2017-12-28
A219: 108 | B219: 2017-12-21 | D219: KAJARIACER | E219: Accu | F219: 715 | H219: 500.00 | I219: 872.00 | J219: Loss of Rs.215/- | K219: =H219-F219 -> -215.00 | L219: =K219/F219 -> -30.07% | M219: Unsuccessful | N219: 2019-07-24
A220: 109 | B220: 2017-12-29 | D220: GNA | E220: Accu | F220: 435.00 | H220: 542.5 | I220: 539.00 | J220: Target Achieved | K220: 107.50 | L220: 24.71% | M220: Successful | N220: 2018-04-16
A221: 110 | B221: 2017-12-29 | D221: ZENSARTECH | E221: Accu | F221: 885.00 | H221: 1090 | I221: 1084.00 | J221: Target Achieved | K221: 205.00 | L221: 23.16% | M221: Successful | N221: 2018-04-23
... 72 more rows
